Workbook

Sheet PORTADA

Sheet RESUMEN (hidden)
A1: Fecha | B1: Categoria | C1: Pernoctaciones | D1: Habitaciones | E1: Empleos | F1: Llegadas | G1: Habitaciones vendidas | H1: Ingresos (Miles) | I1: Ingresos | J1: TOH | K1: Estancia media | L1: Tarifa promedio | M1: Columna1
A2: 2019-12-01 | B2: 3 estrellas | C2: 5040 | D2: 790 | E2: 277 | F2: 4069 | G2: 5474 | H2: 226.90933 | I2: 226909.33 | J2: 0.223519804 | K2: 1.238633571 | L2: 41.45219766 | M2: =RESUMEN[[#This Row],[Habitaciones vendidas]]*RESUMEN[[#This Row],[Tarifa promedio]] -> 226909.33
A3: 2019-12-01 | B3: 4 estrellas | C3: 10423 | D3: 825 | E3: 537 | F3: 7458 | G3: 9880 | H3: 773.37467 | I3: 773374.67 | J3: 0.3863147605 | K3: 1.397559667 | L3: 78.27678846 | M3: =RESUMEN[[#This Row],[Habitaciones vendidas]]*RESUMEN[[#This Row],[Tarifa promedio]] -> 773374.67
A4: 2019-12-01 | B4: 5 estrellas | C4: 11087 | D4: 580 | E4: 1203 | F4: 6411 | G4: 8916 | H4: 864.9625 | I4: 864962.5 | J4: 0.4958843159 | K4: 1.729371393 | L4: 97.01239345 | M4: =RESUMEN[[#This Row],[Habitaciones vendidas]]*RESUMEN[[#This Row],[Tarifa promedio]] -> 864962.5
A5: 2020-01-01 | B5: 3 estrellas | C5: 5103 | D5: 1039 | E5: 165 | F5: 1994 | G5: 2582 | H5: 134.78024 | I5: 134780.24 | J5: 0.08016392934 | K5: 2.559177533 | L5: 52.19993803 | M5: =RESUMEN[[#This Row],[Habitaciones vendidas]]*RESUMEN[[#This Row],[Tarifa promedio]] -> 134780.24
A6: 2020-01-01 | B6: 5 estrellas | C6: 15195 | D6: 779 | E6: 1128 | F6: 4744 | G6: 15281 | H6: 1701.39931 | I6: 1701399.31 | J6: 0.6327798253 | K6: 3.202993255 | L6: 111.3408357 | M6: =RESUMEN[[#This Row],[Habitaciones vendidas]]*RESUMEN[[#This Row],[Tarifa promedio]] -> 1701399.31
A7: 2020-01-01 | B7: 4 estrellas | C7: 7578 | D7: 1275 | E7: 443 | F7: 6272 | G7: 5740 | H7: 438.66395 | I7: 438663.95 | J7: 0.1452245414 | K7: 1.208227041 | L7: 76.42229094 | M7: =RESUMEN[[#This Row],[Habitaciones vendidas]]*RESUMEN[[#This Row],[Tarifa promedio]] -> 438663.95
A8: 2020-02-01 | B8: 3 estrellas | C8: 345 | D8: 466 | E8: 26 | F8: 205 | G8: 257 | H8: 36.476 | I8: 36476 | J8: 0.01901731538 | K8: 1.682926829 | L8: 141.9299611 | M8: =RESUMEN[[#This Row],[Habitaciones vendidas]]*RESUMEN[[#This Row],[Tarifa promedio]] -> 36476
A9: 2020-02-01 | B9: 4 estrellas | C9: 7895 | D9: 1332 | E9: 234 | F9: 7580 | G9: 6613 | H9: 544.67818 | I9: 544678.18 | J9: 0.1711970591 | K9: 1.041556728 | L9: 82.36476334 | M9: =RESUMEN[[#This Row],[Habitaciones vendidas]]*RESUMEN[[#This Row],[Tarifa promedio]] -> 544678.18
A10: 2020-02-01 | B10: 5 estrellas | C10: 91 | D10: 210 | E10: 13 | F10: 85 | G10: 88 | H10: 10.60836 | I10: 10608.36 | J10: 0.0144499179 | K10: 1.070588235 | L10: 120.5495455 | M10: =RESUMEN[[#This Row],[Habitaciones vendidas]]*RESUMEN[[#This Row],[Tarifa promedio]] -> 10608.36
A11: 2020-03-01 | B11: 3 estrellas | C11: 993 | D11: 2441 | E11: 102 | F11: 700 | G11: 620 | H11: 65.58334 | I11: 65583.34 | J11: 0.008193363376 | K11: 1.418571429 | L11: 105.7795806 | M11: =RESUMEN[[#This Row],[Habitaciones vendidas]]*RESUMEN[[#This Row],[Tarifa promedio]] -> 65583.34
A12: 2020-03-01 | B12: 4 estrellas | C12: 4344 | D12: 6919 | E12: 166 | F12: 3840 | G12: 3084 | H12: 252.49763 | I12: 252497.63 | J12: 0.01437835973 | K12: 1.13125 | L12: 81.87342088 | M12: =RESUMEN[[#This Row],[Habitaciones vendidas]]*RESUMEN[[#This Row],[Tarifa promedio]] -> 252497.63
A13: 2020-03-01 | B13: 5 estrellas | C13: 131 | D13: 997 | E13: 27 | F13: 115 | G13: 108 | H13: 9.23192 | I13: 9231.92 | J13: 0.00349435403 | K13: 1.139130435 | L13: 85.48074074 | M13: =RESUMEN[[#This Row],[Habitaciones vendidas]]*RESUMEN[[#This Row],[Tarifa promedio]] -> 9231.92
A14: 2020-04-01 | B14: 3 estrellas | C14: 410 | D14: 1490 | E14: 68 | F14: 300 | G14: 403 | H14: 15.96 | I14: 15960 | J14: 0.009015659955 | K14: 1.366666667 | L14: 39.60297767 | M14: =RESUMEN[[#This Row],[Habitaciones vendidas]]*RESUMEN[[#This Row],[Tarifa promedio]] -> 15960
A15: 2020-04-01 | B15: 4 estrellas | C15: 30 | D15: 6128 | E15: 199 | F15: 18 | G15: 214 | H15: 16.258 | I15: 16258 | J15: 0.001164055701 | K15: 1.666666667 | L15: 75.97196262 | M15: =RESUMEN[[#This Row],[Habitaciones vendidas]]*RESUMEN[[#This Row],[Tarifa promedio]] -> 16258
A16: 2020-04-01 | B16: 5 estrellas | C16: 84 | D16: 311 | E16: 47 | F16: 84 | H16: 0 | I16: 0 | K16: 1 | M16: =RESUMEN[[#This Row],[Habitaciones vendidas]]*RESUMEN[[#This Row],[Tarifa promedio]] -> 0
A17: 2020-05-01 | B17: 3 estrellas | C17: 1164 | D17: 344 | E17: 202 | F17: 188 | G17: 1156 | H17: 54.63876 | I17: 54638.76 | J17: 0.1084021005 | K17: 6.191489362 | L17: 47.26536332 | M17: =RESUMEN[[#This Row],[Habitaciones vendidas]]*RESUMEN[[#This Row],[Tarifa promedio]] -> 54638.76
A18: 2020-05-01 | B18: 4 estrellas | C18: 1330 | D18: 348 | E18: 403 | F18: 1326 | G18: 1228 | H18: 56.529 | I18: 56529 | J18: 0.1138301817 | K18: 1.003016591 | L18: 46.03338762 | M18: =RESUMEN[[#This Row],[Habitaciones vendidas]]*RESUMEN[[#This Row],[Tarifa promedio]] -> 56529
A19: 2020-05-01 | B19: 5 estrellas | C19: 3093 | D19: 507 | E19: 141 | F19: 244 | G19: 1291 | H19: 90.18 | I19: 90180 | J19: 0.08214035757 | K19: 12.67622951 | L19: 69.85282727 | M19: =RESUMEN[[#This Row],[Habitaciones vendidas]]*RESUMEN[[#This Row],[Tarifa promedio]] -> 90180
A20: 2020-06-01 | B20: 3 estrellas | C20: 248 | D20: 171 | E20: 76 | F20: 120 | G20: 282 | H20: 14.59535 | I20: 14595.35 | J20: 0.05497076023 | K20: 2.066666667 | L20: 51.75656028 | M20: =RESUMEN[[#This Row],[Habitaciones vendidas]]*RESUMEN[[#This Row],[Tarifa promedio]] -> 14595.35
A21: 2020-06-01 | B21: 5 estrellas | C21: 805 | D21: 266 | E21: 50 | F21: 204 | G21: 805 | H21: 45.758 | I21: 45758 | J21: 0.100877193 | K21: 3.946078431 | L21: 56.84223602 | M21: =RESUMEN[[#This Row],[Habitaciones vendidas]]*RESUMEN[[#This Row],[Tarifa promedio]] -> 45758
A22: 2020-06-01 | B22: 4 estrellas | C22: 489 | D22: 595 | E22: 220 | F22: 461 | G22: 460 | H22: 25.9009 | I22: 25900.9 | J22: 0.02577030812 | K22: 1.060737527 | L22: 56.30630435 | M22: =RESUMEN[[#This Row],[Habitaciones vendidas]]*RESUMEN[[#This Row],[Tarifa promedio]] -> 25900.9
A23: 2020-07-01 | B23: 3 estrellas | C23: 341 | D23: 376 | E23: 99 | F23: 230 | G23: 212 | H23: 13.29202 | I23: 13292.02 | J23: 0.01818805765 | K23: 1.482608696 | L23: 62.69820755 | M23: =RESUMEN[[#This Row],[Habitaciones vendidas]]*RESUMEN[[#This Row],[Tarifa promedio]] -> 13292.02
A24: 2020-07-01 | B24: 4 estrellas | C24: 86 | D24: 299 | E24: 78 | F24: 86 | G24: 70 | H24: 4.291 | I24: 4291 | J24: 0.007552055238 | K24: 1 | L24: 61.3 | M24: =RESUMEN[[#This Row],[Habitaciones vendidas]]*RESUMEN[[#This Row],[Tarifa promedio]] -> 4291
A25: 2020-07-01 | B25: 5 estrellas | C25: 123 | D25: 101 | E25: 21 | F25: 122 | G25: 125 | H25: 10.19404 | I25: 10194.04 | J25: 0.03992334717 | K25: 1.008196721 | L25: 81.55232 | M25: =RESUMEN[[#This Row],[Habitaciones vendidas]]*RESUMEN[[#This Row],[Tarifa promedio]] -> 10194.04
A26: 2020-08-01 | B26: 3 estrellas | C26: 551 | D26: 305 | E26: 79 | F26: 406 | G26: 440 | H26: 22.31896 | I26: 22318.96 | J26: 0.04653622422 | K26: 1.357142857 | L26: 50.72490909 | M26: =RESUMEN[[#This Row],[Habitaciones vendidas]]*RESUMEN[[#This Row],[Tarifa promedio]] -> 22318.96
A27: 2020-08-01 | B27: 4 estrellas | C27: 26 | D27: 214 | E27: 35 | F27: 26 | G27: 26 | H27: 1.274 | I27: 1274 | J27: 0.0039192041 | K27: 1 | L27: 49 | M27: =RESUMEN[[#This Row],[Habitaciones vendidas]]*RESUMEN[[#This Row],[Tarifa promedio]] -> 1274
A28: 2020-08-01 | B28: 5 estrellas | C28: 1405 | D28: 222 | E28: 89 | F28: 1405 | G28: 1214 | H28: 127.03189 | I28: 127031.89 | J28: 0.1764022087 | K28: 1 | L28: 104.6391186 | M28: =RESUMEN[[#This Row],[Habitaciones vendidas]]*RESUMEN[[#This Row],[Tarifa promedio]] -> 127031.89
A29: 2020-09-01 | B29: 3 estrellas | C29: 503 | D29: 261 | E29: 61 | F29: 438 | G29: 370 | H29: 17.27602 | I29: 17276.02 | J29: 0.0472541507 | K29: 1.148401826 | L29: 46.69194595 | M29: =RESUMEN[[#This Row],[Habitaciones vendidas]]*RESUMEN[[#This Row],[Tarifa promedio]] -> 17276.02
A30: 2020-09-01 | B30: 4 estrellas | C30: 973 | D30: 556 | E30: 104 | F30: 862 | G30: 885 | H30: 38.762063 | I30: 38762.063 | J30: 0.05305755396 | K30: 1.128770302 | L30: 43.79894124 | M30: =RESUMEN[[#This Row],[Habitaciones vendidas]]*RESUMEN[[#This Row],[Tarifa promedio]] -> 38762.063
A31: 2020-09-01 | B31: 5 estrellas | C31: 1508 | D31: 259 | E31: 86 | F31: 1075 | G31: 1289 | H31: 119.54669 | I31: 119546.69 | J31: 0.1658944659 | K31: 1.402790698 | L31: 92.74374709 | M31: =RESUMEN[[#This Row],[Habitaciones vendidas]]*RESUMEN[[#This Row],[Tarifa promedio]] -> 119546.69
A32: 2020-10-01 | B32: 3 estrellas | C32: 1970 | D32: 476 | E32: 77 | F32: 1789 | G32: 1723 | H32: 79.06379 | I32: 79063.79 | J32: 0.1167660613 | K32: 1.10117384 | L32: 45.88728381 | M32: =RESUMEN[[#This Row],[Habitaciones vendidas]]*RESUMEN[[#This Row],[Tarifa promedio]] -> 79063.79
A33: 2020-10-01 | B33: 4 estrellas | C33: 2066 | D33: 513 | E33: 63 | F33: 2066 | G33: 1942 | H33: 120.63245 | I33: 120632.45 | J33: 0.1221153242 | K33: 1 | L33: 62.11763646 | M33: =RESUMEN[[#This Row],[Habitaciones vendidas]]*RESUMEN[[#This Row],[Tarifa promedio]] -> 120632.45
A34: 2020-10-01 | B34: 5 estrellas | C34: 885 | D34: 142 | E34: 29 | F34: 521 | G34: 885 | H34: 90.67401 | I34: 90674.01 | J34: 0.2010449796 | K34: 1.69865643 | L34: 102.4565085 | M34: =RESUMEN[[#This Row],[Habitaciones vendidas]]*RESUMEN[[#This Row],[Tarifa promedio]] -> 90674.01
A35: 2020-11-01 | B35: 4 estrellas | C35: 1633 | D35: 630 | E35: 146 | F35: 1539 | G35: 1342 | H35: 99.42785 | I35: 99427.85 | J35: 0.07100529101 | K35: 1.061078622 | L35: 74.089307 | M35: =RESUMEN[[#This Row],[Habitaciones vendidas]]*RESUMEN[[#This Row],[Tarifa promedio]] -> 99427.85
A36: 2020-11-01 | B36: 5 estrellas | C36: 2433 | D36: 358 | E36: 141 | F36: 2144 | G36: 2433 | H36: 240.10039 | I36: 240100.39 | J36: 0.2265363128 | K36: 1.134794776 | L36: 98.68491163 | M36: =RESUMEN[[#This Row],[Habitaciones vendidas]]*RESUMEN[[#This Row],[Tarifa promedio]] -> 240100.39
A37: 2020-11-01 | B37: 3 estrellas | C37: 716 | D37: 169 | E37: 52 | F37: 570 | G37: 580 | H37: 18.89662 | I37: 18896.62 | J37: 0.1143984221 | K37: 1.256140351 | L37: 32.58037931 | M37: =RESUMEN[[#This Row],[Habitaciones vendidas]]*RESUMEN[[#This Row],[Tarifa promedio]] -> 18896.62
A38: 2020-12-01 | B38: 3 estrellas | C38: 2129 | D38: 405 | E38: 75 | F38: 1796 | G38: 1909 | H38: 89.26585 | I38: 89265.85 | J38: 0.1520509757 | K38: 1.185412027 | L38: 46.76052907 | M38: =RESUMEN[[#This Row],[Habitaciones vendidas]]*RESUMEN[[#This Row],[Tarifa promedio]] -> 89265.85
A39: 2020-12-01 | B39: 4 estrellas | C39: 924 | D39: 288 | E39: 45 | F39: 911 | G39: 704 | H39: 46.68496 | I39: 46684.96 | J39: 0.07885304659 | K39: 1.014270033 | L39: 66.31386364 | M39: =RESUMEN[[#This Row],[Habitaciones vendidas]]*RESUMEN[[#This Row],[Tarifa promedio]] -> 46684.96
A40: 2020-12-01 | B40: 5 estrellas | C40: 4127 | D40: 399 | E40: 192 | F40: 3742 | G40: 3287 | H40: 263.60107 | I40: 263601.07 | J40: 0.2657450077 | K40: 1.102886157 | L40: 80.19503194 | M40: =RESUMEN[[#This Row],[Habitaciones vendidas]]*RESUMEN[[#This Row],[Tarifa promedio]] -> 263601.07
A41: 2021-01-01 | B41: 3 estrellas | C41: 538 | D41: 309 | E41: 69 | F41: 444 | G41: 410 | H41: 26.3702 | I41: 26370.2 | J41: 0.04280196263 | K41: 1.211711712 | L41: 64.31756098 | M41: =RESUMEN[[#This Row],[Habitaciones vendidas]]*RESUMEN[[#This Row],[Tarifa promedio]] -> 26370.2
A42: 2021-01-01 | B42: 4 estrellas | C42: 1488 | D42: 417 | E42: 90 | F42: 1337 | G42: 1243 | H42: 84.341 | I42: 84341 | J42: 0.0961553338 | K42: 1.112939417 | L42: 67.85277554 | M42: =RESUMEN[[#This Row],[Habitaciones vendidas]]*RESUMEN[[#This Row],[Tarifa promedio]] -> 84341
A43: 2021-01-01 | B43: 5 estrellas | C43: 2269 | D43: 279 | E43: 117 | F43: 1995 | G43: 1831 | H43: 190.758 | I43: 190758 | J43: 0.2117007747 | K43: 1.137343358 | L43: 104.182414 | M43: =RESUMEN[[#This Row],[Habitaciones vendidas]]*RESUMEN[[#This Row],[Tarifa promedio]] -> 190758
A44: 2021-02-01 | B44: 4 estrellas | C44: 4558 | D44: 630 | E44: 180 | F44: 3923 | G44: 2974 | H44: 203.96094 | I44: 203960.94 | J44: 0.1685941043 | K44: 1.161865919 | L44: 68.58135171 | M44: =RESUMEN[[#This Row],[Habitaciones vendidas]]*RESUMEN[[#This Row],[Tarifa promedio]] -> 203960.94
A45: 2021-02-01 | B45: 3 estrellas | C45: 619 | D45: 249 | E45: 59 | F45: 482 | G45: 507 | H45: 24.73543 | I45: 24735.43 | J45: 0.07271944923 | K45: 1.284232365 | L45: 48.78783037 | M45: =RESUMEN[[#This Row],[Habitaciones vendidas]]*RESUMEN[[#This Row],[Tarifa promedio]] -> 24735.43
A46: 2021-02-01 | B46: 5 estrellas | C46: 1317 | D46: 135 | E46: 119 | F46: 1308 | G46: 959 | H46: 88.128 | I46: 88128 | J46: 0.2537037037 | K46: 1.006880734 | L46: 91.89572471 | M46: =RESUMEN[[#This Row],[Habitaciones vendidas]]*RESUMEN[[#This Row],[Tarifa promedio]] -> 88128
A47: 2021-03-01 | B47: 5 estrellas | C47: 2363 | D47: 241 | E47: 116 | F47: 2358 | G47: 1778 | H47: 236.98724 | I47: 236987.24 | J47: 0.2379868826 | K47: 1.002120441 | L47: 133.2886614 | M47: =RESUMEN[[#This Row],[Habitaciones vendidas]]*RESUMEN[[#This Row],[Tarifa promedio]] -> 236987.24
A48: 2021-03-01 | B48: 4 estrellas | C48: 4109 | D48: 719 | E48: 195 | F48: 3632 | G48: 3666 | H48: 267.43844 | I48: 267438.44 | J48: 0.1644757504 | K48: 1.131332599 | L48: 72.95102019 | M48: =RESUMEN[[#This Row],[Habitaciones vendidas]]*RESUMEN[[#This Row],[Tarifa promedio]] -> 267438.44
A49: 2021-03-01 | B49: 3 estrellas | C49: 702 | D49: 316 | E49: 48 | F49: 519 | G49: 503 | H49: 28.08308 | I49: 28083.08 | J49: 0.05134748877 | K49: 1.352601156 | L49: 55.83117296 | M49: =RESUMEN[[#This Row],[Habitaciones vendidas]]*RESUMEN[[#This Row],[Tarifa promedio]] -> 28083.08
A50: 2021-04-01 | B50: 3 estrellas | C50: 844 | D50: 245 | E50: 60 | F50: 578 | G50: 565 | H50: 31.3672 | I50: 31367.2 | J50: 0.0768707483 | K50: 1.460207612 | L50: 55.51716814 | M50: =RESUMEN[[#This Row],[Habitaciones vendidas]]*RESUMEN[[#This Row],[Tarifa promedio]] -> 31367.2
A51: 2021-04-01 | B51: 5 estrellas | C51: 740 | D51: 40 | E51: 14 | F51: 726 | G51: 332 | H51: 51.32775 | I51: 51327.75 | J51: 0.2766666667 | K51: 1.019283747 | L51: 154.6016566 | M51: =RESUMEN[[#This Row],[Habitaciones vendidas]]*RESUMEN[[#This Row],[Tarifa promedio]] -> 51327.75
A52: 2021-04-01 | B52: 4 estrellas | C52: 3977 | D52: 723 | E52: 147 | F52: 3065 | G52: 3167 | H52: 258.50156 | I52: 258501.56 | J52: 0.1460119871 | K52: 1.297553018 | L52: 81.62347963 | M52: =RESUMEN[[#This Row],[Habitaciones vendidas]]*RESUMEN[[#This Row],[Tarifa promedio]] -> 258501.56
A53: 2021-05-01 | B53: 3 estrellas | C53: 2397 | D53: 416 | E53: 85 | F53: 2105 | G53: 1752 | H53: 94.30711 | I53: 94307.11 | J53: 0.1358560794 | K53: 1.13871734 | L53: 53.82825913 | M53: =RESUMEN[[#This Row],[Habitaciones vendidas]]*RESUMEN[[#This Row],[Tarifa promedio]] -> 94307.11
A54: 2021-05-01 | B54: 4 estrellas | C54: 3414 | D54: 568 | E54: 102 | F54: 2491 | G54: 2321 | H54: 208.0803 | I54: 208080.3 | J54: 0.1318150841 | K54: 1.370533922 | L54: 89.65114175 | M54: =RESUMEN[[#This Row],[Habitaciones vendidas]]*RESUMEN[[#This Row],[Tarifa promedio]] -> 208080.3
A55: 2021-05-01 | B55: 5 estrellas | C55: 1959 | D55: 184 | E55: 19 | F55: 1513 | G55: 1102 | H55: 114.34295 | I55: 114342.95 | J55: 0.193197756 | K55: 1.294778586 | L55: 103.7594828 | M55: =RESUMEN[[#This Row],[Habitaciones vendidas]]*RESUMEN[[#This Row],[Tarifa promedio]] -> 114342.95
A56: 2021-06-01 | B56: 4 estrellas | C56: 4360 | D56: 521 | E56: 196 | F56: 3693 | G56: 3407 | H56: 240.66517 | I56: 240665.17 | J56: 0.217978247 | K56: 1.180611969 | L56: 70.63844144 | M56: =RESUMEN[[#This Row],[Habitaciones vendidas]]*RESUMEN[[#This Row],[Tarifa promedio]] -> 240665.17
A57: 2021-06-01 | B57: 3 estrellas | C57: 3521 | D57: 483 | E57: 86 | F57: 3305 | G57: 2983 | H57: 172.2199 | I57: 172219.9 | J57: 0.2058661146 | K57: 1.065355522 | L57: 57.73379149 | M57: =RESUMEN[[#This Row],[Habitaciones vendidas]]*RESUMEN[[#This Row],[Tarifa promedio]] -> 172219.9
A58: 2021-06-01 | B58: 5 estrellas | C58: 2725 | D58: 208 | E58: 114 | F58: 2725 | G58: 2048 | H58: 202.174 | I58: 202174 | J58: 0.3282051282 | K58: 1 | L58: 98.71777344 | M58: =RESUMEN[[#This Row],[Habitaciones vendidas]]*RESUMEN[[#This Row],[Tarifa promedio]] -> 202174
A59: 2021-07-01 | B59: 3 estrellas | C59: 2899 | D59: 495 | E59: 89 | F59: 2536 | G59: 2414 | H59: 160.47637 | I59: 160476.37 | J59: 0.1573150863 | K59: 1.143138801 | L59: 66.47736951 | M59: =RESUMEN[[#This Row],[Habitaciones vendidas]]*RESUMEN[[#This Row],[Tarifa promedio]] -> 160476.37
A60: 2021-07-01 | B60: 4 estrellas | C60: 5846 | D60: 526 | E60: 171 | F60: 5568 | G60: 4274 | H60: 419.67913 | I60: 419679.13 | J60: 0.262112106 | K60: 1.049928161 | L60: 98.19352597 | M60: =RESUMEN[[#This Row],[Habitaciones vendidas]]*RESUMEN[[#This Row],[Tarifa promedio]] -> 419679.13
A61: 2021-07-01 | B61: 5 estrellas | C61: 3754 | D61: 249 | E61: 112 | F61: 3745 | G61: 2541 | H61: 298.31655 | I61: 298316.55 | J61: 0.3291877186 | K61: 1.002403204 | L61: 117.4012397 | M61: =RESUMEN[[#This Row],[Habitaciones vendidas]]*RESUMEN[[#This Row],[Tarifa promedio]] -> 298316.55
A62: 2021-08-01 | B62: 3 estrellas | C62: 2046 | D62: 347 | E62: 82 | F62: 1606 | G62: 1419 | H62: 70.11779 | I62: 70117.79 | J62: 0.1319141024 | K62: 1.273972603 | L62: 49.41352361 | M62: =RESUMEN[[#This Row],[Habitaciones vendidas]]*RESUMEN[[#This Row],[Tarifa promedio]] -> 70117.79
A63: 2021-08-01 | B63: 4 estrellas | C63: 7227 | D63: 580 | E63: 174 | F63: 6732 | G63: 5793 | H63: 540.9328 | I63: 540932.8 | J63: 0.3221913237 | K63: 1.073529412 | L63: 93.37697221 | M63: =RESUMEN[[#This Row],[Habitaciones vendidas]]*RESUMEN[[#This Row],[Tarifa promedio]] -> 540932.8
A64: 2021-08-01 | B64: 5 estrellas | C64: 8022 | D64: 675 | E64: 131 | F64: 7999 | G64: 6561 | H64: 866.86097 | I64: 866860.97 | J64: 0.3135483871 | K64: 1.002875359 | L64: 132.1232998 | M64: =RESUMEN[[#This Row],[Habitaciones vendidas]]*RESUMEN[[#This Row],[Tarifa promedio]] -> 866860.97
A65: 2021-09-01 | B65: 3 estrellas | C65: 1251 | D65: 298 | E65: 56 | F65: 959 | G65: 1187 | H65: 57.35562 | I65: 57355.62 | J65: 0.1327740492 | K65: 1.304483837 | L65: 48.31981466 | M65: =RESUMEN[[#This Row],[Habitaciones vendidas]]*RESUMEN[[#This Row],[Tarifa promedio]] -> 57355.62
A66: 2021-09-01 | B66: 4 estrellas | C66: 9452 | D66: 994 | E66: 249 | F66: 8650 | G66: 8323 | H66: 705.7611 | I66: 705761.1 | J66: 0.2791079812 | K66: 1.092716763 | L66: 84.79647963 | M66: =RESUMEN[[#This Row],[Habitaciones vendidas]]*RESUMEN[[#This Row],[Tarifa promedio]] -> 705761.1
A67: 2021-09-01 | B67: 5 estrellas | C67: 4399 | D67: 242 | E67: 115 | F67: 4397 | G67: 3200 | H67: 376.52306 | I67: 376523.06 | J67: 0.4407713499 | K67: 1.000454856 | L67: 117.6634562 | M67: =RESUMEN[[#This Row],[Habitaciones vendidas]]*RESUMEN[[#This Row],[Tarifa promedio]] -> 376523.06
A68: 2021-10-31 | B68: 4 estrellas | C68: 12137 | D68: 923 | E68: 259 | F68: 10040 | G68: 8951 | H68: 775.75044 | I68: 775750.44 | J68: 0.3128298326 | K68: 1.208864542 | L68: 86.66634343 | M68: =RESUMEN[[#This Row],[Habitaciones vendidas]]*RESUMEN[[#This Row],[Tarifa promedio]] -> 775750.44
A69: 2021-10-31 | B69: 3 estrellas | C69: 2707 | D69: 391 | E69: 89 | F69: 2313 | G69: 2460 | H69: 189.46396 | I69: 189463.96 | J69: 0.2029535517 | K69: 1.170341548 | L69: 77.01786992 | M69: =RESUMEN[[#This Row],[Habitaciones vendidas]]*RESUMEN[[#This Row],[Tarifa promedio]] -> 189463.96
A70: 2021-10-31 | B70: 5 estrellas | C70: 3956 | D70: 217 | E70: 138 | F70: 3942 | G70: 3065 | H70: 344.06618 | I70: 344066.18 | J70: 0.4556265795 | K70: 1.003551497 | L70: 112.2565024 | M70: =RESUMEN[[#This Row],[Habitaciones vendidas]]*RESUMEN[[#This Row],[Tarifa promedio]] -> 344066.18

Sheet BASE (hidden)
A1: FECHA | B1: DIAS DEL MES | C1: MES | D1: AÑO | E1: NÚMERO DE REGISTRO TURÍSTICO | F1: SECTOR | G1: CATEGORÍA DE ALOJAMIENTO DEL ESTABLECIMIENTO | H1: TIPO DE ALOJAMIENTO | I1: TOTAL DE HABITACIONES | J1: VENTAS POR ALOJAMIENTO DURANTE EL MES DE LA ENCUESTA | K1: VENTAS POR ALOJAMIENTO DURANTE EL MES (MILES) | L1: TOTAL HABITACIONES VENDIDAS | M1: LLEGADAS EN EL MES RESIDENTES | N1: LLEGADAS EN EL MES NO RESIDENTES | O1: TOTAL LLEGADAS | P1: PERNOCTACIONES RESIDENTES | Q1: PERNOCTACIONES NO RESIDENTES | R1: TOTAL PERNOCTACIONES | S1: EMPLEOS
A2: 43800 | B2: =DAY(EOMONTH(Base[[#This Row],[FECHA]],0)) -> 31 | C2: =PROPER(TEXT(Base[[#This Row],[FECHA]],"MMMM")) -> Diciembre | D2: =YEAR(Base[[#This Row],[FECHA]]) -> 2019 | E2: PUIOAJ-00000021 | F2: La Mariscal | G2: 3 estrellas | H2: Hotel | I2: 40 | J2: 12000 | K2: =Base[[#This Row],[VENTAS POR ALOJAMIENTO DURANTE EL MES DE LA ENCUESTA]]/1000 -> 12 | L2: 395 | M2: 337 | N2: 21 | O2: 358 | P2: 372 | Q2: 32 | R2: 404 | S2: 8
A3: 43800 | B3: =DAY(EOMONTH(Base[[#This Row],[FECHA]],0)) -> 31 | C3: =PROPER(TEXT(Base[[#This Row],[FECHA]],"MMMM")) -> Diciembre | D3: =YEAR(Base[[#This Row],[FECHA]]) -> 2019 | E3: PUIOAJ-00004601 | F3: Eugenio Espejo | G3: 3 estrellas | H3: Hotel | I3: 12 | J3: 4600.5 | K3: =Base[[#This Row],[VENTAS POR ALOJAMIENTO DURANTE EL MES DE LA ENCUESTA]]/1000 -> 4.6005 | L3: 141 | M3: 195 | N3: 141 | O3: 336 | P3: 195 | Q3: 141 | R3: 336 | S3: 6
A4: 43800 | B4: =DAY(EOMONTH(Base[[#This Row],[FECHA]],0)) -> 31 | C4: =PROPER(TEXT(Base[[#This Row],[FECHA]],"MMMM")) -> Diciembre | D4: =YEAR(Base[[#This Row],[FECHA]]) -> 2019 | E4: PUIOAJ-00000035 | F4: Eugenio Espejo | G4: 3 estrellas | H4: Hotel | I4: 13 | K4: =Base[[#This Row],[VENTAS POR ALOJAMIENTO DURANTE EL MES DE LA ENCUESTA]]/1000 -> 0 | L4: 13 | M4: 3 | N4: 14 | O4: 17 | P4: 14 | Q4: 35 | R4: 49 | S4: 0
A5: 43800 | B5: =DAY(EOMONTH(Base[[#This Row],[FECHA]],0)) -> 31 | C5: =PROPER(TEXT(Base[[#This Row],[FECHA]],"MMMM")) -> Diciembre | D5: =YEAR(Base[[#This Row],[FECHA]]) -> 2019 | E5: PUIOAJ-00000290 | F5: La Delicia | G5: 4 estrellas | H5: Lodge | I5: 14 | J5: 39000 | K5: =Base[[#This Row],[VENTAS POR ALOJAMIENTO DURANTE EL MES DE LA ENCUESTA]]/1000 -> 39 | L5: 176 | M5: 48 | N5: 306 | O5: 354 | P5: 48 | Q5: 306 | R5: 354 | S5: 0
A6: 43800 | B6: =DAY(EOMONTH(Base[[#This Row],[FECHA]],0)) -> 31 | C6: =PROPER(TEXT(Base[[#This Row],[FECHA]],"MMMM")) -> Diciembre | D6: =YEAR(Base[[#This Row],[FECHA]]) -> 2019 | E6: PUIOAJ-00000541 | F6: La Mariscal | G6: 4 estrellas | H6: Hotel | I6: 46 | J6: 34515 | K6: =Base[[#This Row],[VENTAS POR ALOJAMIENTO DURANTE EL MES DE LA ENCUESTA]]/1000 -> 34.515 | L6: 615 | M6: 319 | N6: 615 | O6: 934 | P6: 319 | Q6: 615 | R6: 934 | S6: 19
A7: 43800 | B7: =DAY(EOMONTH(Base[[#This Row],[FECHA]],0)) -> 31 | C7: =PROPER(TEXT(Base[[#This Row],[FECHA]],"MMMM")) -> Diciembre | D7: =YEAR(Base[[#This Row],[FECHA]]) -> 2019 | E7: PUIOAJ-00001434 | F7: La Mariscal | G7: 3 estrellas | H7: Hotel | I7: 8 | J7: 1325 | K7: =Base[[#This Row],[VENTAS POR ALOJAMIENTO DURANTE EL MES DE LA ENCUESTA]]/1000 -> 1.325 | L7: 8 | M7: 7 | N7: 15 | O7: 22 | P7: 14 | Q7: 30 | R7: 44 | S7: 3
A8: 43800 | B8: =DAY(EOMONTH(Base[[#This Row],[FECHA]],0)) -> 31 | C8: =PROPER(TEXT(Base[[#This Row],[FECHA]],"MMMM")) -> Diciembre | D8: =YEAR(Base[[#This Row],[FECHA]]) -> 2019 | E8: PUIOAJ-00000392 | F8: Manuela Sáenz | G8: 4 estrellas | H8: Hotel | I8: 25 | K8: =Base[[#This Row],[VENTAS POR ALOJAMIENTO DURANTE EL MES DE LA ENCUESTA]]/1000 -> 0 | L8: 151 | M8: 12 | N8: 147 | O8: 159 | P8: 12 | Q8: 293 | R8: 305 | S8: 15
A9: 43800 | B9: =DAY(EOMONTH(Base[[#This Row],[FECHA]],0)) -> 31 | C9: =PROPER(TEXT(Base[[#This Row],[FECHA]],"MMMM")) -> Diciembre | D9: =YEAR(Base[[#This Row],[FECHA]]) -> 2019 | E9: PUIOAJ-00000423 | F9: Tumbaco | G9: 5 estrellas | H9: Hostería | I9: 7 | J9: 4078 | K9: =Base[[#This Row],[VENTAS POR ALOJAMIENTO DURANTE EL MES DE LA ENCUESTA]]/1000 -> 4.078 | L9: 40 | M9: 18 | N9: 62 | O9: 80 | P9: 18 | Q9: 62 | R9: 80 | S9: 7
A10: 43800 | B10: =DAY(EOMONTH(Base[[#This Row],[FECHA]],0)) -> 31 | C10: =PROPER(TEXT(Base[[#This Row],[FECHA]],"MMMM")) -> Diciembre | D10: =YEAR(Base[[#This Row],[FECHA]]) -> 2019 | E10: PUIOAJ-00000582 | F10: Tumbaco | G10: 5 estrellas | H10: Hacienda Turística | I10: 11 | J10: 3790 | K10: =Base[[#This Row],[VENTAS POR ALOJAMIENTO DURANTE EL MES DE LA ENCUESTA]]/1000 -> 3.79 | L10: 32 | M10: 40 | N10: 12 | O10: 52 | P10: 40 | Q10: 12 | R10: 52 | S10: 4
A11: 43800 | B11: =DAY(EOMONTH(Base[[#This Row],[FECHA]],0)) -> 31 | C11: =PROPER(TEXT(Base[[#This Row],[FECHA]],"MMMM")) -> Diciembre | D11: =YEAR(Base[[#This Row],[FECHA]]) -> 2019 | E11: PUIOAJ-00000350 | F11: La Mariscal | G11: 3 estrellas | H11: Hotel | I11: 10 | J11: 5691.75 | K11: =Base[[#This Row],[VENTAS POR ALOJAMIENTO DURANTE EL MES DE LA ENCUESTA]]/1000 -> 5.69175 | L11: 114 | N11: 21 | O11: 21 | Q11: 106 | R11: 106 | S11: 2
A12: 43800 | B12: =DAY(EOMONTH(Base[[#This Row],[FECHA]],0)) -> 31 | C12: =PROPER(TEXT(Base[[#This Row],[FECHA]],"MMMM")) -> Diciembre | D12: =YEAR(Base[[#This Row],[FECHA]]) -> 2019 | E12: PUIOAJ-00000039 | F12: La Mariscal | G12: 3 estrellas | H12: Hotel | I12: 20 | J12: 6330.09 | K12: =Base[[#This Row],[VENTAS POR ALOJAMIENTO DURANTE EL MES DE LA ENCUESTA]]/1000 -> 6.33009 | L12: 215 | M12: 16 | N12: 207 | O12: 223 | P12: 16 | Q12: 367 | R12: 383 | S12: 9
A13: 43800 | B13: =DAY(EOMONTH(Base[[#This Row],[FECHA]],0)) -> 31 | C13: =PROPER(TEXT(Base[[#This Row],[FECHA]],"MMMM")) -> Diciembre | D13: =YEAR(Base[[#This Row],[FECHA]]) -> 2019 | E13: PUIOAJ-00000024 | F13: Manuela Sáenz | G13: 4 estrellas | H13: Hotel | I13: 18 | J13: 3657 | K13: =Base[[#This Row],[VENTAS POR ALOJAMIENTO DURANTE EL MES DE LA ENCUESTA]]/1000 -> 3.657 | L13: 42 | N13: 15 | O13: 15 | Q13: 15 | R13: 15 | S13: 6
A14: 43800 | B14: =DAY(EOMONTH(Base[[#This Row],[FECHA]],0)) -> 31 | C14: =PROPER(TEXT(Base[[#This Row],[FECHA]],"MMMM")) -> Diciembre | D14: =YEAR(Base[[#This Row],[FECHA]]) -> 2019 | E14: PUIOAJ-00000233 | F14: Eugenio Espejo | G14: 4 estrellas | H14: Hotel | I14: 23 | J14: 3600 | K14: =Base[[#This Row],[VENTAS POR ALOJAMIENTO DURANTE EL MES DE LA ENCUESTA]]/1000 -> 3.6 | L14: 45 | M14: 22 | N14: 28 | O14: 50 | P14: 22 | Q14: 28 | R14: 50 | S14: 4
A15: 43800 | B15: =DAY(EOMONTH(Base[[#This Row],[FECHA]],0)) -> 31 | C15: =PROPER(TEXT(Base[[#This Row],[FECHA]],"MMMM")) -> Diciembre | D15: =YEAR(Base[[#This Row],[FECHA]]) -> 2019 | E15: PUIOAJ-00001397 | F15: Tumbaco | G15: 5 estrellas | H15: Hacienda Turística | I15: 7 | J15: 2589.5 | K15: =Base[[#This Row],[VENTAS POR ALOJAMIENTO DURANTE EL MES DE LA ENCUESTA]]/1000 -> 2.5895 | L15: 22 | M15: 29 | N15: 19 | O15: 48 | P15: 29 | Q15: 19 | R15: 48 | S15: 9
A16: 43800 | B16: =DAY(EOMONTH(Base[[#This Row],[FECHA]],0)) -> 31 | C16: =PROPER(TEXT(Base[[#This Row],[FECHA]],"MMMM")) -> Diciembre | D16: =YEAR(Base[[#This Row],[FECHA]]) -> 2019 | E16: PUIOAJ-00000064 | F16: La Mariscal | G16: 5 estrellas | H16: Hotel | I16: 255 | J16: 373271 | K16: =Base[[#This Row],[VENTAS POR ALOJAMIENTO DURANTE EL MES DE LA ENCUESTA]]/1000 -> 373.271 | L16: 4053 | M16: 359 | N16: 2034 | O16: 2393 | P16: 608 | Q16: 3445 | R16: 4053 | S16: 453
A17: 43800 | B17: =DAY(EOMONTH(Base[[#This Row],[FECHA]],0)) -> 31 | C17: =PROPER(TEXT(Base[[#This Row],[FECHA]],"MMMM")) -> Diciembre | D17: =YEAR(Base[[#This Row],[FECHA]]) -> 2019 | E17: PUIOAJ-00000223 | F17: La Mariscal | G17: 4 estrellas | H17: Hotel | I17: 141 | J17: 152796.53 | K17: =Base[[#This Row],[VENTAS POR ALOJAMIENTO DURANTE EL MES DE LA ENCUESTA]]/1000 -> 152.79653 | L17: 1960 | O17: 0 | P17: 665 | Q17: 1305 | R17: 1970 | S17: 44
A18: 43800 | B18: =DAY(EOMONTH(Base[[#This Row],[FECHA]],0)) -> 31 | C18: =PROPER(TEXT(Base[[#This Row],[FECHA]],"MMMM")) -> Diciembre | D18: =YEAR(Base[[#This Row],[FECHA]]) -> 2019 | E18: PUIOAJ-00000575 | F18: La Delicia | G18: 3 estrellas | H18: Hostal | I18: 7 | J18: 900 | K18: =Base[[#This Row],[VENTAS POR ALOJAMIENTO DURANTE EL MES DE LA ENCUESTA]]/1000 -> 0.9 | L18: 6 | M18: 12 | O18: 12 | P18: 15 | R18: 15 | S18: 3
A19: 43800 | B19: =DAY(EOMONTH(Base[[#This Row],[FECHA]],0)) -> 31 | C19: =PROPER(TEXT(Base[[#This Row],[FECHA]],"MMMM")) -> Diciembre | D19: =YEAR(Base[[#This Row],[FECHA]]) -> 2019 | E19: PUIOAJ-00000435 | F19: Manuela Sáenz | G19: 3 estrellas | H19: Hostal | I19: 6 | J19: 4000 | K19: =Base[[#This Row],[VENTAS POR ALOJAMIENTO DURANTE EL MES DE LA ENCUESTA]]/1000 -> 4 | L19: 12 | N19: 40 | O19: 40 | Q19: 40 | R19: 40 | S19: 6
A20: 43800 | B20: =DAY(EOMONTH(Base[[#This Row],[FECHA]],0)) -> 31 | C20: =PROPER(TEXT(Base[[#This Row],[FECHA]],"MMMM")) -> Diciembre | D20: =YEAR(Base[[#This Row],[FECHA]]) -> 2019 | E20: PUIOAJ-00000201 | F20: La Mariscal | G20: 3 estrellas | H20: Hostal | I20: 14 | K20: =Base[[#This Row],[VENTAS POR ALOJAMIENTO DURANTE EL MES DE LA ENCUESTA]]/1000 -> 0 | L20: 14 | M20: 12 | O20: 12 | P20: 19 | R20: 19 | S20: 1
A21: 43800 | B21: =DAY(EOMONTH(Base[[#This Row],[FECHA]],0)) -> 31 | C21: =PROPER(TEXT(Base[[#This Row],[FECHA]],"MMMM")) -> Diciembre | D21: =YEAR(Base[[#This Row],[FECHA]]) -> 2019 | E21: PUIOAJ-00000520 | F21: La Delicia | G21: 3 estrellas | H21: Hostería | I21: 14 | J21: 1200 | K21: =Base[[#This Row],[VENTAS POR ALOJAMIENTO DURANTE EL MES DE LA ENCUESTA]]/1000 -> 1.2 | L21: 40 | M21: 57 | N21: 3 | O21: 60 | P21: 57 | Q21: 3 | R21: 60 | S21: 14
A22: 43800 | B22: =DAY(EOMONTH(Base[[#This Row],[FECHA]],0)) -> 31 | C22: =PROPER(TEXT(Base[[#This Row],[FECHA]],"MMMM")) -> Diciembre | D22: =YEAR(Base[[#This Row],[FECHA]]) -> 2019 | E22: PUIOAJ-00001516 | F22: Los Chillos | G22: 3 estrellas | H22: Hostería | I22: 13 | J22: 500 | K22: =Base[[#This Row],[VENTAS POR ALOJAMIENTO DURANTE EL MES DE LA ENCUESTA]]/1000 -> 0.5 | L22: 14 | M22: 30 | O22: 30 | P22: 30 | R22: 30 | S22: 7
A23: 43800 | B23: =DAY(EOMONTH(Base[[#This Row],[FECHA]],0)) -> 31 | C23: =PROPER(TEXT(Base[[#This Row],[FECHA]],"MMMM")) -> Diciembre | D23: =YEAR(Base[[#This Row],[FECHA]]) -> 2019 | E23: PUIOAJ-00000110 | F23: Eugenio Espejo | G23: 3 estrellas | H23: Hostería | I23: 10 | J23: 98.4 | K23: =Base[[#This Row],[VENTAS POR ALOJAMIENTO DURANTE EL MES DE LA ENCUESTA]]/1000 -> 0.0984 | L23: 20 | M23: 20 | O23: 20 | P23: 20 | R23: 20 | S23: 6
A24: 43800 | B24: =DAY(EOMONTH(Base[[#This Row],[FECHA]],0)) -> 31 | C24: =PROPER(TEXT(Base[[#This Row],[FECHA]],"MMMM")) -> Diciembre | D24: =YEAR(Base[[#This Row],[FECHA]]) -> 2019 | E24: PUIOAJ-00000033 | F24: Los Chillos | G24: 3 estrellas | H24: Hostería | K24: =Base[[#This Row],[VENTAS POR ALOJAMIENTO DURANTE EL MES DE LA ENCUESTA]]/1000 -> 0 | L24: 0 | O24: 0 | R24: 0 | S24: 0
A25: 43800 | B25: =DAY(EOMONTH(Base[[#This Row],[FECHA]],0)) -> 31 | C25: =PROPER(TEXT(Base[[#This Row],[FECHA]],"MMMM")) -> Diciembre | D25: =YEAR(Base[[#This Row],[FECHA]]) -> 2019 | E25: PUIOAJ-00000374 | F25: Los Chillos | G25: 4 estrellas | H25: Hostería | I25: 12 | J25: 507.28 | K25: =Base[[#This Row],[VENTAS POR ALOJAMIENTO DURANTE EL MES DE LA ENCUESTA]]/1000 -> 0.50728 | L25: 128 | O25: 0 | R25: 0 | S25: 7
A26: 43800 | B26: =DAY(EOMONTH(Base[[#This Row],[FECHA]],0)) -> 31 | C26: =PROPER(TEXT(Base[[#This Row],[FECHA]],"MMMM")) -> Diciembre | D26: =YEAR(Base[[#This Row],[FECHA]]) -> 2019 | E26: PUIOAJ-00004644 | F26: Tumbaco | G26: 3 estrellas | H26: Hostería | I26: 6 | J26: 1300 | K26: =Base[[#This Row],[VENTAS POR ALOJAMIENTO DURANTE EL MES DE LA ENCUESTA]]/1000 -> 1.3 | L26: 27 | M26: 50 | N26: 6 | O26: 56 | P26: 50 | Q26: 6 | R26: 56 | S26: 6
A27: 43800 | B27: =DAY(EOMONTH(Base[[#This Row],[FECHA]],0)) -> 31 | C27: =PROPER(TEXT(Base[[#This Row],[FECHA]],"MMMM")) -> Diciembre | D27: =YEAR(Base[[#This Row],[FECHA]]) -> 2019 | E27: PUIOAJ-00000171 | F27: La Mariscal | G27: 3 estrellas | H27: Hotel | I27: 40 | J27: 17989.48 | K27: =Base[[#This Row],[VENTAS POR ALOJAMIENTO DURANTE EL MES DE LA ENCUESTA]]/1000 -> 17.98948 | L27: 331 | M27: 116 | N27: 214 | O27: 330 | P27: 357 | Q27: 214 | R27: 571 | S27: 29
A28: 43800 | B28: =DAY(EOMONTH(Base[[#This Row],[FECHA]],0)) -> 31 | C28: =PROPER(TEXT(Base[[#This Row],[FECHA]],"MMMM")) -> Diciembre | D28: =YEAR(Base[[#This Row],[FECHA]]) -> 2019 | E28: PUIOAJ-00000209 | F28: La Mariscal | G28: 3 estrellas | H28: Hotel | I28: 15 | J28: 2766 | K28: =Base[[#This Row],[VENTAS POR ALOJAMIENTO DURANTE EL MES DE LA ENCUESTA]]/1000 -> 2.766 | L28: 69 | N28: 25 | O28: 25 | Q28: 25 | R28: 25 | S28: 5
A29: 43800 | B29: =DAY(EOMONTH(Base[[#This Row],[FECHA]],0)) -> 31 | C29: =PROPER(TEXT(Base[[#This Row],[FECHA]],"MMMM")) -> Diciembre | D29: =YEAR(Base[[#This Row],[FECHA]]) -> 2019 | E29: PUIOAJ-00000156 | F29: Manuela Sáenz | G29: 4 estrellas | H29: Hotel | I29: 49 | J29: 85264.01 | K29: =Base[[#This Row],[VENTAS POR ALOJAMIENTO DURANTE EL MES DE LA ENCUESTA]]/1000 -> 85.26401 | L29: 390 | M29: 592 | N29: 231 | O29: 823 | P29: 592 | Q29: 231 | R29: 823 | S29: 44
A30: 43800 | B30: =DAY(EOMONTH(Base[[#This Row],[FECHA]],0)) -> 31 | C30: =PROPER(TEXT(Base[[#This Row],[FECHA]],"MMMM")) -> Diciembre | D30: =YEAR(Base[[#This Row],[FECHA]]) -> 2019 | E30: PUIOAJ-00000102 | F30: La Mariscal | G30: 3 estrellas | H30: Hotel | I30: 36 | J30: 5582.82 | K30: =Base[[#This Row],[VENTAS POR ALOJAMIENTO DURANTE EL MES DE LA ENCUESTA]]/1000 -> 5.58282 | L30: 171 | M30: 153 | O30: 153 | P30: 153 | R30: 153 | S30: 9
A31: 43800 | B31: =DAY(EOMONTH(Base[[#This Row],[FECHA]],0)) -> 31 | C31: =PROPER(TEXT(Base[[#This Row],[FECHA]],"MMMM")) -> Diciembre | D31: =YEAR(Base[[#This Row],[FECHA]]) -> 2019 | E31: PUIOAJ-00000572 | F31: Manuela Sáenz | G31: 3 estrellas | H31: Hotel | I31: 24 | J31: 17000 | K31: =Base[[#This Row],[VENTAS POR ALOJAMIENTO DURANTE EL MES DE LA ENCUESTA]]/1000 -> 17 | L31: 198 | M31: 35 | N31: 163 | O31: 198 | P31: 35 | Q31: 163 | R31: 198 | S31: 10
A32: 43800 | B32: =DAY(EOMONTH(Base[[#This Row],[FECHA]],0)) -> 31 | C32: =PROPER(TEXT(Base[[#This Row],[FECHA]],"MMMM")) -> Diciembre | D32: =YEAR(Base[[#This Row],[FECHA]]) -> 2019 | E32: PUIOAJ-00000392 | F32: Manuela Sáenz | G32: 3 estrellas | H32: Hotel | I32: 10 | J32: 19890.45 | K32: =Base[[#This Row],[VENTAS POR ALOJAMIENTO DURANTE EL MES DE LA ENCUESTA]]/1000 -> 19.89045 | L32: 136 | O32: 0 | R32: 0 | S32: 6
A33: 43800 | B33: =DAY(EOMONTH(Base[[#This Row],[FECHA]],0)) -> 31 | C33: =PROPER(TEXT(Base[[#This Row],[FECHA]],"MMMM")) -> Diciembre | D33: =YEAR(Base[[#This Row],[FECHA]]) -> 2019 | E33: PUIOAJ-00000152 | F33: Eugenio Espejo | G33: 4 estrellas | H33: Hotel | I33: 152 | J33: 167518.81 | K33: =Base[[#This Row],[VENTAS POR ALOJAMIENTO DURANTE EL MES DE LA ENCUESTA]]/1000 -> 167.51881 | L33: 2657 | M33: 1456 | N33: 644 | O33: 2100 | P33: 1456 | Q33: 644 | R33: 2100 | S33: 67
A34: 43800 | B34: =DAY(EOMONTH(Base[[#This Row],[FECHA]],0)) -> 31 | C34: =PROPER(TEXT(Base[[#This Row],[FECHA]],"MMMM")) -> Diciembre | D34: =YEAR(Base[[#This Row],[FECHA]]) -> 2019 | E34: PUIOAJ-00000036 | F34: Eugenio Espejo | G34: 3 estrellas | H34: Hotel | I34: 14 | J34: 2336.78 | K34: =Base[[#This Row],[VENTAS POR ALOJAMIENTO DURANTE EL MES DE LA ENCUESTA]]/1000 -> 2.33678 | L34: 60 | M34: 64 | N34: 16 | O34: 80 | P34: 64 | Q34: 16 | R34: 80 | S34: 2
A35: 43800 | B35: =DAY(EOMONTH(Base[[#This Row],[FECHA]],0)) -> 31 | C35: =PROPER(TEXT(Base[[#This Row],[FECHA]],"MMMM")) -> Diciembre | D35: =YEAR(Base[[#This Row],[FECHA]]) -> 2019 | E35: PUIOAJ-00000402 | F35: Eugenio Espejo | G35: 3 estrellas | H35: Hotel | I35: 40 | J35: 3240 | K35: =Base[[#This Row],[VENTAS POR ALOJAMIENTO DURANTE EL MES DE LA ENCUESTA]]/1000 -> 3.24 | L35: 180 | M35: 90 | N35: 90 | O35: 180 | P35: 90 | Q35: 90 | R35: 180 | S35: 6
A36: 43800 | B36: =DAY(EOMONTH(Base[[#This Row],[FECHA]],0)) -> 31 | C36: =PROPER(TEXT(Base[[#This Row],[FECHA]],"MMMM")) -> Diciembre | D36: =YEAR(Base[[#This Row],[FECHA]]) -> 2019 | E36: PUIOAJ-00000170 | F36: Manuela Sáenz | G36: 5 estrellas | H36: Hotel | I36: 15 | J36: 53961 | K36: =Base[[#This Row],[VENTAS POR ALOJAMIENTO DURANTE EL MES DE LA ENCUESTA]]/1000 -> 53.961 | L36: 268 | M36: 10 | N36: 526 | O36: 536 | P36: 10 | Q36: 526 | R36: 536 | S36: 8
A37: 43800 | B37: =DAY(EOMONTH(Base[[#This Row],[FECHA]],0)) -> 31 | C37: =PROPER(TEXT(Base[[#This Row],[FECHA]],"MMMM")) -> Diciembre | D37: =YEAR(Base[[#This Row],[FECHA]]) -> 2019 | E37: PUIOAJ-00000072 | F37: La Mariscal | G37: 4 estrellas | H37: Hotel | J37: 42560.01 | K37: =Base[[#This Row],[VENTAS POR ALOJAMIENTO DURANTE EL MES DE LA ENCUESTA]]/1000 -> 42.56001 | L37: 896 | O37: 0 | R37: 0 | S37: 81
A38: 43800 | B38: =DAY(EOMONTH(Base[[#This Row],[FECHA]],0)) -> 31 | C38: =PROPER(TEXT(Base[[#This Row],[FECHA]],"MMMM")) -> Diciembre | D38: =YEAR(Base[[#This Row],[FECHA]]) -> 2019 | E38: PUIOAJ-00000075 | F38: Manuela Sáenz | G38: 4 estrellas | H38: Hotel | I38: 80 | J38: 15273 | K38: =Base[[#This Row],[VENTAS POR ALOJAMIENTO DURANTE EL MES DE LA ENCUESTA]]/1000 -> 15.273 | L38: 240 | O38: 0 | P38: 363 | Q38: 157 | R38: 520 | S38: 35
A39: 43800 | B39: =DAY(EOMONTH(Base[[#This Row],[FECHA]],0)) -> 31 | C39: =PROPER(TEXT(Base[[#This Row],[FECHA]],"MMMM")) -> Diciembre | D39: =YEAR(Base[[#This Row],[FECHA]]) -> 2019 | E39: PUIOAJ-00000274 | F39: Eugenio Espejo | G39: 3 estrellas | H39: Hotel | I39: 13 | J39: 8358.13 | K39: =Base[[#This Row],[VENTAS POR ALOJAMIENTO DURANTE EL MES DE LA ENCUESTA]]/1000 -> 8.35813 | L39: 185 | M39: 134 | N39: 5 | O39: 139 | P39: 134 | Q39: 5 | R39: 139 | S39: 0
A40: 43800 | B40: =DAY(EOMONTH(Base[[#This Row],[FECHA]],0)) -> 31 | C40: =PROPER(TEXT(Base[[#This Row],[FECHA]],"MMMM")) -> Diciembre | D40: =YEAR(Base[[#This Row],[FECHA]]) -> 2019 | E40: PUIOAJ-00000505 | F40: Tumbaco | G40: 3 estrellas | H40: Hostal | I40: 9 | J40: 433.85 | K40: =Base[[#This Row],[VENTAS POR ALOJAMIENTO DURANTE EL MES DE LA ENCUESTA]]/1000 -> 0.43385 | L40: 15 | M40: 11 | N40: 4 | O40: 15 | P40: 11 | Q40: 4 | R40: 15 | S40: 2
A41: 43800 | B41: =DAY(EOMONTH(Base[[#This Row],[FECHA]],0)) -> 31 | C41: =PROPER(TEXT(Base[[#This Row],[FECHA]],"MMMM")) -> Diciembre | D41: =YEAR(Base[[#This Row],[FECHA]]) -> 2019 | E41: PUIOAJ-00001479 | F41: Eloy Alfaro | G41: 3 estrellas | H41: Hotel | I41: 40 | J41: 2500 | K41: =Base[[#This Row],[VENTAS POR ALOJAMIENTO DURANTE EL MES DE LA ENCUESTA]]/1000 -> 2.5 | L41: 40 | M41: 6 | O41: 6 | P41: 6 | R41: 6 | S41: 13
A42: 43800 | B42: =DAY(EOMONTH(Base[[#This Row],[FECHA]],0)) -> 31 | C42: =PROPER(TEXT(Base[[#This Row],[FECHA]],"MMMM")) -> Diciembre | D42: =YEAR(Base[[#This Row],[FECHA]]) -> 2019 | E42: PUIOAJ-00000080 | F42: Eugenio Espejo | G42: 3 estrellas | H42: Hotel | I42: 37 | J42: 2610.68 | K42: =Base[[#This Row],[VENTAS POR ALOJAMIENTO DURANTE EL MES DE LA ENCUESTA]]/1000 -> 2.61068 | L42: 191 | M42: 3 | O42: 3 | P42: 3 | R42: 3 | S42: 4
A43: 43800 | B43: =DAY(EOMONTH(Base[[#This Row],[FECHA]],0)) -> 31 | C43: =PROPER(TEXT(Base[[#This Row],[FECHA]],"MMMM")) -> Diciembre | D43: =YEAR(Base[[#This Row],[FECHA]]) -> 2019 | E43: PUIOAJ-00000108 | F43: Los Chillos | G43: 3 estrellas | H43: Hostería | I43: 10 | J43: 400 | K43: =Base[[#This Row],[VENTAS POR ALOJAMIENTO DURANTE EL MES DE LA ENCUESTA]]/1000 -> 0.4 | L43: 10 | M43: 8 | O43: 8 | P43: 8 | R43: 8 | S43: 12
A44: 43800 | B44: =DAY(EOMONTH(Base[[#This Row],[FECHA]],0)) -> 31 | C44: =PROPER(TEXT(Base[[#This Row],[FECHA]],"MMMM")) -> Diciembre | D44: =YEAR(Base[[#This Row],[FECHA]]) -> 2019 | E44: PUIOAJ-00000085 | F44: Manuela Sáenz | G44: 3 estrellas | H44: Hotel | I44: 29 | J44: 1992.61 | K44: =Base[[#This Row],[VENTAS POR ALOJAMIENTO DURANTE EL MES DE LA ENCUESTA]]/1000 -> 1.99261 | L44: 0 | O44: 0 | R44: 0 | S44: 6
A45: 43800 | B45: =DAY(EOMONTH(Base[[#This Row],[FECHA]],0)) -> 31 | C45: =PROPER(TEXT(Base[[#This Row],[FECHA]],"MMMM")) -> Diciembre | D45: =YEAR(Base[[#This Row],[FECHA]]) -> 2019 | E45: PUIOAJ-00000263 | F45: La Mariscal | G45: 4 estrellas | H45: Hotel | J45: 32394.84 | K45: =Base[[#This Row],[VENTAS POR ALOJAMIENTO DURANTE EL MES DE LA ENCUESTA]]/1000 -> 32.39484 | L45: 527 | M45: 20 | N45: 875 | O45: 895 | P45: 20 | Q45: 875 | R45: 895 | S45: 20
A46: 43800 | B46: =DAY(EOMONTH(Base[[#This Row],[FECHA]],0)) -> 31 | C46: =PROPER(TEXT(Base[[#This Row],[FECHA]],"MMMM")) -> Diciembre | D46: =YEAR(Base[[#This Row],[FECHA]]) -> 2019 | E46: PUIOAJ-00001636 | F46: Tumbaco | G46: 3 estrellas | H46: Hotel | I46: 18 | J46: 13509.89 | K46: =Base[[#This Row],[VENTAS POR ALOJAMIENTO DURANTE EL MES DE LA ENCUESTA]]/1000 -> 13.50989 | L46: 0 | O46: 0 | R46: 0 | S46: 9
A47: 43800 | B47: =DAY(EOMONTH(Base[[#This Row],[FECHA]],0)) -> 31 | C47: =PROPER(TEXT(Base[[#This Row],[FECHA]],"MMMM")) -> Diciembre | D47: =YEAR(Base[[#This Row],[FECHA]]) -> 2019 | E47: PUIOAJ-00001440 | F47: Manuela Sáenz | G47: 5 estrellas | H47: Hotel | I47: 10 | K47: =Base[[#This Row],[VENTAS POR ALOJAMIENTO DURANTE EL MES DE LA ENCUESTA]]/1000 -> 0 | L47: 186 | M47: 3 | N47: 92 | O47: 95 | P47: 3 | Q47: 92 | R47: 95 | S47: 0
A48: 43800 | B48: =DAY(EOMONTH(Base[[#This Row],[FECHA]],0)) -> 31 | C48: =PROPER(TEXT(Base[[#This Row],[FECHA]],"MMMM")) -> Diciembre | D48: =YEAR(Base[[#This Row],[FECHA]]) -> 2019 | E48: PUIOAJ-00000071 | F48: Manuela Sáenz | G48: 3 estrellas | H48: Hotel | I48: 41 | J48: 6523.42 | K48: =Base[[#This Row],[VENTAS POR ALOJAMIENTO DURANTE EL MES DE LA ENCUESTA]]/1000 -> 6.52342 | L48: 164 | M48: 266 | O48: 266 | P48: 266 | R48: 266 | S48: 8
A49: 43800 | B49: =DAY(EOMONTH(Base[[#This Row],[FECHA]],0)) -> 31 | C49: =PROPER(TEXT(Base[[#This Row],[FECHA]],"MMMM")) -> Diciembre | D49: =YEAR(Base[[#This Row],[FECHA]]) -> 2019 | E49: PUIOAJ-00000081 | F49: Manuela Sáenz | G49: 3 estrellas | H49: Hotel | I49: 21 | J49: 1297 | K49: =Base[[#This Row],[VENTAS POR ALOJAMIENTO DURANTE EL MES DE LA ENCUESTA]]/1000 -> 1.297 | L49: 0 | M49: 46 | N49: 33 | O49: 79 | P49: 46 | Q49: 33 | R49: 79 | S49: 4
A50: 43800 | B50: =DAY(EOMONTH(Base[[#This Row],[FECHA]],0)) -> 31 | C50: =PROPER(TEXT(Base[[#This Row],[FECHA]],"MMMM")) -> Diciembre | D50: =YEAR(Base[[#This Row],[FECHA]]) -> 2019 | E50: PUIOAJ-00001620 | F50: Tumbaco | G50: 3 estrellas | H50: Hostal | I50: 5 | J50: 744.73 | K50: =Base[[#This Row],[VENTAS POR ALOJAMIENTO DURANTE EL MES DE LA ENCUESTA]]/1000 -> 0.74473 | L50: 10 | M50: 5 | N50: 1 | O50: 6 | P50: 7 | Q50: 3 | R50: 10 | S50: 0
A51: 43800 | B51: =DAY(EOMONTH(Base[[#This Row],[FECHA]],0)) -> 31 | C51: =PROPER(TEXT(Base[[#This Row],[FECHA]],"MMMM")) -> Diciembre | D51: =YEAR(Base[[#This Row],[FECHA]]) -> 2019 | E51: PUIOAJ-00000126 | F51: Eugenio Espejo | G51: 3 estrellas | H51: Hostal | I51: 25 | J51: 5745.65 | K51: =Base[[#This Row],[VENTAS POR ALOJAMIENTO DURANTE EL MES DE LA ENCUESTA]]/1000 -> 5.74565 | L51: 138 | M51: 129 | N51: 21 | O51: 150 | P51: 139 | Q51: 21 | R51: 150 | S51: 9
A52: 43800 | B52: =DAY(EOMONTH(Base[[#This Row],[FECHA]],0)) -> 31 | C52: =PROPER(TEXT(Base[[#This Row],[FECHA]],"MMMM")) -> Diciembre | D52: =YEAR(Base[[#This Row],[FECHA]]) -> 2019 | E52: PUIOAJ-00000255 | F52: La Mariscal | G52: 4 estrellas | H52: Hotel | I52: 12 | K52: =Base[[#This Row],[VENTAS POR ALOJAMIENTO DURANTE EL MES DE LA ENCUESTA]]/1000 -> 0 | L52: 200 | M52: 5 | N52: 200 | O52: 205 | P52: 5 | Q52: 200 | R52: 205 | S52: 9
A53: 43800 | B53: =DAY(EOMONTH(Base[[#This Row],[FECHA]],0)) -> 31 | C53: =PROPER(TEXT(Base[[#This Row],[FECHA]],"MMMM")) -> Diciembre | D53: =YEAR(Base[[#This Row],[FECHA]]) -> 2019 | E53: PUIOAJ-00001488 | F53: Eugenio Espejo | G53: 3 estrellas | H53: Hostería | I53: 5 | K53: =Base[[#This Row],[VENTAS POR ALOJAMIENTO DURANTE EL MES DE LA ENCUESTA]]/1000 -> 0 | L53: 0 | O53: 0 | R53: 0 | S53: 7
A54: 43800 | B54: =DAY(EOMONTH(Base[[#This Row],[FECHA]],0)) -> 31 | C54: =PROPER(TEXT(Base[[#This Row],[FECHA]],"MMMM")) -> Diciembre | D54: =YEAR(Base[[#This Row],[FECHA]]) -> 2019 | E54: PUIOAJ-00000491 | F54: Manuela Sáenz | G54: 4 estrellas | H54: Hotel | I54: 22 | J54: 44800 | K54: =Base[[#This Row],[VENTAS POR ALOJAMIENTO DURANTE EL MES DE LA ENCUESTA]]/1000 -> 44.8 | L54: 414 | N54: 774 | O54: 774 | Q54: 774 | R54: 774 | S54: 23
A55: 43800 | B55: =DAY(EOMONTH(Base[[#This Row],[FECHA]],0)) -> 31 | C55: =PROPER(TEXT(Base[[#This Row],[FECHA]],"MMMM")) -> Diciembre | D55: =YEAR(Base[[#This Row],[FECHA]]) -> 2019 | E55: PUIOAJ-00000370 | F55: Eugenio Espejo | G55: 4 estrellas | H55: Hotel | I55: 30 | J55: 70172.01 | K55: =Base[[#This Row],[VENTAS POR ALOJAMIENTO DURANTE EL MES DE LA ENCUESTA]]/1000 -> 70.17201 | L55: 618 | M55: 138 | N55: 809 | O55: 947 | P55: 138 | Q55: 809 | R55: 947 | S55: 44
A56: 43800 | B56: =DAY(EOMONTH(Base[[#This Row],[FECHA]],0)) -> 31 | C56: =PROPER(TEXT(Base[[#This Row],[FECHA]],"MMMM")) -> Diciembre | D56: =YEAR(Base[[#This Row],[FECHA]]) -> 2019 | E56: PUIOAJ-00000165 | F56: Manuela Sáenz | G56: 4 estrellas | H56: Hostal | I56: 15 | K56: =Base[[#This Row],[VENTAS POR ALOJAMIENTO DURANTE EL MES DE LA ENCUESTA]]/1000 -> 0 | L56: 0 | O56: 0 | R56: 0 | S56: 10
A57: 43800 | B57: =DAY(EOMONTH(Base[[#This Row],[FECHA]],0)) -> 31 | C57: =PROPER(TEXT(Base[[#This Row],[FECHA]],"MMMM")) -> Diciembre | D57: =YEAR(Base[[#This Row],[FECHA]]) -> 2019 | E57: PUIOAJ-00000618 | F57: La Mariscal | G57: 3 estrellas | H57: Hotel | I57: 10 | K57: =Base[[#This Row],[VENTAS POR ALOJAMIENTO DURANTE EL MES DE LA ENCUESTA]]/1000 -> 0 | L57: 368 | O57: 0 | R57: 0 | S57: 7
A58: 43800 | B58: =DAY(EOMONTH(Base[[#This Row],[FECHA]],0)) -> 31 | C58: =PROPER(TEXT(Base[[#This Row],[FECHA]],"MMMM")) -> Diciembre | D58: =YEAR(Base[[#This Row],[FECHA]]) -> 2019 | E58: PUIOAJ-00001673 | F58: La Mariscal | G58: 4 estrellas | H58: Hotel | I58: 55 | J58: 34839.75 | K58: =Base[[#This Row],[VENTAS POR ALOJAMIENTO DURANTE EL MES DE LA ENCUESTA]]/1000 -> 34.83975 | L58: 550 | O58: 0 | R58: 0 | S58: 18
A59: 43800 | B59: =DAY(EOMONTH(Base[[#This Row],[FECHA]],0)) -> 31 | C59: =PROPER(TEXT(Base[[#This Row],[FECHA]],"MMMM")) -> Diciembre | D59: =YEAR(Base[[#This Row],[FECHA]]) -> 2019 | E59: PUIOAJ-00000047 | F59: La Mariscal | G59: 3 estrellas | H59: Hotel | I59: 16 | J59: 2835 | K59: =Base[[#This Row],[VENTAS POR ALOJAMIENTO DURANTE EL MES DE LA ENCUESTA]]/1000 -> 2.835 | L59: 112 | O59: 0 | P59: 107 | Q59: 10 | R59: 117 | S59: 6
A60: 43800 | B60: =DAY(EOMONTH(Base[[#This Row],[FECHA]],0)) -> 31 | C60: =PROPER(TEXT(Base[[#This Row],[FECHA]],"MMMM")) -> Diciembre | D60: =YEAR(Base[[#This Row],[FECHA]]) -> 2019 | E60: PUIOAJ-00000078 | F60: Manuela Sáenz | G60: 3 estrellas | H60: Hotel | I60: 31 | J60: 12000 | K60: =Base[[#This Row],[VENTAS POR ALOJAMIENTO DURANTE EL MES DE LA ENCUESTA]]/1000 -> 12 | L60: 1195 | M60: 43 | N60: 187 | O60: 230 | P60: 55 | Q60: 187 | R60: 230 | S60: 4
A61: 43800 | B61: =DAY(EOMONTH(Base[[#This Row],[FECHA]],0)) -> 31 | C61: =PROPER(TEXT(Base[[#This Row],[FECHA]],"MMMM")) -> Diciembre | D61: =YEAR(Base[[#This Row],[FECHA]]) -> 2019 | E61: PUIOAJ-00000164 | F61: La Mariscal | G61: 4 estrellas | H61: Hotel | I61: 100 | K61: =Base[[#This Row],[VENTAS POR ALOJAMIENTO DURANTE EL MES DE LA ENCUESTA]]/1000 -> 0 | L61: 0 | O61: 0 | R61: 0 | S61: 63
A62: 43800 | B62: =DAY(EOMONTH(Base[[#This Row],[FECHA]],0)) -> 31 | C62: =PROPER(TEXT(Base[[#This Row],[FECHA]],"MMMM")) -> Diciembre | D62: =YEAR(Base[[#This Row],[FECHA]]) -> 2019 | E62: PUIOAJ-00001530 | F62: Tumbaco | G62: 3 estrellas | H62: Hostería | I62: 8 | J62: 9670 | K62: =Base[[#This Row],[VENTAS POR ALOJAMIENTO DURANTE EL MES DE LA ENCUESTA]]/1000 -> 9.67 | L62: 110 | M62: 67 | O62: 67 | P62: 180 | R62: 180 | S62: 4
A63: 43800 | B63: =DAY(EOMONTH(Base[[#This Row],[FECHA]],0)) -> 31 | C63: =PROPER(TEXT(Base[[#This Row],[FECHA]],"MMMM")) -> Diciembre | D63: =YEAR(Base[[#This Row],[FECHA]]) -> 2019 | E63: PUIOAJ-00000604 | F63: Eugenio Espejo | G63: 3 estrellas | H63: Hotel | I63: 28 | J63: 21453 | K63: =Base[[#This Row],[VENTAS POR ALOJAMIENTO DURANTE EL MES DE LA ENCUESTA]]/1000 -> 21.453 | L63: 439 | M63: 410 | N63: 176 | O63: 586 | P63: 410 | Q63: 176 | R63: 586 | S63: 6
A64: 43800 | B64: =DAY(EOMONTH(Base[[#This Row],[FECHA]],0)) -> 31 | C64: =PROPER(TEXT(Base[[#This Row],[FECHA]],"MMMM")) -> Diciembre | D64: =YEAR(Base[[#This Row],[FECHA]]) -> 2019 | E64: PUIOAJ-00000326 | F64: La Mariscal | G64: 3 estrellas | H64: Hotel | I64: 23 | J64: 6277 | K64: =Base[[#This Row],[VENTAS POR ALOJAMIENTO DURANTE EL MES DE LA ENCUESTA]]/1000 -> 6.277 | L64: 205 | M64: 162 | N64: 25 | O64: 187 | P64: 241 | Q64: 46 | R64: 287 | S64: 9
A65: 43800 | B65: =DAY(EOMONTH(Base[[#This Row],[FECHA]],0)) -> 31 | C65: =PROPER(TEXT(Base[[#This Row],[FECHA]],"MMMM")) -> Diciembre | D65: =YEAR(Base[[#This Row],[FECHA]]) -> 2019 | E65: PUIOAJ-00000012 | F65: Eugenio Espejo | G65: 4 estrellas | H65: Hotel | I65: 25 | J65: 29326.43 | K65: =Base[[#This Row],[VENTAS POR ALOJAMIENTO DURANTE EL MES DE LA ENCUESTA]]/1000 -> 29.32643 | L65: 190 | M65: 76 | N65: 126 | O65: 202 | P65: 114 | Q65: 417 | R65: 531 | S65: 18
A66: 43800 | B66: =DAY(EOMONTH(Base[[#This Row],[FECHA]],0)) -> 31 | C66: =PROPER(TEXT(Base[[#This Row],[FECHA]],"MMMM")) -> Diciembre | D66: =YEAR(Base[[#This Row],[FECHA]]) -> 2019 | E66: PUIOAJ-00000548 | F66: Tumbaco | G66: 3 estrellas | H66: Hotel | I66: 15 | J66: 12000 | K66: =Base[[#This Row],[VENTAS POR ALOJAMIENTO DURANTE EL MES DE LA ENCUESTA]]/1000 -> 12 | L66: 89 | M66: 75 | N66: 17 | O66: 92 | P66: 75 | Q66: 17 | R66: 92 | S66: 16
A67: 43800 | B67: =DAY(EOMONTH(Base[[#This Row],[FECHA]],0)) -> 31 | C67: =PROPER(TEXT(Base[[#This Row],[FECHA]],"MMMM")) -> Diciembre | D67: =YEAR(Base[[#This Row],[FECHA]]) -> 2019 | E67: PUIOAJ-00000069 | F67: La Mariscal | G67: 5 estrellas | H67: Hotel | I67: 275 | J67: 427273 | K67: =Base[[#This Row],[VENTAS POR ALOJAMIENTO DURANTE EL MES DE LA ENCUESTA]]/1000 -> 427.273 | L67: 4315 | M67: 1273 | N67: 1934 | O67: 3207 | P67: 1963 | Q67: 4260 | R67: 6223 | S67: 722
A68: 43800 | B68: =DAY(EOMONTH(Base[[#This Row],[FECHA]],0)) -> 31 | C68: =PROPER(TEXT(Base[[#This Row],[FECHA]],"MMMM")) -> Diciembre | D68: =YEAR(Base[[#This Row],[FECHA]]) -> 2019 | E68: PUIOAJ-00000111 | F68: La Delicia | G68: 3 estrellas | H68: Hacienda Turística | I68: 12 | J68: 11096.1 | K68: =Base[[#This Row],[VENTAS POR ALOJAMIENTO DURANTE EL MES DE LA ENCUESTA]]/1000 -> 11.0961 | L68: 29 | M68: 14 | N68: 29 | O68: 43 | P68: 20 | Q68: 64 | R68: 84 | S68: 8
A69: 43800 | B69: =DAY(EOMONTH(Base[[#This Row],[FECHA]],0)) -> 31 | C69: =PROPER(TEXT(Base[[#This Row],[FECHA]],"MMMM")) -> Diciembre | D69: =YEAR(Base[[#This Row],[FECHA]]) -> 2019 | E69: PUIOAJ-00001342 | F69: Manuela Sáenz | G69: 4 estrellas | H69: Hotel | I69: 6 | J69: 17150 | K69: =Base[[#This Row],[VENTAS POR ALOJAMIENTO DURANTE EL MES DE LA ENCUESTA]]/1000 -> 17.15 | L69: 81 | S69: 10
A70: 43800 | B70: =DAY(EOMONTH(Base[[#This Row],[FECHA]],0)) -> 31 | C70: =PROPER(TEXT(Base[[#This Row],[FECHA]],"MMMM")) -> Diciembre | D70: =YEAR(Base[[#This Row],[FECHA]]) -> 2019 | E70: PUIOAJ-00000430 | F70: Tumbaco | G70: 3 estrellas | H70: Hacienda Turística | I70: 20 | J70: 711 | K70: =Base[[#This Row],[VENTAS POR ALOJAMIENTO DURANTE EL MES DE LA ENCUESTA]]/1000 -> 0.711 | L70: 10 | M70: 10 | O70: 10 | P70: 10 | R70: 10 | S70: 1
A71: 43800 | B71: =DAY(EOMONTH(Base[[#This Row],[FECHA]],0)) -> 31 | C71: =PROPER(TEXT(Base[[#This Row],[FECHA]],"MMMM")) -> Diciembre | D71: =YEAR(Base[[#This Row],[FECHA]]) -> 2019 | E71: PUIOAJ-00001468 | F71: La Mariscal | G71: 3 estrellas | H71: Hotel | I71: 22 | K71: =Base[[#This Row],[VENTAS POR ALOJAMIENTO DURANTE EL MES DE LA ENCUESTA]]/1000 -> 0 | L71: 0 | M71: 2 | N71: 7 | O71: 9 | P71: 2 | Q71: 7 | R71: 9 | S71: 4
A72: 43831 | B72: =DAY(EOMONTH(Base[[#This Row],[FECHA]],0)) -> 31 | C72: =PROPER(TEXT(Base[[#This Row],[FECHA]],"MMMM")) -> Enero | D72: =YEAR(Base[[#This Row],[FECHA]]) -> 2020 | E72: PUIOAJ-00004601 | F72: Eugenio Espejo | G72: 3 estrellas | H72: Hotel | I72: 12 | J72: 8979.07 | K72: =Base[[#This Row],[VENTAS POR ALOJAMIENTO DURANTE EL MES DE LA ENCUESTA]]/1000 -> 8.97907 | L72: 110 | M72: 93 | N72: 77 | O72: 170 | P72: 294 | Q72: 77 | R72: 371 | S72: 6
A73: 43831 | B73: =DAY(EOMONTH(Base[[#This Row],[FECHA]],0)) -> 31 | C73: =PROPER(TEXT(Base[[#This Row],[FECHA]],"MMMM")) -> Enero | D73: =YEAR(Base[[#This Row],[FECHA]]) -> 2020 | E73: PUIOAJ-00000365 | F73: Eugenio Espejo | G73: 5 estrellas | H73: Hotel | J73: 90488.11 | K73: =Base[[#This Row],[VENTAS POR ALOJAMIENTO DURANTE EL MES DE LA ENCUESTA]]/1000 -> 90.48811 | L73: 1379 | P73: 9 | Q73: 0 | R73: 9 | S73: 0
A74: 43831 | B74: =DAY(EOMONTH(Base[[#This Row],[FECHA]],0)) -> 31 | C74: =PROPER(TEXT(Base[[#This Row],[FECHA]],"MMMM")) -> Enero | D74: =YEAR(Base[[#This Row],[FECHA]]) -> 2020 | E74: PUIOAJ-00000423 | F74: Tumbaco | G74: 5 estrellas | H74: Hotel | I74: 7 | J74: 3144.41 | K74: =Base[[#This Row],[VENTAS POR ALOJAMIENTO DURANTE EL MES DE LA ENCUESTA]]/1000 -> 3.14441 | L74: 33 | M74: 9 | N74: 72 | O74: 81 | P74: 9 | Q74: 72 | R74: 81 | S74: 5
A75: 43831 | B75: =DAY(EOMONTH(Base[[#This Row],[FECHA]],0)) -> 31 | C75: =PROPER(TEXT(Base[[#This Row],[FECHA]],"MMMM")) -> Enero | D75: =YEAR(Base[[#This Row],[FECHA]]) -> 2020 | E75: PUIOAJ-00000582 | F75: Tumbaco | G75: 5 estrellas | H75: Hotel | J75: 2370 | K75: =Base[[#This Row],[VENTAS POR ALOJAMIENTO DURANTE EL MES DE LA ENCUESTA]]/1000 -> 2.37 | L75: 28 | M75: 0 | N75: 46 | O75: 46 | P75: 0 | Q75: 46 | R75: 46 | S75: 4
A76: 43831 | B76: =DAY(EOMONTH(Base[[#This Row],[FECHA]],0)) -> 31 | C76: =PROPER(TEXT(Base[[#This Row],[FECHA]],"MMMM")) -> Enero | D76: =YEAR(Base[[#This Row],[FECHA]]) -> 2020 | E76: PUIOAJ-00000039 | F76: La Mariscal | G76: 3 estrellas | H76: Hotel | I76: 20 | J76: 10406 | K76: =Base[[#This Row],[VENTAS POR ALOJAMIENTO DURANTE EL MES DE LA ENCUESTA]]/1000 -> 10.406 | L76: 242 | M76: 19 | N76: 218 | O76: 237 | P76: 430 | Q76: 356 | R76: 786 | S76: 8
A77: 43831 | B77: =DAY(EOMONTH(Base[[#This Row],[FECHA]],0)) -> 31 | C77: =PROPER(TEXT(Base[[#This Row],[FECHA]],"MMMM")) -> Enero | D77: =YEAR(Base[[#This Row],[FECHA]]) -> 2020 | E77: PUIOAJ-00000024 | F77: Manuela Sáenz | G77: 4 estrellas | H77: Hotel | I77: 558 | J77: 1352 | K77: =Base[[#This Row],[VENTAS POR ALOJAMIENTO DURANTE EL MES DE LA ENCUESTA]]/1000 -> 1.352 | L77: 11 | M77: 0 | N77: 9 | O77: 9 | P77: 749 | Q77: 9 | R77: 758 | S77: 7
A78: 43831 | B78: =DAY(EOMONTH(Base[[#This Row],[FECHA]],0)) -> 31 | C78: =PROPER(TEXT(Base[[#This Row],[FECHA]],"MMMM")) -> Enero | D78: =YEAR(Base[[#This Row],[FECHA]]) -> 2020 | E78: PUIOAJ-00000064 | F78: La Mariscal | G78: 5 estrellas | H78: Hotel | I78: 255 | J78: 479777 | K78: =Base[[#This Row],[VENTAS POR ALOJAMIENTO DURANTE EL MES DE LA ENCUESTA]]/1000 -> 479.777 | L78: 4726 | M78: 264 | N78: 2378 | O78: 2642 | P78: 0 | Q78: 4253 | R78: 4253 | S78: 411
A79: 43831 | B79: =DAY(EOMONTH(Base[[#This Row],[FECHA]],0)) -> 31 | C79: =PROPER(TEXT(Base[[#This Row],[FECHA]],"MMMM")) -> Enero | D79: =YEAR(Base[[#This Row],[FECHA]]) -> 2020 | E79: PUIOAJ-00000223 | F79: La Mariscal | G79: 4 estrellas | H79: Hotel | I79: 141 | J79: 194400 | K79: =Base[[#This Row],[VENTAS POR ALOJAMIENTO DURANTE EL MES DE LA ENCUESTA]]/1000 -> 194.4 | L79: 0 | O79: 0 | P79: 16 | Q79: 0 | R79: 16 | S79: 44
A80: 43831 | B80: =DAY(EOMONTH(Base[[#This Row],[FECHA]],0)) -> 31 | C80: =PROPER(TEXT(Base[[#This Row],[FECHA]],"MMMM")) -> Enero | D80: =YEAR(Base[[#This Row],[FECHA]]) -> 2020 | E80: PUIOAJ-00000435 | F80: Manuela Sáenz | G80: 3 estrellas | H80: Hotel | I80: 6 | J80: 5000 | K80: =Base[[#This Row],[VENTAS POR ALOJAMIENTO DURANTE EL MES DE LA ENCUESTA]]/1000 -> 5 | L80: 5 | M80: 0 | N80: 40 | O80: 40 | P80: 21 | Q80: 40 | R80: 61 | S80: 6
A81: 43831 | B81: =DAY(EOMONTH(Base[[#This Row],[FECHA]],0)) -> 31 | C81: =PROPER(TEXT(Base[[#This Row],[FECHA]],"MMMM")) -> Enero | D81: =YEAR(Base[[#This Row],[FECHA]]) -> 2020 | E81: PUIOAJ-00000520 | F81: La Delicia | G81: 3 estrellas | H81: Hostería | I81: 14 | J81: 1408 | K81: =Base[[#This Row],[VENTAS POR ALOJAMIENTO DURANTE EL MES DE LA ENCUESTA]]/1000 -> 1.408 | L81: 26 | M81: 16 | O81: 16 | P81: 298 | Q81: 19 | R81: 317 | S81: 11
A82: 43831 | B82: =DAY(EOMONTH(Base[[#This Row],[FECHA]],0)) -> 31 | C82: =PROPER(TEXT(Base[[#This Row],[FECHA]],"MMMM")) -> Enero | D82: =YEAR(Base[[#This Row],[FECHA]]) -> 2020 | E82: PUIOAJ-00001516 | F82: Los Chillos | G82: 3 estrellas | H82: Hostería | I82: 13 | J82: 160 | K82: =Base[[#This Row],[VENTAS POR ALOJAMIENTO DURANTE EL MES DE LA ENCUESTA]]/1000 -> 0.16 | L82: 8 | M82: 8 | N82: 0 | O82: 8 | P82: 13 | Q82: 0 | R82: 13 | S82: 6
A83: 43831 | B83: =DAY(EOMONTH(Base[[#This Row],[FECHA]],0)) -> 31 | C83: =PROPER(TEXT(Base[[#This Row],[FECHA]],"MMMM")) -> Enero | D83: =YEAR(Base[[#This Row],[FECHA]]) -> 2020 | E83: PUIOAJ-00000033 | F83: Los Chillos | G83: 3 estrellas | H83: Hostería | K83: =Base[[#This Row],[VENTAS POR ALOJAMIENTO DURANTE EL MES DE LA ENCUESTA]]/1000 -> 0 | L83: 0 | P83: 25 | Q83: 0 | R83: 25 | S83: 7
A84: 43831 | B84: =DAY(EOMONTH(Base[[#This Row],[FECHA]],0)) -> 31 | C84: =PROPER(TEXT(Base[[#This Row],[FECHA]],"MMMM")) -> Enero | D84: =YEAR(Base[[#This Row],[FECHA]]) -> 2020 | E84: PUIOAJ-00001543 | F84: Los Chillos | G84: 4 estrellas | H84: Hacienda Turística | I84: 6 | K84: =Base[[#This Row],[VENTAS POR ALOJAMIENTO DURANTE EL MES DE LA ENCUESTA]]/1000 -> 0 | L84: 0 | P84: 50 | Q84: 0 | R84: 50 | S84: 5
A85: 43831 | B85: =DAY(EOMONTH(Base[[#This Row],[FECHA]],0)) -> 31 | C85: =PROPER(TEXT(Base[[#This Row],[FECHA]],"MMMM")) -> Enero | D85: =YEAR(Base[[#This Row],[FECHA]]) -> 2020 | E85: PUIOAJ-00004644 | F85: Tumbaco | G85: 3 estrellas | H85: Hostería | I85: 6 | K85: =Base[[#This Row],[VENTAS POR ALOJAMIENTO DURANTE EL MES DE LA ENCUESTA]]/1000 -> 0 | L85: 0 | P85: 5 | Q85: 0 | R85: 5 | S85: 6
A86: 43831 | B86: =DAY(EOMONTH(Base[[#This Row],[FECHA]],0)) -> 31 | C86: =PROPER(TEXT(Base[[#This Row],[FECHA]],"MMMM")) -> Enero | D86: =YEAR(Base[[#This Row],[FECHA]]) -> 2020 | E86: PUIOAJ-00000156 | F86: Manuela Sáenz | G86: 4 estrellas | H86: Hotel | I86: 49 | J86: 25573 | K86: =Base[[#This Row],[VENTAS POR ALOJAMIENTO DURANTE EL MES DE LA ENCUESTA]]/1000 -> 25.573 | L86: 243 | M86: 236 | N86: 93 | O86: 329 | P86: 236 | Q86: 93 | R86: 329 | S86: 36
A87: 43831 | B87: =DAY(EOMONTH(Base[[#This Row],[FECHA]],0)) -> 31 | C87: =PROPER(TEXT(Base[[#This Row],[FECHA]],"MMMM")) -> Enero | D87: =YEAR(Base[[#This Row],[FECHA]]) -> 2020 | E87: PUIOAJ-00000572 | F87: Manuela Sáenz | G87: 3 estrellas | H87: Hotel | I87: 24 | J87: 15000 | K87: =Base[[#This Row],[VENTAS POR ALOJAMIENTO DURANTE EL MES DE LA ENCUESTA]]/1000 -> 15 | L87: 160 | M87: 5 | N87: 145 | O87: 150 | P87: 1620 | Q87: 145 | R87: 1765 | S87: 11
A88: 43831 | B88: =DAY(EOMONTH(Base[[#This Row],[FECHA]],0)) -> 31 | C88: =PROPER(TEXT(Base[[#This Row],[FECHA]],"MMMM")) -> Enero | D88: =YEAR(Base[[#This Row],[FECHA]]) -> 2020 | E88: PUIOAJ-00000070 | F88: Eugenio Espejo | G88: 5 estrellas | H88: Hotel | I88: 210 | K88: =Base[[#This Row],[VENTAS POR ALOJAMIENTO DURANTE EL MES DE LA ENCUESTA]]/1000 -> 0 | L88: 4740 | P88: 798 | Q88: 4665 | R88: 5463 | S88: 198
A89: 43831 | B89: =DAY(EOMONTH(Base[[#This Row],[FECHA]],0)) -> 31 | C89: =PROPER(TEXT(Base[[#This Row],[FECHA]],"MMMM")) -> Enero | D89: =YEAR(Base[[#This Row],[FECHA]]) -> 2020 | E89: PUIOAJ-00000136 | F89: Manuela Sáenz | G89: 3 estrellas | H89: Hotel | I89: 32 | K89: =Base[[#This Row],[VENTAS POR ALOJAMIENTO DURANTE EL MES DE LA ENCUESTA]]/1000 -> 0 | L89: 450 | M89: 430 | N89: 20 | O89: 450 | P89: 430 | Q89: 20 | R89: 450 | S89: 6
A90: 43831 | B90: =DAY(EOMONTH(Base[[#This Row],[FECHA]],0)) -> 31 | C90: =PROPER(TEXT(Base[[#This Row],[FECHA]],"MMMM")) -> Enero | D90: =YEAR(Base[[#This Row],[FECHA]]) -> 2020 | E90: PUIOAJ-00000152 | F90: Eugenio Espejo | G90: 4 estrellas | H90: Hotel | I90: 152 | K90: =Base[[#This Row],[VENTAS POR ALOJAMIENTO DURANTE EL MES DE LA ENCUESTA]]/1000 -> 0 | L90: 3008 | M90: 1620 | N90: 710 | O90: 2330 | P90: 1620 | Q90: 710 | R90: 2330 | S90: 67
A91: 43831 | B91: =DAY(EOMONTH(Base[[#This Row],[FECHA]],0)) -> 31 | C91: =PROPER(TEXT(Base[[#This Row],[FECHA]],"MMMM")) -> Enero | D91: =YEAR(Base[[#This Row],[FECHA]]) -> 2020 | E91: PUIOAJ-00000402 | F91: Eugenio Espejo | G91: 3 estrellas | H91: Hotel | I91: 40 | K91: =Base[[#This Row],[VENTAS POR ALOJAMIENTO DURANTE EL MES DE LA ENCUESTA]]/1000 -> 0 | L91: 110 | M91: 70 | N91: 70 | O91: 140 | P91: 70 | Q91: 70 | R91: 140 | S91: 6
A92: 43831 | B92: =DAY(EOMONTH(Base[[#This Row],[FECHA]],0)) -> 31 | C92: =PROPER(TEXT(Base[[#This Row],[FECHA]],"MMMM")) -> Enero | D92: =YEAR(Base[[#This Row],[FECHA]]) -> 2020 | E92: PUIOAJ-00001648 | F92: Eugenio Espejo | G92: 3 estrellas | H92: Hotel | I92: 16 | J92: 3000 | K92: =Base[[#This Row],[VENTAS POR ALOJAMIENTO DURANTE EL MES DE LA ENCUESTA]]/1000 -> 3 | L92: 52 | M92: 40 | N92: 12 | O92: 52 | P92: 40 | Q92: 12 | R92: 52 | S92: 4
A93: 43831 | B93: =DAY(EOMONTH(Base[[#This Row],[FECHA]],0)) -> 31 | C93: =PROPER(TEXT(Base[[#This Row],[FECHA]],"MMMM")) -> Enero | D93: =YEAR(Base[[#This Row],[FECHA]]) -> 2020 | E93: PUIOAJ-00000256 | F93: Manuela Sáenz | G93: 4 estrellas | H93: Hotel | I93: 32 | J93: 67686 | K93: =Base[[#This Row],[VENTAS POR ALOJAMIENTO DURANTE EL MES DE LA ENCUESTA]]/1000 -> 67.686 | L93: 618 | M93: 0 | N93: 1052 | O93: 1052 | P93: 8 | Q93: 1052 | R93: 1060 | S93: 48
A94: 43831 | B94: =DAY(EOMONTH(Base[[#This Row],[FECHA]],0)) -> 31 | C94: =PROPER(TEXT(Base[[#This Row],[FECHA]],"MMMM")) -> Enero | D94: =YEAR(Base[[#This Row],[FECHA]]) -> 2020 | E94: PUIOAJ-00000170 | F94: Manuela Sáenz | G94: 5 estrellas | H94: Hotel | I94: 15 | J94: 67875 | K94: =Base[[#This Row],[VENTAS POR ALOJAMIENTO DURANTE EL MES DE LA ENCUESTA]]/1000 -> 67.875 | L94: 148 | M94: 0 | N94: 148 | O94: 148 | P94: 0 | Q94: 296 | R94: 296 | S94: 43
A95: 43831 | B95: =DAY(EOMONTH(Base[[#This Row],[FECHA]],0)) -> 31 | C95: =PROPER(TEXT(Base[[#This Row],[FECHA]],"MMMM")) -> Enero | D95: =YEAR(Base[[#This Row],[FECHA]]) -> 2020 | E95: PUIOAJ-00000075 | F95: Manuela Sáenz | G95: 4 estrellas | H95: Hotel | I95: 80 | J95: 18598 | K95: =Base[[#This Row],[VENTAS POR ALOJAMIENTO DURANTE EL MES DE LA ENCUESTA]]/1000 -> 18.598 | L95: 309 | P95: 45 | Q95: 157 | R95: 202 | S95: 35
A96: 43831 | B96: =DAY(EOMONTH(Base[[#This Row],[FECHA]],0)) -> 31 | C96: =PROPER(TEXT(Base[[#This Row],[FECHA]],"MMMM")) -> Enero | D96: =YEAR(Base[[#This Row],[FECHA]]) -> 2020 | E96: PUIOAJ-00000274 | F96: Eugenio Espejo | G96: 3 estrellas | H96: Hotel | I96: 13 | J96: 52.66 | K96: =Base[[#This Row],[VENTAS POR ALOJAMIENTO DURANTE EL MES DE LA ENCUESTA]]/1000 -> 0.05266 | L96: 117 | M96: 62 | N96: 3 | O96: 65 | P96: 62 | Q96: 3 | R96: 65 | S96: 0
A97: 43831 | B97: =DAY(EOMONTH(Base[[#This Row],[FECHA]],0)) -> 31 | C97: =PROPER(TEXT(Base[[#This Row],[FECHA]],"MMMM")) -> Enero | D97: =YEAR(Base[[#This Row],[FECHA]]) -> 2020 | E97: PUIOAJ-00000505 | F97: Tumbaco | G97: 3 estrellas | H97: Hostal | I97: 279 | J97: 409.38 | K97: =Base[[#This Row],[VENTAS POR ALOJAMIENTO DURANTE EL MES DE LA ENCUESTA]]/1000 -> 0.40938 | L97: 12 | M97: 10 | N97: 2 | O97: 12 | P97: 10 | Q97: 2 | R97: 12
A98: 43831 | B98: =DAY(EOMONTH(Base[[#This Row],[FECHA]],0)) -> 31 | C98: =PROPER(TEXT(Base[[#This Row],[FECHA]],"MMMM")) -> Enero | D98: =YEAR(Base[[#This Row],[FECHA]]) -> 2020 | E98: PUIOAJ-00001479 | F98: Eloy Alfaro | G98: 3 estrellas | H98: Hotel | I98: 40 | K98: =Base[[#This Row],[VENTAS POR ALOJAMIENTO DURANTE EL MES DE LA ENCUESTA]]/1000 -> 0 | L98: 40 | M98: 3 | N98: 2 | O98: 5 | P98: 14 | Q98: 2 | R98: 16 | S98: 13
A99: 43831 | B99: =DAY(EOMONTH(Base[[#This Row],[FECHA]],0)) -> 31 | C99: =PROPER(TEXT(Base[[#This Row],[FECHA]],"MMMM")) -> Enero | D99: =YEAR(Base[[#This Row],[FECHA]]) -> 2020 | E99: PUIOAJ-00000263 | F99: La Mariscal | G99: 4 estrellas | H99: Hotel | I99: 44 | J99: 37430.59 | K99: =Base[[#This Row],[VENTAS POR ALOJAMIENTO DURANTE EL MES DE LA ENCUESTA]]/1000 -> 37.43059 | L99: 669 | M99: 14 | N99: 1084 | O99: 1098 | P99: 14 | Q99: 1084 | R99: 1098 | S99: 20
A100: 43831 | B100: =DAY(EOMONTH(Base[[#This Row],[FECHA]],0)) -> 31 | C100: =PROPER(TEXT(Base[[#This Row],[FECHA]],"MMMM")) -> Enero | D100: =YEAR(Base[[#This Row],[FECHA]]) -> 2020 | E100: PUIOAJ-00001636 | F100: Tumbaco | G100: 3 estrellas | H100: Hotel | I100: 18 | J100: 14482.13 | K100: =Base[[#This Row],[VENTAS POR ALOJAMIENTO DURANTE EL MES DE LA ENCUESTA]]/1000 -> 14.48213 | L100: 0 | P100: 6 | Q100: 0 | R100: 6 | S100: 9
A101: 43831 | B101: =DAY(EOMONTH(Base[[#This Row],[FECHA]],0)) -> 31 | C101: =PROPER(TEXT(Base[[#This Row],[FECHA]],"MMMM")) -> Enero | D101: =YEAR(Base[[#This Row],[FECHA]]) -> 2020 | E101: PUIOAJ-00001440 | F101: Manuela Sáenz | G101: 5 estrellas | H101: Hotel | I101: 10 | K101: =Base[[#This Row],[VENTAS POR ALOJAMIENTO DURANTE EL MES DE LA ENCUESTA]]/1000 -> 0 | L101: 135 | M101: 6 | N101: 50 | O101: 56 | P101: 0 | Q101: 120 | R101: 120 | S101: 11
A102: 43831 | B102: =DAY(EOMONTH(Base[[#This Row],[FECHA]],0)) -> 31 | C102: =PROPER(TEXT(Base[[#This Row],[FECHA]],"MMMM")) -> Enero | D102: =YEAR(Base[[#This Row],[FECHA]]) -> 2020 | E102: PUIOAJ-00000071 | F102: Manuela Sáenz | G102: 3 estrellas | H102: Hotel | I102: 41 | J102: 5000 | K102: =Base[[#This Row],[VENTAS POR ALOJAMIENTO DURANTE EL MES DE LA ENCUESTA]]/1000 -> 5 | L102: 185 | M102: 294 | N102: 3 | O102: 297 | P102: 294 | Q102: 3 | R102: 297 | S102: 8
A103: 43831 | B103: =DAY(EOMONTH(Base[[#This Row],[FECHA]],0)) -> 31 | C103: =PROPER(TEXT(Base[[#This Row],[FECHA]],"MMMM")) -> Enero | D103: =YEAR(Base[[#This Row],[FECHA]]) -> 2020 | E103: PUIOAJ-00001620 | F103: Tumbaco | G103: 3 estrellas | H103: Hostal | I103: 5 | J103: 199.69 | K103: =Base[[#This Row],[VENTAS POR ALOJAMIENTO DURANTE EL MES DE LA ENCUESTA]]/1000 -> 0.19969 | L103: 29 | M103: 3 | N103: 4 | O103: 7 | P103: 60 | Q103: 4 | R103: 64
A104: 43831 | B104: =DAY(EOMONTH(Base[[#This Row],[FECHA]],0)) -> 31 | C104: =PROPER(TEXT(Base[[#This Row],[FECHA]],"MMMM")) -> Enero | D104: =YEAR(Base[[#This Row],[FECHA]]) -> 2020 | E104: PUIOAJ-00001368 | F104: La Delicia | G104: 4 estrellas | H104: Hostería | I104: 17 | J104: 3299.15 | K104: =Base[[#This Row],[VENTAS POR ALOJAMIENTO DURANTE EL MES DE LA ENCUESTA]]/1000 -> 3.29915 | L104: 23 | M104: 60 | N104: 1 | O104: 61 | P104: 60 | Q104: 1 | R104: 61 | S104: 7
A105: 43831 | B105: =DAY(EOMONTH(Base[[#This Row],[FECHA]],0)) -> 31 | C105: =PROPER(TEXT(Base[[#This Row],[FECHA]],"MMMM")) -> Enero | D105: =YEAR(Base[[#This Row],[FECHA]]) -> 2020 | E105: PUIOAJ-00000255 | F105: La Mariscal | G105: 4 estrellas | H105: Hotel | I105: 12 | J105: 7000 | K105: =Base[[#This Row],[VENTAS POR ALOJAMIENTO DURANTE EL MES DE LA ENCUESTA]]/1000 -> 7 | L105: 155 | M105: 4 | N105: 151 | O105: 155 | P105: 4 | Q105: 151 | R105: 155 | S105: 9
A106: 43831 | B106: =DAY(EOMONTH(Base[[#This Row],[FECHA]],0)) -> 31 | C106: =PROPER(TEXT(Base[[#This Row],[FECHA]],"MMMM")) -> Enero | D106: =YEAR(Base[[#This Row],[FECHA]]) -> 2020 | E106: PUIOAJ-00001488 | F106: Eugenio Espejo | G106: 3 estrellas | H106: Hostería | I106: 5 | J106: 160 | K106: =Base[[#This Row],[VENTAS POR ALOJAMIENTO DURANTE EL MES DE LA ENCUESTA]]/1000 -> 0.16 | L106: 2 | M106: 0 | N106: 2 | O106: 2 | P106: 0 | Q106: 2 | R106: 2 | S106: 7
A107: 43831 | B107: =DAY(EOMONTH(Base[[#This Row],[FECHA]],0)) -> 31 | C107: =PROPER(TEXT(Base[[#This Row],[FECHA]],"MMMM")) -> Enero | D107: =YEAR(Base[[#This Row],[FECHA]]) -> 2020 | E107: PUIOAJ-00001397 | F107: Tumbaco | G107: 5 estrellas | H107: Hacienda Turística | I107: 7 | J107: 1363.79 | K107: =Base[[#This Row],[VENTAS POR ALOJAMIENTO DURANTE EL MES DE LA ENCUESTA]]/1000 -> 1.36379 | L107: 12 | M107: 13 | N107: 10 | O107: 23 | P107: 473 | Q107: 11 | R107: 484 | S107: 7
A108: 43831 | B108: =DAY(EOMONTH(Base[[#This Row],[FECHA]],0)) -> 31 | C108: =PROPER(TEXT(Base[[#This Row],[FECHA]],"MMMM")) -> Enero | D108: =YEAR(Base[[#This Row],[FECHA]]) -> 2020 | E108: PUIOAJ-00000618 | F108: La Mariscal | G108: 3 estrellas | H108: Hotel | I108: 340 | J108: 7500 | K108: =Base[[#This Row],[VENTAS POR ALOJAMIENTO DURANTE EL MES DE LA ENCUESTA]]/1000 -> 7.5 | L108: 180 | O108: 0 | P108: 0 | Q108: 0 | S108: 7
A109: 43831 | B109: =DAY(EOMONTH(Base[[#This Row],[FECHA]],0)) -> 31 | C109: =PROPER(TEXT(Base[[#This Row],[FECHA]],"MMMM")) -> Enero | D109: =YEAR(Base[[#This Row],[FECHA]]) -> 2020 | E109: PUIOAJ-00001673 | F109: La Mariscal | G109: 4 estrellas | H109: Hotel | I109: 55 | J109: 41675.94 | K109: =Base[[#This Row],[VENTAS POR ALOJAMIENTO DURANTE EL MES DE LA ENCUESTA]]/1000 -> 41.67594 | L109: 694 | O109: 0 | P109: 0 | Q109: 0 | S109: 18
A110: 43831 | B110: =DAY(EOMONTH(Base[[#This Row],[FECHA]],0)) -> 31 | C110: =PROPER(TEXT(Base[[#This Row],[FECHA]],"MMMM")) -> Enero | D110: =YEAR(Base[[#This Row],[FECHA]]) -> 2020 | E110: PUIOAJ-00000047 | F110: La Mariscal | G110: 3 estrellas | H110: Hotel | I110: 16 | J110: 2233 | K110: =Base[[#This Row],[VENTAS POR ALOJAMIENTO DURANTE EL MES DE LA ENCUESTA]]/1000 -> 2.233 | L110: 117 | O110: 0 | P110: 0 | Q110: 0 | S110: 6
A111: 43831 | B111: =DAY(EOMONTH(Base[[#This Row],[FECHA]],0)) -> 31 | C111: =PROPER(TEXT(Base[[#This Row],[FECHA]],"MMMM")) -> Enero | D111: =YEAR(Base[[#This Row],[FECHA]]) -> 2020 | E111: PUIOAJ-00000078 | F111: Manuela Sáenz | G111: 3 estrellas | H111: Hotel | I111: 31 | J111: 16000 | K111: =Base[[#This Row],[VENTAS POR ALOJAMIENTO DURANTE EL MES DE LA ENCUESTA]]/1000 -> 16 | L111: 286 | M111: 17 | N111: 244 | O111: 261 | P111: 17 | Q111: 244 | R111: 261 | S111: 20
A112: 43831 | B112: =DAY(EOMONTH(Base[[#This Row],[FECHA]],0)) -> 31 | C112: =PROPER(TEXT(Base[[#This Row],[FECHA]],"MMMM")) -> Enero | D112: =YEAR(Base[[#This Row],[FECHA]]) -> 2020 | E112: PUIOAJ-00000164 | F112: La Mariscal | G112: 4 estrellas | H112: Hotel | I112: 100 | K112: =Base[[#This Row],[VENTAS POR ALOJAMIENTO DURANTE EL MES DE LA ENCUESTA]]/1000 -> 0 | L112: 0 | O112: 0 | P112: 0 | Q112: 0 | S112: 57
A113: 43831 | B113: =DAY(EOMONTH(Base[[#This Row],[FECHA]],0)) -> 31 | C113: =PROPER(TEXT(Base[[#This Row],[FECHA]],"MMMM")) -> Enero | D113: =YEAR(Base[[#This Row],[FECHA]]) -> 2020 | E113: PUIOAJ-00000072 | F113: La Mariscal | G113: 4 estrellas | H113: Hotel | J113: 41649.27 | K113: =Base[[#This Row],[VENTAS POR ALOJAMIENTO DURANTE EL MES DE LA ENCUESTA]]/1000 -> 41.64927 | L113: 0 | M113: 798 | N113: 397 | O113: 1195 | P113: 798 | Q113: 397 | R113: 1195 | S113: 75
A114: 43831 | B114: =DAY(EOMONTH(Base[[#This Row],[FECHA]],0)) -> 31 | C114: =PROPER(TEXT(Base[[#This Row],[FECHA]],"MMMM")) -> Enero | D114: =YEAR(Base[[#This Row],[FECHA]]) -> 2020 | E114: PUIOAJ-00001530 | F114: Tumbaco | G114: 3 estrellas | H114: Hostería | I114: 8 | J114: 5215 | K114: =Base[[#This Row],[VENTAS POR ALOJAMIENTO DURANTE EL MES DE LA ENCUESTA]]/1000 -> 5.215 | L114: 51 | P114: 25 | Q114: 0 | R114: 25 | S114: 3
A115: 43831 | B115: =DAY(EOMONTH(Base[[#This Row],[FECHA]],0)) -> 31 | C115: =PROPER(TEXT(Base[[#This Row],[FECHA]],"MMMM")) -> Enero | D115: =YEAR(Base[[#This Row],[FECHA]]) -> 2020 | E115: PUIOAJ-00000604 | F115: Eugenio Espejo | G115: 3 estrellas | H115: Hotel | I115: 28 | J115: 18309.16 | K115: =Base[[#This Row],[VENTAS POR ALOJAMIENTO DURANTE EL MES DE LA ENCUESTA]]/1000 -> 18.30916 | L115: 361 | M115: 14 | N115: 4 | O115: 18 | P115: 14 | Q115: 4 | R115: 18 | S115: 6
A116: 43831 | B116: =DAY(EOMONTH(Base[[#This Row],[FECHA]],0)) -> 31 | C116: =PROPER(TEXT(Base[[#This Row],[FECHA]],"MMMM")) -> Enero | D116: =YEAR(Base[[#This Row],[FECHA]]) -> 2020 | E116: PUIOAJ-00000163 | F116: Eugenio Espejo | G116: 4 estrellas | H116: Hotel | I116: 29 | K116: =Base[[#This Row],[VENTAS POR ALOJAMIENTO DURANTE EL MES DE LA ENCUESTA]]/1000 -> 0 | L116: 10 | M116: 25 | N116: 18 | O116: 43 | P116: 306 | Q116: 18 | R116: 324 | S116: 15
A117: 43831 | B117: =DAY(EOMONTH(Base[[#This Row],[FECHA]],0)) -> 31 | C117: =PROPER(TEXT(Base[[#This Row],[FECHA]],"MMMM")) -> Enero | D117: =YEAR(Base[[#This Row],[FECHA]]) -> 2020 | E117: PUIOAJ-00000069 | F117: La Mariscal | G117: 5 estrellas | H117: Hotel | I117: 275 | J117: 1056381 | K117: =Base[[#This Row],[VENTAS POR ALOJAMIENTO DURANTE EL MES DE LA ENCUESTA]]/1000 -> 1056.381 | L117: 4080 | M117: 378 | N117: 1370 | O117: 1748 | P117: 1112 | Q117: 3331 | R117: 4443 | S117: 449
A118: 43831 | B118: =DAY(EOMONTH(Base[[#This Row],[FECHA]],0)) -> 31 | C118: =PROPER(TEXT(Base[[#This Row],[FECHA]],"MMMM")) -> Enero | D118: =YEAR(Base[[#This Row],[FECHA]]) -> 2020 | E118: PUIOAJ-00000111 | F118: La Delicia | G118: 3 estrellas | H118: Hotel | I118: 12 | J118: 21266.15 | K118: =Base[[#This Row],[VENTAS POR ALOJAMIENTO DURANTE EL MES DE LA ENCUESTA]]/1000 -> 21.26615 | L118: 39 | M118: 13 | N118: 51 | O118: 64 | P118: 125 | Q118: 187 | R118: 312 | S118: 8
A119: 43831 | B119: =DAY(EOMONTH(Base[[#This Row],[FECHA]],0)) -> 31 | C119: =PROPER(TEXT(Base[[#This Row],[FECHA]],"MMMM")) -> Enero | D119: =YEAR(Base[[#This Row],[FECHA]]) -> 2020 | E119: PUIOAJ-00000430 | F119: Tumbaco | G119: 3 estrellas | H119: Hotel | I119: 20 | K119: =Base[[#This Row],[VENTAS POR ALOJAMIENTO DURANTE EL MES DE LA ENCUESTA]]/1000 -> 0 | L119: 0 | P119: 40 | Q119: 0 | R119: 40 | S119: 1
A120: 43862 | B120: =DAY(EOMONTH(Base[[#This Row],[FECHA]],0)) -> 29 | C120: =PROPER(TEXT(Base[[#This Row],[FECHA]],"MMMM")) -> Febrero | D120: =YEAR(Base[[#This Row],[FECHA]]) -> 2020 | E120: PUIOAJ-00000520 | F120: La Delicia | G120: 3 estrellas | H120: Hostería | I120: 14 | J120: 6500 | K120: =Base[[#This Row],[VENTAS POR ALOJAMIENTO DURANTE EL MES DE LA ENCUESTA]]/1000 -> 6.5 | L120: 12 | M120: 9 | N120: 5 | O120: 14 | P120: 9 | Q120: 5 | R120: 14 | S120: 10
A121: 43862 | B121: =DAY(EOMONTH(Base[[#This Row],[FECHA]],0)) -> 29 | C121: =PROPER(TEXT(Base[[#This Row],[FECHA]],"MMMM")) -> Febrero | D121: =YEAR(Base[[#This Row],[FECHA]]) -> 2020 | E121: PUIOAJ-00000156 | F121: Manuela Sáenz | G121: 4 estrellas | H121: Hotel | I121: 49 | J121: 14959 | K121: =Base[[#This Row],[VENTAS POR ALOJAMIENTO DURANTE EL MES DE LA ENCUESTA]]/1000 -> 14.959 | L121: 316 | M121: 243 | N121: 149 | O121: 392 | P121: 256 | Q121: 227 | R121: 483 | S121: 44
A122: 43862 | B122: =DAY(EOMONTH(Base[[#This Row],[FECHA]],0)) -> 29 | C122: =PROPER(TEXT(Base[[#This Row],[FECHA]],"MMMM")) -> Febrero | D122: =YEAR(Base[[#This Row],[FECHA]]) -> 2020 | E122: PUIOAJ-00000290 | F122: La Delicia | G122: 4 estrellas | H122: Lodge | I122: 16 | J122: 22000 | K122: =Base[[#This Row],[VENTAS POR ALOJAMIENTO DURANTE EL MES DE LA ENCUESTA]]/1000 -> 22 | L122: 102 | M122: 25 | N122: 230 | O122: 255 | P122: 36 | Q122: 276 | R122: 312 | S122: 24
A123: 43862 | B123: =DAY(EOMONTH(Base[[#This Row],[FECHA]],0)) -> 29 | C123: =PROPER(TEXT(Base[[#This Row],[FECHA]],"MMMM")) -> Febrero | D123: =YEAR(Base[[#This Row],[FECHA]]) -> 2020 | E123: PUIOAJ-00001434 | F123: La Mariscal | G123: 3 estrellas | H123: Hotel | I123: 8 | J123: 1500 | K123: =Base[[#This Row],[VENTAS POR ALOJAMIENTO DURANTE EL MES DE LA ENCUESTA]]/1000 -> 1.5 | L123: 40 | O123: 0 | S123: 4
A124: 43862 | B124: =DAY(EOMONTH(Base[[#This Row],[FECHA]],0)) -> 29 | C124: =PROPER(TEXT(Base[[#This Row],[FECHA]],"MMMM")) -> Febrero | D124: =YEAR(Base[[#This Row],[FECHA]]) -> 2020 | E124: PUIOAJ-00000423 | F124: Tumbaco | G124: 5 estrellas | H124: Hostería | I124: 7 | J124: 5247.36 | K124: =Base[[#This Row],[VENTAS POR ALOJAMIENTO DURANTE EL MES DE LA ENCUESTA]]/1000 -> 5.24736 | L124: 53 | S124: 4
A125: 43862 | B125: =DAY(EOMONTH(Base[[#This Row],[FECHA]],0)) -> 29 | C125: =PROPER(TEXT(Base[[#This Row],[FECHA]],"MMMM")) -> Febrero | D125: =YEAR(Base[[#This Row],[FECHA]]) -> 2020 | E125: PUIOAJ-00000350 | F125: La Mariscal | G125: 3 estrellas | H125: Hotel | I125: 40 | J125: 2097 | K125: =Base[[#This Row],[VENTAS POR ALOJAMIENTO DURANTE EL MES DE LA ENCUESTA]]/1000 -> 2.097 | L125: 40 | M125: 2 | N125: 17 | O125: 19 | P125: 4 | Q125: 36 | R125: 40 | S125: 2
A126: 43862 | B126: =DAY(EOMONTH(Base[[#This Row],[FECHA]],0)) -> 29 | C126: =PROPER(TEXT(Base[[#This Row],[FECHA]],"MMMM")) -> Febrero | D126: =YEAR(Base[[#This Row],[FECHA]]) -> 2020 | E126: PUIOAJ-00000233 | F126: Eugenio Espejo | G126: 4 estrellas | H126: Hotel | I126: 25 | J126: 8550 | K126: =Base[[#This Row],[VENTAS POR ALOJAMIENTO DURANTE EL MES DE LA ENCUESTA]]/1000 -> 8.55 | L126: 58 | M126: 10 | N126: 35 | O126: 45 | P126: 167 | Q126: 45 | R126: 212 | S126: 0
A127: 43862 | B127: =DAY(EOMONTH(Base[[#This Row],[FECHA]],0)) -> 29 | C127: =PROPER(TEXT(Base[[#This Row],[FECHA]],"MMMM")) -> Febrero | D127: =YEAR(Base[[#This Row],[FECHA]]) -> 2020 | E127: PUIOAJ-00000110 | F127: Eugenio Espejo | G127: 3 estrellas | H127: Hostería | I127: 17 | J127: 0 | K127: =Base[[#This Row],[VENTAS POR ALOJAMIENTO DURANTE EL MES DE LA ENCUESTA]]/1000 -> 0 | M127: 0 | P127: 0 | S127: 2
A128: 43862 | B128: =DAY(EOMONTH(Base[[#This Row],[FECHA]],0)) -> 29 | C128: =PROPER(TEXT(Base[[#This Row],[FECHA]],"MMMM")) -> Febrero | D128: =YEAR(Base[[#This Row],[FECHA]]) -> 2020 | E128: PUIOAJ-00001397 | F128: Tumbaco | G128: 5 estrellas | H128: Lodge | I128: 203 | J128: 5361 | K128: =Base[[#This Row],[VENTAS POR ALOJAMIENTO DURANTE EL MES DE LA ENCUESTA]]/1000 -> 5.361 | L128: 35 | M128: 67 | N128: 18 | O128: 85 | P128: 67 | Q128: 24 | R128: 91 | S128: 9
A129: 43862 | B129: =DAY(EOMONTH(Base[[#This Row],[FECHA]],0)) -> 29 | C129: =PROPER(TEXT(Base[[#This Row],[FECHA]],"MMMM")) -> Febrero | D129: =YEAR(Base[[#This Row],[FECHA]]) -> 2020 | E129: PUIOAJ-00001476 | F129: Manuela Sáenz | G129: 4 estrellas | H129: Hotel | I129: 15 | K129: =Base[[#This Row],[VENTAS POR ALOJAMIENTO DURANTE EL MES DE LA ENCUESTA]]/1000 -> 0 | L129: 150 | M129: 16 | N129: 262 | O129: 278 | P129: 16 | Q129: 262 | R129: 278 | S129: 8
A130: 43862 | B130: =DAY(EOMONTH(Base[[#This Row],[FECHA]],0)) -> 29 | C130: =PROPER(TEXT(Base[[#This Row],[FECHA]],"MMMM")) -> Febrero | D130: =YEAR(Base[[#This Row],[FECHA]]) -> 2020 | E130: PUIOAJ-00000152 | F130: Eugenio Espejo | G130: 4 estrellas | H130: Hotel | I130: 152 | J130: 209547 | K130: =Base[[#This Row],[VENTAS POR ALOJAMIENTO DURANTE EL MES DE LA ENCUESTA]]/1000 -> 209.547 | L130: 3133 | M130: 1177 | N130: 811 | O130: 1988 | P130: 1177 | Q130: 811 | R130: 1988 | S130: 1
A131: 43862 | B131: =DAY(EOMONTH(Base[[#This Row],[FECHA]],0)) -> 29 | C131: =PROPER(TEXT(Base[[#This Row],[FECHA]],"MMMM")) -> Febrero | D131: =YEAR(Base[[#This Row],[FECHA]]) -> 2020 | E131: PUIOAJ-00000256 | F131: Manuela Sáenz | G131: 4 estrellas | H131: Hotel | I131: 982 | J131: 55076.55 | K131: =Base[[#This Row],[VENTAS POR ALOJAMIENTO DURANTE EL MES DE LA ENCUESTA]]/1000 -> 55.07655 | L131: 550 | M131: 0 | N131: 1163 | O131: 1163 | P131: 0 | Q131: 1163 | R131: 1163 | S131: 48
A132: 43862 | B132: =DAY(EOMONTH(Base[[#This Row],[FECHA]],0)) -> 29 | C132: =PROPER(TEXT(Base[[#This Row],[FECHA]],"MMMM")) -> Febrero | D132: =YEAR(Base[[#This Row],[FECHA]]) -> 2020 | E132: PUIOAJ-00000263 | F132: La Mariscal | G132: 4 estrellas | H132: Hotel | I132: 44 | J132: 35038 | K132: =Base[[#This Row],[VENTAS POR ALOJAMIENTO DURANTE EL MES DE LA ENCUESTA]]/1000 -> 35.038 | L132: 571 | M132: 52 | N132: 903 | O132: 955 | P132: 52 | Q132: 903 | R132: 955 | S132: 18
A133: 43862 | B133: =DAY(EOMONTH(Base[[#This Row],[FECHA]],0)) -> 29 | C133: =PROPER(TEXT(Base[[#This Row],[FECHA]],"MMMM")) -> Febrero | D133: =YEAR(Base[[#This Row],[FECHA]]) -> 2020 | E133: PUIOAJ-00001368 | F133: La Delicia | G133: 4 estrellas | H133: Hostería | I133: 9 | J133: 596 | K133: =Base[[#This Row],[VENTAS POR ALOJAMIENTO DURANTE EL MES DE LA ENCUESTA]]/1000 -> 0.596 | L133: 40 | M133: 40 | N133: 0 | O133: 40 | P133: 40 | Q133: 0 | R133: 40 | S133: 6
A134: 43862 | B134: =DAY(EOMONTH(Base[[#This Row],[FECHA]],0)) -> 29 | C134: =PROPER(TEXT(Base[[#This Row],[FECHA]],"MMMM")) -> Febrero | D134: =YEAR(Base[[#This Row],[FECHA]]) -> 2020 | E134: PUIOAJ-00000370 | F134: Eugenio Espejo | G134: 4 estrellas | H134: Hotel | I134: 30 | J134: 76219.67 | K134: =Base[[#This Row],[VENTAS POR ALOJAMIENTO DURANTE EL MES DE LA ENCUESTA]]/1000 -> 76.21967 | L134: 671 | M134: 133 | N134: 806 | O134: 939 | P134: 133 | Q134: 806 | R134: 939 | S134: 0
A135: 43862 | B135: =DAY(EOMONTH(Base[[#This Row],[FECHA]],0)) -> 29 | C135: =PROPER(TEXT(Base[[#This Row],[FECHA]],"MMMM")) -> Febrero | D135: =YEAR(Base[[#This Row],[FECHA]]) -> 2020 | E135: PUIOAJ-00000374 | F135: Los Chillos | G135: 4 estrellas | H135: Hostería | I135: 10 | J135: 1338.3 | K135: =Base[[#This Row],[VENTAS POR ALOJAMIENTO DURANTE EL MES DE LA ENCUESTA]]/1000 -> 1.3383 | L135: 18 | M135: 36 | N135: 0 | O135: 36 | P135: 36 | Q135: 0 | R135: 36 | S135: 9
A136: 43862 | B136: =DAY(EOMONTH(Base[[#This Row],[FECHA]],0)) -> 29 | C136: =PROPER(TEXT(Base[[#This Row],[FECHA]],"MMMM")) -> Febrero | D136: =YEAR(Base[[#This Row],[FECHA]]) -> 2020 | E136: PUIOAJ-00000072 | F136: La Mariscal | G136: 4 estrellas | H136: Hotel | J136: 121353.66 | K136: =Base[[#This Row],[VENTAS POR ALOJAMIENTO DURANTE EL MES DE LA ENCUESTA]]/1000 -> 121.35366 | L136: 1004 | M136: 1187 | N136: 302 | O136: 1489 | P136: 1187 | Q136: 302 | R136: 1489 | S136: 76
A137: 43862 | B137: =DAY(EOMONTH(Base[[#This Row],[FECHA]],0)) -> 29 | C137: =PROPER(TEXT(Base[[#This Row],[FECHA]],"MMMM")) -> Febrero | D137: =YEAR(Base[[#This Row],[FECHA]]) -> 2020 | E137: PUIOAJ-00000111 | F137: La Delicia | G137: 3 estrellas | H137: Lodge | I137: 360 | J137: 14539 | K137: =Base[[#This Row],[VENTAS POR ALOJAMIENTO DURANTE EL MES DE LA ENCUESTA]]/1000 -> 14.539 | L137: 99 | M137: 10 | N137: 30 | O137: 40 | P137: 35 | Q137: 124 | R137: 159 | S137: 0
A138: 43862 | B138: =DAY(EOMONTH(Base[[#This Row],[FECHA]],0)) -> 29 | C138: =PROPER(TEXT(Base[[#This Row],[FECHA]],"MMMM")) -> Febrero | D138: =YEAR(Base[[#This Row],[FECHA]]) -> 2020 | E138: PUIOAJ-00001342 | F138: Manuela Sáenz | G138: 3 estrellas | H138: Hotel | I138: 6 | J138: 11840 | K138: =Base[[#This Row],[VENTAS POR ALOJAMIENTO DURANTE EL MES DE LA ENCUESTA]]/1000 -> 11.84 | L138: 66 | M138: 0 | N138: 132 | O138: 132 | P138: 0 | Q138: 132 | R138: 132 | S138: 6
A139: 43862 | B139: =DAY(EOMONTH(Base[[#This Row],[FECHA]],0)) -> 29 | C139: =PROPER(TEXT(Base[[#This Row],[FECHA]],"MMMM")) -> Febrero | D139: =YEAR(Base[[#This Row],[FECHA]]) -> 2020 | E139: PUIOAJ-00000430 | F139: Tumbaco | G139: 3 estrellas | H139: Hacienda Turística | I139: 21 | J139: 0 | K139: =Base[[#This Row],[VENTAS POR ALOJAMIENTO DURANTE EL MES DE LA ENCUESTA]]/1000 -> 0 | S139: 2
A140: 43891 | B140: =DAY(EOMONTH(Base[[#This Row],[FECHA]],0)) -> 31 | C140: =PROPER(TEXT(Base[[#This Row],[FECHA]],"MMMM")) -> Marzo | D140: =YEAR(Base[[#This Row],[FECHA]]) -> 2020 | E140: PUIOAJ-00000021 | F140: La Mariscal | G140: 3 estrellas | H140: Hotel | I140: 1200 | J140: 3200 | K140: =Base[[#This Row],[VENTAS POR ALOJAMIENTO DURANTE EL MES DE LA ENCUESTA]]/1000 -> 3.2 | L140: 107 | M140: 71 | N140: 7 | O140: 78 | P140: 94 | Q140: 7 | R140: 101 | S140: 9
A141: 43891 | B141: =DAY(EOMONTH(Base[[#This Row],[FECHA]],0)) -> 31 | C141: =PROPER(TEXT(Base[[#This Row],[FECHA]],"MMMM")) -> Marzo | D141: =YEAR(Base[[#This Row],[FECHA]]) -> 2020 | E141: PUIOAJ-00000173 | F141: Eugenio Espejo | G141: 4 estrellas | H141: Hotel | I141: 128 | J141: 62709 | K141: =Base[[#This Row],[VENTAS POR ALOJAMIENTO DURANTE EL MES DE LA ENCUESTA]]/1000 -> 62.709 | L141: 946 | M141: 488 | N141: 460 | O141: 948 | P141: 488 | Q141: 460 | R141: 948 | S141: 0
A142: 43891 | B142: =DAY(EOMONTH(Base[[#This Row],[FECHA]],0)) -> 31 | C142: =PROPER(TEXT(Base[[#This Row],[FECHA]],"MMMM")) -> Marzo | D142: =YEAR(Base[[#This Row],[FECHA]]) -> 2020 | E142: PUIOAJ-00000520 | F142: La Delicia | G142: 3 estrellas | H142: Hostería | I142: 14 | J142: 290 | K142: =Base[[#This Row],[VENTAS POR ALOJAMIENTO DURANTE EL MES DE LA ENCUESTA]]/1000 -> 0.29 | L142: 2 | M142: 2 | N142: 0 | O142: 2 | P142: 12 | Q142: 0 | R142: 12 | S142: 7
A143: 43891 | B143: =DAY(EOMONTH(Base[[#This Row],[FECHA]],0)) -> 31 | C143: =PROPER(TEXT(Base[[#This Row],[FECHA]],"MMMM")) -> Marzo | D143: =YEAR(Base[[#This Row],[FECHA]]) -> 2020 | E143: PUIOAJ-00000172 | F143: La Mariscal | G143: 3 estrellas | H143: Hotel | I143: 20 | J143: 4900 | K143: =Base[[#This Row],[VENTAS POR ALOJAMIENTO DURANTE EL MES DE LA ENCUESTA]]/1000 -> 4.9 | L143: 7 | M143: 0 | N143: 7 | O143: 7 | P143: 7 | Q143: 7 | R143: 14 | S143: 14
A144: 43891 | B144: =DAY(EOMONTH(Base[[#This Row],[FECHA]],0)) -> 31 | C144: =PROPER(TEXT(Base[[#This Row],[FECHA]],"MMMM")) -> Marzo | D144: =YEAR(Base[[#This Row],[FECHA]]) -> 2020 | E144: PUIOAJ-00001434 | F144: La Mariscal | G144: 3 estrellas | H144: Hotel | I144: 9 | J144: 90 | K144: =Base[[#This Row],[VENTAS POR ALOJAMIENTO DURANTE EL MES DE LA ENCUESTA]]/1000 -> 0.09 | L144: 3 | M144: 0 | N144: 3 | O144: 3 | P144: 3 | Q144: 3 | R144: 6 | S144: 6
A145: 43891 | B145: =DAY(EOMONTH(Base[[#This Row],[FECHA]],0)) -> 31 | C145: =PROPER(TEXT(Base[[#This Row],[FECHA]],"MMMM")) -> Marzo | D145: =YEAR(Base[[#This Row],[FECHA]]) -> 2020 | E145: PUIOAJ-00000622 | F145: Manuela Sáenz | G145: 4 estrellas | H145: Hotel | I145: 360 | J145: 4498.55 | K145: =Base[[#This Row],[VENTAS POR ALOJAMIENTO DURANTE EL MES DE LA ENCUESTA]]/1000 -> 4.49855 | L145: 29 | M145: 0 | N145: 66 | O145: 66 | P145: 0 | Q145: 66 | R145: 66 | S145: 8
A146: 43891 | B146: =DAY(EOMONTH(Base[[#This Row],[FECHA]],0)) -> 31 | C146: =PROPER(TEXT(Base[[#This Row],[FECHA]],"MMMM")) -> Marzo | D146: =YEAR(Base[[#This Row],[FECHA]]) -> 2020 | E146: PUIOAJ-00001685 | F146: Eugenio Espejo | G146: 3 estrellas | H146: Hostal | I146: 10 | J146: 6184 | K146: =Base[[#This Row],[VENTAS POR ALOJAMIENTO DURANTE EL MES DE LA ENCUESTA]]/1000 -> 6.184 | L146: 87 | M146: 0 | N146: 187 | O146: 187 | P146: 0 | Q146: 187 | R146: 187 | S146: 6
A147: 43891 | B147: =DAY(EOMONTH(Base[[#This Row],[FECHA]],0)) -> 31 | C147: =PROPER(TEXT(Base[[#This Row],[FECHA]],"MMMM")) -> Marzo | D147: =YEAR(Base[[#This Row],[FECHA]]) -> 2020 | E147: PUIOAJ-00000350 | F147: La Mariscal | G147: 3 estrellas | H147: Hotel | I147: 306 | J147: 216 | K147: =Base[[#This Row],[VENTAS POR ALOJAMIENTO DURANTE EL MES DE LA ENCUESTA]]/1000 -> 0.216 | L147: 4 | M147: 1 | N147: 3 | O147: 4 | P147: 1 | Q147: 3 | R147: 4 | S147: 2
A148: 43891 | B148: =DAY(EOMONTH(Base[[#This Row],[FECHA]],0)) -> 31 | C148: =PROPER(TEXT(Base[[#This Row],[FECHA]],"MMMM")) -> Marzo | D148: =YEAR(Base[[#This Row],[FECHA]]) -> 2020 | E148: PUIOAJ-00000039 | F148: La Mariscal | G148: 3 estrellas | H148: Hotel | I148: 600 | J148: 8190 | K148: =Base[[#This Row],[VENTAS POR ALOJAMIENTO DURANTE EL MES DE LA ENCUESTA]]/1000 -> 8.19 | L148: 167 | M148: 3 | N148: 141 | O148: 144 | P148: 8 | Q148: 231 | R148: 239 | S148: 8
A149: 43891 | B149: =DAY(EOMONTH(Base[[#This Row],[FECHA]],0)) -> 31 | C149: =PROPER(TEXT(Base[[#This Row],[FECHA]],"MMMM")) -> Marzo | D149: =YEAR(Base[[#This Row],[FECHA]]) -> 2020 | E149: PUIOAJ-00000233 | F149: Eugenio Espejo | G149: 4 estrellas | H149: Hotel | I149: 24 | J149: 1500 | K149: =Base[[#This Row],[VENTAS POR ALOJAMIENTO DURANTE EL MES DE LA ENCUESTA]]/1000 -> 1.5 | L149: 9 | M149: 2 | N149: 10 | O149: 12 | P149: 2 | Q149: 10 | R149: 12 | S149: 0
A150: 43891 | B150: =DAY(EOMONTH(Base[[#This Row],[FECHA]],0)) -> 31 | C150: =PROPER(TEXT(Base[[#This Row],[FECHA]],"MMMM")) -> Marzo | D150: =YEAR(Base[[#This Row],[FECHA]]) -> 2020 | E150: PUIOAJ-00001397 | F150: Tumbaco | G150: 5 estrellas | H150: Lodge | I150: 217 | J150: 2331.92 | K150: =Base[[#This Row],[VENTAS POR ALOJAMIENTO DURANTE EL MES DE LA ENCUESTA]]/1000 -> 2.33192 | L150: 20 | M150: 18 | N150: 9 | O150: 27 | P150: 30 | Q150: 13 | R150: 43 | S150: 8
A151: 43891 | B151: =DAY(EOMONTH(Base[[#This Row],[FECHA]],0)) -> 31 | C151: =PROPER(TEXT(Base[[#This Row],[FECHA]],"MMMM")) -> Marzo | D151: =YEAR(Base[[#This Row],[FECHA]]) -> 2020 | E151: PUIOAJ-00000223 | F151: La Mariscal | G151: 4 estrellas | H151: Hotel | I151: 4371 | J151: 100393.94 | K151: =Base[[#This Row],[VENTAS POR ALOJAMIENTO DURANTE EL MES DE LA ENCUESTA]]/1000 -> 100.39394 | L151: 1136 | M151: 556 | N151: 883 | O151: 1439 | P151: 556 | Q151: 883 | R151: 1439 | S151: 56
A152: 43891 | B152: =DAY(EOMONTH(Base[[#This Row],[FECHA]],0)) -> 31 | C152: =PROPER(TEXT(Base[[#This Row],[FECHA]],"MMMM")) -> Marzo | D152: =YEAR(Base[[#This Row],[FECHA]]) -> 2020 | E152: PUIOAJ-00004644 | F152: Tumbaco | G152: 3 estrellas | H152: Hostería | I152: 6 | J152: 0 | K152: =Base[[#This Row],[VENTAS POR ALOJAMIENTO DURANTE EL MES DE LA ENCUESTA]]/1000 -> 0 | M152: 0 | N152: 0 | P152: 0 | Q152: 0 | S152: 2
A153: 43891 | B153: =DAY(EOMONTH(Base[[#This Row],[FECHA]],0)) -> 31 | C153: =PROPER(TEXT(Base[[#This Row],[FECHA]],"MMMM")) -> Marzo | D153: =YEAR(Base[[#This Row],[FECHA]]) -> 2020 | E153: PUIOAJ-00000171 | F153: La Mariscal | G153: 3 estrellas | H153: Hotel | I153: 40 | J153: 10600.34 | K153: =Base[[#This Row],[VENTAS POR ALOJAMIENTO DURANTE EL MES DE LA ENCUESTA]]/1000 -> 10.60034 | L153: 176 | M153: 22 | N153: 154 | O153: 176 | P153: 161 | Q153: 154 | R153: 315 | S153: 25
A154: 43891 | B154: =DAY(EOMONTH(Base[[#This Row],[FECHA]],0)) -> 31 | C154: =PROPER(TEXT(Base[[#This Row],[FECHA]],"MMMM")) -> Marzo | D154: =YEAR(Base[[#This Row],[FECHA]]) -> 2020 | E154: PUIOAJ-00001431 | F154: Manuela Sáenz | G154: 5 estrellas | H154: Hotel | I154: 780 | J154: 6900 | K154: =Base[[#This Row],[VENTAS POR ALOJAMIENTO DURANTE EL MES DE LA ENCUESTA]]/1000 -> 6.9 | L154: 88 | M154: 8 | N154: 80 | O154: 88 | P154: 8 | Q154: 80 | R154: 88 | S154: 19
A155: 43891 | B155: =DAY(EOMONTH(Base[[#This Row],[FECHA]],0)) -> 31 | C155: =PROPER(TEXT(Base[[#This Row],[FECHA]],"MMMM")) -> Marzo | D155: =YEAR(Base[[#This Row],[FECHA]]) -> 2020 | E155: PUIOAJ-00001673 | F155: La Mariscal | G155: 4 estrellas | H155: Hotel | I155: 55 | J155: 45000 | K155: =Base[[#This Row],[VENTAS POR ALOJAMIENTO DURANTE EL MES DE LA ENCUESTA]]/1000 -> 45 | L155: 241 | M155: 300 | N155: 12 | O155: 312 | P155: 700 | Q155: 113 | R155: 813 | S155: 17
A156: 43891 | B156: =DAY(EOMONTH(Base[[#This Row],[FECHA]],0)) -> 31 | C156: =PROPER(TEXT(Base[[#This Row],[FECHA]],"MMMM")) -> Marzo | D156: =YEAR(Base[[#This Row],[FECHA]]) -> 2020 | E156: PUIOAJ-00001342 | F156: Manuela Sáenz | G156: 3 estrellas | H156: Hotel | I156: 186 | J156: 6913 | K156: =Base[[#This Row],[VENTAS POR ALOJAMIENTO DURANTE EL MES DE LA ENCUESTA]]/1000 -> 6.913 | L156: 46 | M156: 0 | N156: 73 | O156: 73 | P156: 0 | Q156: 73 | R156: 73 | S156: 7
A157: 43891 | B157: =DAY(EOMONTH(Base[[#This Row],[FECHA]],0)) -> 31 | C157: =PROPER(TEXT(Base[[#This Row],[FECHA]],"MMMM")) -> Marzo | D157: =YEAR(Base[[#This Row],[FECHA]]) -> 2020 | E157: PUIOAJ-00001368 | F157: La Delicia | G157: 4 estrellas | H157: Hostería | I157: 20 | J157: 0 | K157: =Base[[#This Row],[VENTAS POR ALOJAMIENTO DURANTE EL MES DE LA ENCUESTA]]/1000 -> 0 | M157: 0 | N157: 0 | P157: 0 | Q157: 0 | S157: 5
A158: 43891 | B158: =DAY(EOMONTH(Base[[#This Row],[FECHA]],0)) -> 31 | C158: =PROPER(TEXT(Base[[#This Row],[FECHA]],"MMMM")) -> Marzo | D158: =YEAR(Base[[#This Row],[FECHA]]) -> 2020 | E158: PUIOAJ-00001488 | F158: Eugenio Espejo | G158: 3 estrellas | H158: Hostería | I158: 5 | J158: 0 | K158: =Base[[#This Row],[VENTAS POR ALOJAMIENTO DURANTE EL MES DE LA ENCUESTA]]/1000 -> 0 | M158: 0 | N158: 0 | P158: 0 | Q158: 0 | S158: 3
A159: 43891 | B159: =DAY(EOMONTH(Base[[#This Row],[FECHA]],0)) -> 31 | C159: =PROPER(TEXT(Base[[#This Row],[FECHA]],"MMMM")) -> Marzo | D159: =YEAR(Base[[#This Row],[FECHA]]) -> 2020 | E159: PUIOAJ-00000374 | F159: Los Chillos | G159: 4 estrellas | H159: Hostería | I159: 10 | J159: 526.14 | K159: =Base[[#This Row],[VENTAS POR ALOJAMIENTO DURANTE EL MES DE LA ENCUESTA]]/1000 -> 0.52614 | L159: 8 | M159: 15 | N159: 0 | O159: 15 | P159: 15 | Q159: 3 | R159: 18 | S159: 7
A160: 43891 | B160: =DAY(EOMONTH(Base[[#This Row],[FECHA]],0)) -> 31 | C160: =PROPER(TEXT(Base[[#This Row],[FECHA]],"MMMM")) -> Marzo | D160: =YEAR(Base[[#This Row],[FECHA]]) -> 2020 | E160: PUIOAJ-00000072 | F160: La Mariscal | G160: 4 estrellas | H160: Hotel | I160: 1951 | J160: 37870 | K160: =Base[[#This Row],[VENTAS POR ALOJAMIENTO DURANTE EL MES DE LA ENCUESTA]]/1000 -> 37.87 | L160: 715 | M160: 757 | N160: 291 | O160: 1048 | P160: 757 | Q160: 291 | R160: 1048 | S160: 73
A161: 43891 | B161: =DAY(EOMONTH(Base[[#This Row],[FECHA]],0)) -> 31 | C161: =PROPER(TEXT(Base[[#This Row],[FECHA]],"MMMM")) -> Marzo | D161: =YEAR(Base[[#This Row],[FECHA]]) -> 2020 | E161: PUIOAJ-00000112 | F161: Eugenio Espejo | G161: 3 estrellas | H161: Hostería | I161: 20 | J161: 25000 | K161: =Base[[#This Row],[VENTAS POR ALOJAMIENTO DURANTE EL MES DE LA ENCUESTA]]/1000 -> 25 | L161: 21 | M161: 0 | N161: 26 | O161: 26 | P161: 0 | Q161: 42 | R161: 42 | S161: 13
A162: 43891 | B162: =DAY(EOMONTH(Base[[#This Row],[FECHA]],0)) -> 31 | C162: =PROPER(TEXT(Base[[#This Row],[FECHA]],"MMMM")) -> Marzo | D162: =YEAR(Base[[#This Row],[FECHA]]) -> 2020 | E162: PUIOAJ-00001468 | F162: La Mariscal | G162: 3 estrellas | H162: Hostal | I162: 25 | J162: 0 | K162: =Base[[#This Row],[VENTAS POR ALOJAMIENTO DURANTE EL MES DE LA ENCUESTA]]/1000 -> 0 | L162: 0 | M162: 0 | N162: 0 | O162: 0 | P162: 0 | Q162: 0 | S162: 0
A163: 43922 | B163: =DAY(EOMONTH(Base[[#This Row],[FECHA]],0)) -> 30 | C163: =PROPER(TEXT(Base[[#This Row],[FECHA]],"MMMM")) -> Abril | D163: =YEAR(Base[[#This Row],[FECHA]]) -> 2020 | E163: PUIOAJ-00000021 | F163: La Mariscal | G163: 3 estrellas | H163: Hotel | I163: 1200 | J163: 0 | K163: =Base[[#This Row],[VENTAS POR ALOJAMIENTO DURANTE EL MES DE LA ENCUESTA]]/1000 -> 0 | L163: 0 | M163: 0 | N163: 0 | O163: 0 | P163: 0 | Q163: 0 | S163: 9
A164: 43922 | B164: =DAY(EOMONTH(Base[[#This Row],[FECHA]],0)) -> 30 | C164: =PROPER(TEXT(Base[[#This Row],[FECHA]],"MMMM")) -> Abril | D164: =YEAR(Base[[#This Row],[FECHA]]) -> 2020 | E164: PUIOAJ-00000173 | F164: Eugenio Espejo | G164: 4 estrellas | H164: Hotel | I164: 128 | J164: 15915 | K164: =Base[[#This Row],[VENTAS POR ALOJAMIENTO DURANTE EL MES DE LA ENCUESTA]]/1000 -> 15.915 | L164: 207 | M164: 11 | N164: 0 | O164: 11 | P164: 23 | Q164: 0 | R164: 23 | S164: 76
A165: 43922 | B165: =DAY(EOMONTH(Base[[#This Row],[FECHA]],0)) -> 30 | C165: =PROPER(TEXT(Base[[#This Row],[FECHA]],"MMMM")) -> Abril | D165: =YEAR(Base[[#This Row],[FECHA]]) -> 2020 | E165: PUIOAJ-00000520 | F165: La Delicia | G165: 3 estrellas | H165: Hostería | I165: 12 | J165: 0 | K165: =Base[[#This Row],[VENTAS POR ALOJAMIENTO DURANTE EL MES DE LA ENCUESTA]]/1000 -> 0 | M165: 0 | N165: 0 | P165: 0 | Q165: 0 | S165: 6
A166: 43922 | B166: =DAY(EOMONTH(Base[[#This Row],[FECHA]],0)) -> 30 | C166: =PROPER(TEXT(Base[[#This Row],[FECHA]],"MMMM")) -> Abril | D166: =YEAR(Base[[#This Row],[FECHA]]) -> 2020 | E166: PUIOAJ-00000035 | F166: Eugenio Espejo | G166: 3 estrellas | H166: Hotel | I166: 12 | J166: 0 | K166: =Base[[#This Row],[VENTAS POR ALOJAMIENTO DURANTE EL MES DE LA ENCUESTA]]/1000 -> 0 | M166: 0 | N166: 0 | P166: 0 | Q166: 0 | S166: 3
A167: 43922 | B167: =DAY(EOMONTH(Base[[#This Row],[FECHA]],0)) -> 30 | C167: =PROPER(TEXT(Base[[#This Row],[FECHA]],"MMMM")) -> Abril | D167: =YEAR(Base[[#This Row],[FECHA]]) -> 2020 | E167: PUIOAJ-00000622 | F167: Manuela Sáenz | G167: 4 estrellas | H167: Hotel | I167: 360 | J167: 0 | K167: =Base[[#This Row],[VENTAS POR ALOJAMIENTO DURANTE EL MES DE LA ENCUESTA]]/1000 -> 0 | M167: 0 | N167: 0 | P167: 0 | Q167: 0 | S167: 6
A168: 43922 | B168: =DAY(EOMONTH(Base[[#This Row],[FECHA]],0)) -> 30 | C168: =PROPER(TEXT(Base[[#This Row],[FECHA]],"MMMM")) -> Abril | D168: =YEAR(Base[[#This Row],[FECHA]]) -> 2020 | E168: PUIOAJ-00000423 | F168: Tumbaco | G168: 5 estrellas | H168: Hostería | I168: 7 | J168: 0 | K168: =Base[[#This Row],[VENTAS POR ALOJAMIENTO DURANTE EL MES DE LA ENCUESTA]]/1000 -> 0 | M168: 0 | N168: 0 | P168: 0 | Q168: 0 | S168: 1
A169: 43922 | B169: =DAY(EOMONTH(Base[[#This Row],[FECHA]],0)) -> 30 | C169: =PROPER(TEXT(Base[[#This Row],[FECHA]],"MMMM")) -> Abril | D169: =YEAR(Base[[#This Row],[FECHA]]) -> 2020 | E169: PUIOAJ-00000350 | F169: La Mariscal | G169: 3 estrellas | H169: Hotel | I169: 0 | J169: 0 | K169: =Base[[#This Row],[VENTAS POR ALOJAMIENTO DURANTE EL MES DE LA ENCUESTA]]/1000 -> 0 | L169: 0 | M169: 0 | N169: 0 | O169: 0 | P169: 0 | Q169: 0 | S169: 3
A170: 43922 | B170: =DAY(EOMONTH(Base[[#This Row],[FECHA]],0)) -> 30 | C170: =PROPER(TEXT(Base[[#This Row],[FECHA]],"MMMM")) -> Abril | D170: =YEAR(Base[[#This Row],[FECHA]]) -> 2020 | E170: PUIOAJ-00000039 | F170: La Mariscal | G170: 3 estrellas | H170: Hotel | I170: 20 | J170: 0 | K170: =Base[[#This Row],[VENTAS POR ALOJAMIENTO DURANTE EL MES DE LA ENCUESTA]]/1000 -> 0 | L170: 0 | M170: 0 | N170: 0 | O170: 0 | P170: 0 | Q170: 0 | S170: 8
A171: 43922 | B171: =DAY(EOMONTH(Base[[#This Row],[FECHA]],0)) -> 30 | C171: =PROPER(TEXT(Base[[#This Row],[FECHA]],"MMMM")) -> Abril | D171: =YEAR(Base[[#This Row],[FECHA]]) -> 2020 | E171: PUIOAJ-00001445 | F171: Tumbaco | G171: 5 estrellas | H171: Hotel | I171: 94 | J171: 0 | K171: =Base[[#This Row],[VENTAS POR ALOJAMIENTO DURANTE EL MES DE LA ENCUESTA]]/1000 -> 0 | M171: 84 | N171: 0 | O171: 84 | P171: 84 | Q171: 0 | R171: 84 | S171: 43
A172: 43922 | B172: =DAY(EOMONTH(Base[[#This Row],[FECHA]],0)) -> 30 | C172: =PROPER(TEXT(Base[[#This Row],[FECHA]],"MMMM")) -> Abril | D172: =YEAR(Base[[#This Row],[FECHA]]) -> 2020 | E172: PUIOAJ-00000256 | F172: Manuela Sáenz | G172: 4 estrellas | H172: Hotel | I172: 960 | J172: 0 | K172: =Base[[#This Row],[VENTAS POR ALOJAMIENTO DURANTE EL MES DE LA ENCUESTA]]/1000 -> 0 | M172: 0 | N172: 0 | P172: 0 | Q172: 0 | S172: 46
A173: 43922 | B173: =DAY(EOMONTH(Base[[#This Row],[FECHA]],0)) -> 30 | C173: =PROPER(TEXT(Base[[#This Row],[FECHA]],"MMMM")) -> Abril | D173: =YEAR(Base[[#This Row],[FECHA]]) -> 2020 | E173: PUIOAJ-00000233 | F173: Eugenio Espejo | G173: 4 estrellas | H173: Hotel | I173: 24 | J173: 0 | K173: =Base[[#This Row],[VENTAS POR ALOJAMIENTO DURANTE EL MES DE LA ENCUESTA]]/1000 -> 0 | M173: 0 | N173: 0 | P173: 0 | Q173: 0 | S173: 0
A174: 43922 | B174: =DAY(EOMONTH(Base[[#This Row],[FECHA]],0)) -> 30 | C174: =PROPER(TEXT(Base[[#This Row],[FECHA]],"MMMM")) -> Abril | D174: =YEAR(Base[[#This Row],[FECHA]]) -> 2020 | E174: PUIOAJ-00001397 | F174: Tumbaco | G174: 5 estrellas | H174: Lodge | I174: 210 | J174: 0 | K174: =Base[[#This Row],[VENTAS POR ALOJAMIENTO DURANTE EL MES DE LA ENCUESTA]]/1000 -> 0 | M174: 0 | N174: 0 | P174: 0 | Q174: 0 | S174: 3
A175: 43922 | B175: =DAY(EOMONTH(Base[[#This Row],[FECHA]],0)) -> 30 | C175: =PROPER(TEXT(Base[[#This Row],[FECHA]],"MMMM")) -> Abril | D175: =YEAR(Base[[#This Row],[FECHA]]) -> 2020 | E175: PUIOAJ-00004644 | F175: Tumbaco | G175: 3 estrellas | H175: Hostería | I175: 6 | J175: 0 | K175: =Base[[#This Row],[VENTAS POR ALOJAMIENTO DURANTE EL MES DE LA ENCUESTA]]/1000 -> 0 | M175: 0 | N175: 0 | P175: 0 | Q175: 0 | S175: 2
A176: 43922 | B176: =DAY(EOMONTH(Base[[#This Row],[FECHA]],0)) -> 30 | C176: =PROPER(TEXT(Base[[#This Row],[FECHA]],"MMMM")) -> Abril | D176: =YEAR(Base[[#This Row],[FECHA]]) -> 2020 | E176: PUIOAJ-00000171 | F176: La Mariscal | G176: 3 estrellas | H176: Hotel | I176: 40 | J176: 15960 | K176: =Base[[#This Row],[VENTAS POR ALOJAMIENTO DURANTE EL MES DE LA ENCUESTA]]/1000 -> 15.96 | L176: 403 | M176: 0 | N176: 300 | O176: 300 | P176: 0 | Q176: 410 | R176: 410 | S176: 20
A177: 43922 | B177: =DAY(EOMONTH(Base[[#This Row],[FECHA]],0)) -> 30 | C177: =PROPER(TEXT(Base[[#This Row],[FECHA]],"MMMM")) -> Abril | D177: =YEAR(Base[[#This Row],[FECHA]]) -> 2020 | E177: PUIOAJ-00000152 | F177: Eugenio Espejo | G177: 4 estrellas | H177: Hotel | I177: 4560 | J177: 0 | K177: =Base[[#This Row],[VENTAS POR ALOJAMIENTO DURANTE EL MES DE LA ENCUESTA]]/1000 -> 0 | M177: 0 | N177: 0 | P177: 0 | Q177: 0 | S177: 0
A178: 43922 | B178: =DAY(EOMONTH(Base[[#This Row],[FECHA]],0)) -> 30 | C178: =PROPER(TEXT(Base[[#This Row],[FECHA]],"MMMM")) -> Abril | D178: =YEAR(Base[[#This Row],[FECHA]]) -> 2020 | E178: PUIOAJ-00000374 | F178: Los Chillos | G178: 4 estrellas | H178: Hostería | I178: 10 | J178: 35 | K178: =Base[[#This Row],[VENTAS POR ALOJAMIENTO DURANTE EL MES DE LA ENCUESTA]]/1000 -> 0.035 | L178: 1 | M178: 1 | N178: 0 | O178: 1 | P178: 1 | Q178: 0 | R178: 1 | S178: 2
A179: 43922 | B179: =DAY(EOMONTH(Base[[#This Row],[FECHA]],0)) -> 30 | C179: =PROPER(TEXT(Base[[#This Row],[FECHA]],"MMMM")) -> Abril | D179: =YEAR(Base[[#This Row],[FECHA]]) -> 2020 | E179: PUIOAJ-00000072 | F179: La Mariscal | G179: 4 estrellas | H179: Hotel | I179: 86 | J179: 308 | K179: =Base[[#This Row],[VENTAS POR ALOJAMIENTO DURANTE EL MES DE LA ENCUESTA]]/1000 -> 0.308 | L179: 6 | M179: 6 | N179: 0 | O179: 6 | P179: 6 | Q179: 0 | R179: 6 | S179: 69
A180: 43922 | B180: =DAY(EOMONTH(Base[[#This Row],[FECHA]],0)) -> 30 | C180: =PROPER(TEXT(Base[[#This Row],[FECHA]],"MMMM")) -> Abril | D180: =YEAR(Base[[#This Row],[FECHA]]) -> 2020 | E180: PUIOAJ-00000112 | F180: Eugenio Espejo | G180: 3 estrellas | H180: Hostería | I180: 20 | J180: 0 | K180: =Base[[#This Row],[VENTAS POR ALOJAMIENTO DURANTE EL MES DE LA ENCUESTA]]/1000 -> 0 | M180: 0 | N180: 0 | P180: 0 | Q180: 0 | S180: 11
A181: 43922 | B181: =DAY(EOMONTH(Base[[#This Row],[FECHA]],0)) -> 30 | C181: =PROPER(TEXT(Base[[#This Row],[FECHA]],"MMMM")) -> Abril | D181: =YEAR(Base[[#This Row],[FECHA]]) -> 2020 | E181: PUIOAJ-00001342 | F181: Manuela Sáenz | G181: 3 estrellas | H181: Hotel | I181: 180 | J181: 0 | K181: =Base[[#This Row],[VENTAS POR ALOJAMIENTO DURANTE EL MES DE LA ENCUESTA]]/1000 -> 0 | M181: 0 | N181: 0 | P181: 0 | Q181: 0 | S181: 6
A182: 43952 | B182: =DAY(EOMONTH(Base[[#This Row],[FECHA]],0)) -> 31 | C182: =PROPER(TEXT(Base[[#This Row],[FECHA]],"MMMM")) -> Mayo | D182: =YEAR(Base[[#This Row],[FECHA]]) -> 2020 | E182: PUIOAJ-00000449 | F182: Eugenio Espejo | G182: 3 estrellas | H182: Hostal | I182: 9 | J182: 799 | K182: =Base[[#This Row],[VENTAS POR ALOJAMIENTO DURANTE EL MES DE LA ENCUESTA]]/1000 -> 0.799 | L182: 14 | M182: 1 | N182: 1 | O182: 2 | P182: 14 | Q182: 14 | R182: 28 | S182: 6
A183: 43952 | B183: =DAY(EOMONTH(Base[[#This Row],[FECHA]],0)) -> 31 | C183: =PROPER(TEXT(Base[[#This Row],[FECHA]],"MMMM")) -> Mayo | D183: =YEAR(Base[[#This Row],[FECHA]]) -> 2020 | E183: PUIOAJ-00004601 | F183: Eugenio Espejo | G183: 3 estrellas | H183: Hotel | I183: 12 | J183: 8619 | K183: =Base[[#This Row],[VENTAS POR ALOJAMIENTO DURANTE EL MES DE LA ENCUESTA]]/1000 -> 8.619 | L183: 20 | M183: 31 | N183: 0 | O183: 31 | P183: 31 | Q183: 0 | R183: 31 | S183: 12
A184: 43952 | B184: =DAY(EOMONTH(Base[[#This Row],[FECHA]],0)) -> 31 | C184: =PROPER(TEXT(Base[[#This Row],[FECHA]],"MMMM")) -> Mayo | D184: =YEAR(Base[[#This Row],[FECHA]]) -> 2020 | E184: PUIOAJ-00000035 | F184: Eugenio Espejo | G184: 3 estrellas | H184: Hotel | I184: 12 | K184: =Base[[#This Row],[VENTAS POR ALOJAMIENTO DURANTE EL MES DE LA ENCUESTA]]/1000 -> 0 | S184: 4
A185: 43952 | B185: =DAY(EOMONTH(Base[[#This Row],[FECHA]],0)) -> 31 | C185: =PROPER(TEXT(Base[[#This Row],[FECHA]],"MMMM")) -> Mayo | D185: =YEAR(Base[[#This Row],[FECHA]]) -> 2020 | E185: PUIOAJ-00000290 | F185: La Delicia | G185: 4 estrellas | H185: Lodge | I185: 17 | K185: =Base[[#This Row],[VENTAS POR ALOJAMIENTO DURANTE EL MES DE LA ENCUESTA]]/1000 -> 0 | S185: 50
A186: 43952 | B186: =DAY(EOMONTH(Base[[#This Row],[FECHA]],0)) -> 31 | C186: =PROPER(TEXT(Base[[#This Row],[FECHA]],"MMMM")) -> Mayo | D186: =YEAR(Base[[#This Row],[FECHA]]) -> 2020 | E186: PUIOAJ-00001482 | F186: La Mariscal | G186: 3 estrellas | H186: Hotel | I186: 15 | J186: 3 | K186: =Base[[#This Row],[VENTAS POR ALOJAMIENTO DURANTE EL MES DE LA ENCUESTA]]/1000 -> 0.003 | L186: 104 | M186: 11 | N186: 0 | O186: 11 | P186: 78 | Q186: 0 | R186: 78 | S186: 28
A187: 43952 | B187: =DAY(EOMONTH(Base[[#This Row],[FECHA]],0)) -> 31 | C187: =PROPER(TEXT(Base[[#This Row],[FECHA]],"MMMM")) -> Mayo | D187: =YEAR(Base[[#This Row],[FECHA]]) -> 2020 | E187: PUIOAJ-00000423 | F187: Tumbaco | G187: 5 estrellas | H187: Hostería | I187: 7 | K187: =Base[[#This Row],[VENTAS POR ALOJAMIENTO DURANTE EL MES DE LA ENCUESTA]]/1000 -> 0 | S187: 3
A188: 43952 | B188: =DAY(EOMONTH(Base[[#This Row],[FECHA]],0)) -> 31 | C188: =PROPER(TEXT(Base[[#This Row],[FECHA]],"MMMM")) -> Mayo | D188: =YEAR(Base[[#This Row],[FECHA]]) -> 2020 | E188: PUIOAJ-00000435 | F188: Manuela Sáenz | G188: 3 estrellas | H188: Hostal | I188: 6 | K188: =Base[[#This Row],[VENTAS POR ALOJAMIENTO DURANTE EL MES DE LA ENCUESTA]]/1000 -> 0 | S188: 2
A189: 43952 | B189: =DAY(EOMONTH(Base[[#This Row],[FECHA]],0)) -> 31 | C189: =PROPER(TEXT(Base[[#This Row],[FECHA]],"MMMM")) -> Mayo | D189: =YEAR(Base[[#This Row],[FECHA]]) -> 2020 | E189: PUIOAJ-00000350 | F189: La Mariscal | G189: 3 estrellas | H189: Hotel | I189: 1 | K189: =Base[[#This Row],[VENTAS POR ALOJAMIENTO DURANTE EL MES DE LA ENCUESTA]]/1000 -> 0 | O189: 0 | S189: 2
A190: 43952 | B190: =DAY(EOMONTH(Base[[#This Row],[FECHA]],0)) -> 31 | C190: =PROPER(TEXT(Base[[#This Row],[FECHA]],"MMMM")) -> Mayo | D190: =YEAR(Base[[#This Row],[FECHA]]) -> 2020 | E190: PUIOAJ-00000039 | F190: La Mariscal | G190: 3 estrellas | H190: Hotel | I190: 0 | K190: =Base[[#This Row],[VENTAS POR ALOJAMIENTO DURANTE EL MES DE LA ENCUESTA]]/1000 -> 0 | O190: 0 | S190: 7
A191: 43952 | B191: =DAY(EOMONTH(Base[[#This Row],[FECHA]],0)) -> 31 | C191: =PROPER(TEXT(Base[[#This Row],[FECHA]],"MMMM")) -> Mayo | D191: =YEAR(Base[[#This Row],[FECHA]]) -> 2020 | E191: PUIOAJ-00001445 | F191: Tumbaco | G191: 5 estrellas | H191: Hotel | I191: 94 | K191: =Base[[#This Row],[VENTAS POR ALOJAMIENTO DURANTE EL MES DE LA ENCUESTA]]/1000 -> 0 | S191: 91
A192: 43952 | B192: =DAY(EOMONTH(Base[[#This Row],[FECHA]],0)) -> 31 | C192: =PROPER(TEXT(Base[[#This Row],[FECHA]],"MMMM")) -> Mayo | D192: =YEAR(Base[[#This Row],[FECHA]]) -> 2020 | E192: PUIOAJ-00000129 | F192: La Mariscal | G192: 3 estrellas | H192: Hotel | I192: 0 | K192: =Base[[#This Row],[VENTAS POR ALOJAMIENTO DURANTE EL MES DE LA ENCUESTA]]/1000 -> 0 | O192: 0 | S192: 4
A193: 43952 | B193: =DAY(EOMONTH(Base[[#This Row],[FECHA]],0)) -> 31 | C193: =PROPER(TEXT(Base[[#This Row],[FECHA]],"MMMM")) -> Mayo | D193: =YEAR(Base[[#This Row],[FECHA]]) -> 2020 | E193: PUIOAJ-00001397 | F193: Tumbaco | G193: 5 estrellas | H193: Lodge | I193: 7 | K193: =Base[[#This Row],[VENTAS POR ALOJAMIENTO DURANTE EL MES DE LA ENCUESTA]]/1000 -> 0 | S193: 5
A194: 43952 | B194: =DAY(EOMONTH(Base[[#This Row],[FECHA]],0)) -> 31 | C194: =PROPER(TEXT(Base[[#This Row],[FECHA]],"MMMM")) -> Mayo | D194: =YEAR(Base[[#This Row],[FECHA]]) -> 2020 | E194: PUIOAJ-00000064 | F194: La Mariscal | G194: 5 estrellas | H194: Hotel | I194: 255 | J194: 90180 | K194: =Base[[#This Row],[VENTAS POR ALOJAMIENTO DURANTE EL MES DE LA ENCUESTA]]/1000 -> 90.18 | L194: 1265 | M194: 191 | N194: 12 | O194: 203 | P194: 2690 | Q194: 145 | R194: 2835 | S194: 0
A195: 43952 | B195: =DAY(EOMONTH(Base[[#This Row],[FECHA]],0)) -> 31 | C195: =PROPER(TEXT(Base[[#This Row],[FECHA]],"MMMM")) -> Mayo | D195: =YEAR(Base[[#This Row],[FECHA]]) -> 2020 | E195: PUIOAJ-00000505 | F195: Tumbaco | G195: 3 estrellas | H195: Hostal | I195: 9 | K195: =Base[[#This Row],[VENTAS POR ALOJAMIENTO DURANTE EL MES DE LA ENCUESTA]]/1000 -> 0 | S195: 0
A196: 43952 | B196: =DAY(EOMONTH(Base[[#This Row],[FECHA]],0)) -> 31 | C196: =PROPER(TEXT(Base[[#This Row],[FECHA]],"MMMM")) -> Mayo | D196: =YEAR(Base[[#This Row],[FECHA]]) -> 2020 | E196: PUIOAJ-00000520 | F196: La Delicia | G196: 3 estrellas | H196: Hostería | I196: 14 | K196: =Base[[#This Row],[VENTAS POR ALOJAMIENTO DURANTE EL MES DE LA ENCUESTA]]/1000 -> 0 | S196: 11
A197: 43952 | B197: =DAY(EOMONTH(Base[[#This Row],[FECHA]],0)) -> 31 | C197: =PROPER(TEXT(Base[[#This Row],[FECHA]],"MMMM")) -> Mayo | D197: =YEAR(Base[[#This Row],[FECHA]]) -> 2020 | E197: PUIOAJ-00000108 | F197: Los Chillos | G197: 4 estrellas | H197: Hostería | I197: 10 | K197: =Base[[#This Row],[VENTAS POR ALOJAMIENTO DURANTE EL MES DE LA ENCUESTA]]/1000 -> 0 | S197: 7
A198: 43952 | B198: =DAY(EOMONTH(Base[[#This Row],[FECHA]],0)) -> 31 | C198: =PROPER(TEXT(Base[[#This Row],[FECHA]],"MMMM")) -> Mayo | D198: =YEAR(Base[[#This Row],[FECHA]]) -> 2020 | E198: PUIOAJ-00000381 | F198: La Delicia | G198: 3 estrellas | H198: Hostería | I198: 8 | K198: =Base[[#This Row],[VENTAS POR ALOJAMIENTO DURANTE EL MES DE LA ENCUESTA]]/1000 -> 0 | S198: 6
A199: 43952 | B199: =DAY(EOMONTH(Base[[#This Row],[FECHA]],0)) -> 31 | C199: =PROPER(TEXT(Base[[#This Row],[FECHA]],"MMMM")) -> Mayo | D199: =YEAR(Base[[#This Row],[FECHA]]) -> 2020 | E199: PUIOAJ-00000110 | F199: Eugenio Espejo | G199: 3 estrellas | H199: Hostería | I199: 14 | K199: =Base[[#This Row],[VENTAS POR ALOJAMIENTO DURANTE EL MES DE LA ENCUESTA]]/1000 -> 0 | S199: 2
A200: 43952 | B200: =DAY(EOMONTH(Base[[#This Row],[FECHA]],0)) -> 31 | C200: =PROPER(TEXT(Base[[#This Row],[FECHA]],"MMMM")) -> Mayo | D200: =YEAR(Base[[#This Row],[FECHA]]) -> 2020 | E200: PUIOAJ-00000374 | F200: Los Chillos | G200: 4 estrellas | H200: Hostería | I200: 10 | K200: =Base[[#This Row],[VENTAS POR ALOJAMIENTO DURANTE EL MES DE LA ENCUESTA]]/1000 -> 0 | S200: 3
... 465 more rows

Sheet PROMEDIOS (hidden)
A1: Fecha | B1: Atributo | C1: 3 estrellas | D1: 4 estrellas | E1: 5 estrellas | F1: Total
A2: 2019-12-01 | B2: Empleos | C2: 277 | D2: 537 | E2: 1203 | F2: 2017
A3: 2019-12-01 | B3: Estancia media | C3: 1.238633571 | D3: 1.397559667 | E3: 1.729371393 | F3: 1
A4: 2019-12-01 | B4: Habitaciones | C4: 790 | D4: 825 | E4: 580 | F4: 2195
A5: 2019-12-01 | B5: Habitaciones vendidas | C5: 5474 | D5: 9880 | E5: 8916 | F5: 24270
A6: 2019-12-01 | B6: Ingresos | C6: 226909.33 | D6: 773374.67 | E6: 864962.5 | F6: 1865247
A7: 2019-12-01 | B7: Ingresos (Miles) | C7: 226.90933 | D7: 773.37467 | E7: 864.9625 | F7: 1865
A8: 2019-12-01 | B8: Llegadas | C8: 4069 | D8: 7458 | E8: 6411 | F8: 17938
A9: 2019-12-01 | B9: Pernoctaciones | C9: 5040 | D9: 10423 | E9: 11087 | F9: 26550
A10: 2019-12-01 | B10: TOH | C10: 0.223519804 | D10: 0.3863147605 | E10: 0.4958843159 | F10: 0
A11: 2019-12-01 | B11: Tarifa promedio | C11: 41.45219766 | D11: 78.27678846 | E11: 97.01239345 | F11: 77
A12: 2020-01-01 | B12: Empleos | C12: 165 | D12: 443 | E12: 1128 | F12: 1736
A13: 2020-01-01 | B13: Estancia media | C13: 2.559177533 | D13: 1.208227041 | E13: 3.202993255 | F13: 2
A14: 2020-01-01 | B14: Habitaciones | C14: 1039 | D14: 1275 | E14: 779 | F14: 3093
A15: 2020-01-01 | B15: Habitaciones vendidas | C15: 2582 | D15: 5740 | E15: 15281 | F15: 23603
A16: 2020-01-01 | B16: Ingresos | C16: 134780.24 | D16: 438663.95 | E16: 1701399.31 | F16: 2274844
A17: 2020-01-01 | B17: Ingresos (Miles) | C17: 134.78024 | D17: 438.66395 | E17: 1701.39931 | F17: 2275
A18: 2020-01-01 | B18: Llegadas | C18: 1994 | D18: 6272 | E18: 4744 | F18: 13010
A19: 2020-01-01 | B19: Pernoctaciones | C19: 5103 | D19: 7578 | E19: 15195 | F19: 27876
A20: 2020-01-01 | B20: TOH | C20: 0.08016392934 | D20: 0.1452245414 | E20: 0.6327798253 | F20: 0
A21: 2020-01-01 | B21: Tarifa promedio | C21: 52.19993803 | D21: 76.42229094 | E21: 111.3408357 | F21: 96
A22: 2020-02-01 | B22: Empleos | C22: 26 | D22: 234 | E22: 13 | F22: 273
A23: 2020-02-01 | B23: Estancia media | C23: 1.682926829 | D23: 1.041556728 | E23: 1.070588235 | F23: 1
A24: 2020-02-01 | B24: Habitaciones | C24: 466 | D24: 1332 | E24: 210 | F24: 2008
A25: 2020-02-01 | B25: Habitaciones vendidas | C25: 257 | D25: 6613 | E25: 88 | F25: 6958
A26: 2020-02-01 | B26: Ingresos | C26: 36476 | D26: 544678.18 | E26: 10608.36 | F26: 591763
A27: 2020-02-01 | B27: Ingresos (Miles) | C27: 36.476 | D27: 544.67818 | E27: 10.60836 | F27: 592
A28: 2020-02-01 | B28: Llegadas | C28: 205 | D28: 7580 | E28: 85 | F28: 7870
A29: 2020-02-01 | B29: Pernoctaciones | C29: 345 | D29: 7895 | E29: 91 | F29: 8331
A30: 2020-02-01 | B30: TOH | C30: 0.01901731538 | D30: 0.1711970591 | E30: 0.0144499179 | F30: 0
A31: 2020-02-01 | B31: Tarifa promedio | C31: 141.9299611 | D31: 82.36476334 | E31: 120.5495455 | F31: 85
A32: 2020-03-01 | B32: Empleos | C32: 102 | D32: 166 | E32: 27 | F32: 295
A33: 2020-03-01 | B33: Estancia media | C33: 1.418571429 | D33: 1.13125 | E33: 1.139130435 | F33: 1
A34: 2020-03-01 | B34: Habitaciones | C34: 2441 | D34: 6919 | E34: 997 | F34: 10357
A35: 2020-03-01 | B35: Habitaciones vendidas | C35: 620 | D35: 3084 | E35: 108 | F35: 3812
A36: 2020-03-01 | B36: Ingresos | C36: 65583.34 | D36: 252497.63 | E36: 9231.92 | F36: 327313
A37: 2020-03-01 | B37: Ingresos (Miles) | C37: 65.58334 | D37: 252.49763 | E37: 9.23192 | F37: 327
A38: 2020-03-01 | B38: Llegadas | C38: 700 | D38: 3840 | E38: 115 | F38: 4655
A39: 2020-03-01 | B39: Pernoctaciones | C39: 993 | D39: 4344 | E39: 131 | F39: 5468
A40: 2020-03-01 | B40: TOH | C40: 0.008193363376 | D40: 0.01437835973 | E40: 0.00349435403 | F40: 0
A41: 2020-03-01 | B41: Tarifa promedio | C41: 105.7795806 | D41: 81.87342088 | E41: 85.48074074 | F41: 86
A42: 2020-04-01 | B42: Empleos | C42: 68 | D42: 199 | E42: 47 | F42: 314
A43: 2020-04-01 | B43: Estancia media | C43: 1.366666667 | D43: 1.666666667 | E43: 1 | F43: 1
A44: 2020-04-01 | B44: Habitaciones | C44: 1490 | D44: 6128 | E44: 311 | F44: 7929
A45: 2020-04-01 | B45: Habitaciones vendidas | C45: 403 | D45: 214 | F45: 617
A46: 2020-04-01 | B46: Ingresos | C46: 15960 | D46: 16258 | E46: 0 | F46: 32218
A47: 2020-04-01 | B47: Ingresos (Miles) | C47: 15.96 | D47: 16.258 | E47: 0 | F47: 32
A48: 2020-04-01 | B48: Llegadas | C48: 300 | D48: 18 | E48: 84 | F48: 402
A49: 2020-04-01 | B49: Pernoctaciones | C49: 410 | D49: 30 | E49: 84 | F49: 524
A50: 2020-04-01 | B50: TOH | C50: 0.009015659955 | D50: 0.001164055701 | F50: 0
A51: 2020-04-01 | B51: Tarifa promedio | C51: 39.60297767 | D51: 75.97196262 | F51: 52
A52: 2020-05-01 | B52: Empleos | C52: 202 | D52: 403 | E52: 141 | F52: 746
A53: 2020-05-01 | B53: Estancia media | C53: 6.191489362 | D53: 1.003016591 | E53: 12.67622951 | F53: 3
A54: 2020-05-01 | B54: Habitaciones | C54: 344 | D54: 348 | E54: 507 | F54: 1199
A55: 2020-05-01 | B55: Habitaciones vendidas | C55: 1156 | D55: 1228 | E55: 1291 | F55: 3675
A56: 2020-05-01 | B56: Ingresos | C56: 54638.76 | D56: 56529 | E56: 90180 | F56: 201348
A57: 2020-05-01 | B57: Ingresos (Miles) | C57: 54.63876 | D57: 56.529 | E57: 90.18 | F57: 201
A58: 2020-05-01 | B58: Llegadas | C58: 188 | D58: 1326 | E58: 244 | F58: 1758
A59: 2020-05-01 | B59: Pernoctaciones | C59: 1164 | D59: 1330 | E59: 3093 | F59: 5587
A60: 2020-05-01 | B60: TOH | C60: 0.1084021005 | D60: 0.1138301817 | E60: 0.08214035757 | F60: 0
A61: 2020-05-01 | B61: Tarifa promedio | C61: 47.26536332 | D61: 46.03338762 | E61: 69.85282727 | F61: 55
A62: 2020-06-01 | B62: Empleos | C62: 76 | D62: 220 | E62: 50 | F62: 346
A63: 2020-06-01 | B63: Estancia media | C63: 2.066666667 | D63: 1.060737527 | E63: 3.946078431 | F63: 2
A64: 2020-06-01 | B64: Habitaciones | C64: 171 | D64: 595 | E64: 266 | F64: 1032
A65: 2020-06-01 | B65: Habitaciones vendidas | C65: 282 | D65: 460 | E65: 805 | F65: 1547
A66: 2020-06-01 | B66: Ingresos | C66: 14595.35 | D66: 25900.9 | E66: 45758 | F66: 86254
A67: 2020-06-01 | B67: Ingresos (Miles) | C67: 14.59535 | D67: 25.9009 | E67: 45.758 | F67: 86
A68: 2020-06-01 | B68: Llegadas | C68: 120 | D68: 461 | E68: 204 | F68: 785
A69: 2020-06-01 | B69: Pernoctaciones | C69: 248 | D69: 489 | E69: 805 | F69: 1542
A70: 2020-06-01 | B70: TOH | C70: 0.05497076023 | D70: 0.02577030812 | E70: 0.100877193 | F70: 0
A71: 2020-06-01 | B71: Tarifa promedio | C71: 51.75656028 | D71: 56.30630435 | E71: 56.84223602 | F71: 56
A72: 2020-07-01 | B72: Empleos | C72: 99 | D72: 78 | E72: 21 | F72: 198
A73: 2020-07-01 | B73: Estancia media | C73: 1.482608696 | D73: 1 | E73: 1.008196721 | F73: 1
A74: 2020-07-01 | B74: Habitaciones | C74: 376 | D74: 299 | E74: 101 | F74: 776
A75: 2020-07-01 | B75: Habitaciones vendidas | C75: 212 | D75: 70 | E75: 125 | F75: 407
A76: 2020-07-01 | B76: Ingresos | C76: 13292.02 | D76: 4291 | E76: 10194.04 | F76: 27777
A77: 2020-07-01 | B77: Ingresos (Miles) | C77: 13.29202 | D77: 4.291 | E77: 10.19404 | F77: 28
A78: 2020-07-01 | B78: Llegadas | C78: 230 | D78: 86 | E78: 122 | F78: 438
A79: 2020-07-01 | B79: Pernoctaciones | C79: 341 | D79: 86 | E79: 123 | F79: 550
A80: 2020-07-01 | B80: TOH | C80: 0.01818805765 | D80: 0.007552055238 | E80: 0.03992334717 | F80: 0
A81: 2020-07-01 | B81: Tarifa promedio | C81: 62.69820755 | D81: 61.3 | E81: 81.55232 | F81: 68
A82: 2020-08-01 | B82: Empleos | C82: 79 | D82: 35 | E82: 89 | F82: 203
A83: 2020-08-01 | B83: Estancia media | C83: 1.357142857 | D83: 1 | E83: 1 | F83: 1
A84: 2020-08-01 | B84: Habitaciones | C84: 305 | D84: 214 | E84: 222 | F84: 741
A85: 2020-08-01 | B85: Habitaciones vendidas | C85: 440 | D85: 26 | E85: 1214 | F85: 1680
A86: 2020-08-01 | B86: Ingresos | C86: 22318.96 | D86: 1274 | E86: 127031.89 | F86: 150625
A87: 2020-08-01 | B87: Ingresos (Miles) | C87: 22.31896 | D87: 1.274 | E87: 127.03189 | F87: 151
A88: 2020-08-01 | B88: Llegadas | C88: 406 | D88: 26 | E88: 1405 | F88: 1837
A89: 2020-08-01 | B89: Pernoctaciones | C89: 551 | D89: 26 | E89: 1405 | F89: 1982
A90: 2020-08-01 | B90: TOH | C90: 0.04653622422 | D90: 0.0039192041 | E90: 0.1764022087 | F90: 0
A91: 2020-08-01 | B91: Tarifa promedio | C91: 50.72490909 | D91: 49 | E91: 104.6391186 | F91: 90
A92: 2020-09-01 | B92: Empleos | C92: 61 | D92: 104 | E92: 86 | F92: 251
A93: 2020-09-01 | B93: Estancia media | C93: 1.148401826 | D93: 1.128770302 | E93: 1.402790698 | F93: 1
A94: 2020-09-01 | B94: Habitaciones | C94: 261 | D94: 556 | E94: 259 | F94: 1076
A95: 2020-09-01 | B95: Habitaciones vendidas | C95: 370 | D95: 885 | E95: 1289 | F95: 2544
A96: 2020-09-01 | B96: Ingresos | C96: 17276.02 | D96: 38762.063 | E96: 119546.69 | F96: 175585
A97: 2020-09-01 | B97: Ingresos (Miles) | C97: 17.27602 | D97: 38.762063 | E97: 119.54669 | F97: 176
A98: 2020-09-01 | B98: Llegadas | C98: 438 | D98: 862 | E98: 1075 | F98: 2375
A99: 2020-09-01 | B99: Pernoctaciones | C99: 503 | D99: 973 | E99: 1508 | F99: 2984
A100: 2020-09-01 | B100: TOH | C100: 0.0472541507 | D100: 0.05305755396 | E100: 0.1658944659 | F100: 0
A101: 2020-09-01 | B101: Tarifa promedio | C101: 46.69194595 | D101: 43.79894124 | E101: 92.74374709 | F101: 69
A102: 2020-10-01 | B102: Empleos | C102: 77 | D102: 63 | E102: 29 | F102: 169
A103: 2020-10-01 | B103: Estancia media | C103: 1.10117384 | D103: 1 | E103: 1.69865643 | F103: 1
A104: 2020-10-01 | B104: Habitaciones | C104: 476 | D104: 513 | E104: 142 | F104: 1131
A105: 2020-10-01 | B105: Habitaciones vendidas | C105: 1723 | D105: 1942 | E105: 885 | F105: 4550
A106: 2020-10-01 | B106: Ingresos | C106: 79063.79 | D106: 120632.45 | E106: 90674.01 | F106: 290370
A107: 2020-10-01 | B107: Ingresos (Miles) | C107: 79.06379 | D107: 120.63245 | E107: 90.67401 | F107: 290
A108: 2020-10-01 | B108: Llegadas | C108: 1789 | D108: 2066 | E108: 521 | F108: 4376
A109: 2020-10-01 | B109: Pernoctaciones | C109: 1970 | D109: 2066 | E109: 885 | F109: 4921
A110: 2020-10-01 | B110: TOH | C110: 0.1167660613 | D110: 0.1221153242 | E110: 0.2010449796 | F110: 0
A111: 2020-10-01 | B111: Tarifa promedio | C111: 45.88728381 | D111: 62.11763646 | E111: 102.4565085 | F111: 64
A112: 2020-11-01 | B112: Empleos | C112: 52 | D112: 146 | E112: 141 | F112: 339
A113: 2020-11-01 | B113: Estancia media | C113: 1.256140351 | D113: 1.061078622 | E113: 1.134794776 | F113: 1
A114: 2020-11-01 | B114: Habitaciones | C114: 169 | D114: 630 | E114: 358 | F114: 1157
A115: 2020-11-01 | B115: Habitaciones vendidas | C115: 580 | D115: 1342 | E115: 2433 | F115: 4355
A116: 2020-11-01 | B116: Ingresos | C116: 18896.62 | D116: 99427.85 | E116: 240100.39 | F116: 358425
A117: 2020-11-01 | B117: Ingresos (Miles) | C117: 18.89662 | D117: 99.42785 | E117: 240.10039 | F117: 358
A118: 2020-11-01 | B118: Llegadas | C118: 570 | D118: 1539 | E118: 2144 | F118: 4253
A119: 2020-11-01 | B119: Pernoctaciones | C119: 716 | D119: 1633 | E119: 2433 | F119: 4782
A120: 2020-11-01 | B120: TOH | C120: 0.1143984221 | D120: 0.07100529101 | E120: 0.2265363128 | F120: 0
A121: 2020-11-01 | B121: Tarifa promedio | C121: 32.58037931 | D121: 74.089307 | E121: 98.68491163 | F121: 82
A122: 2020-12-01 | B122: Empleos | C122: 75 | D122: 45 | E122: 192 | F122: 312
A123: 2020-12-01 | B123: Estancia media | C123: 1.185412027 | D123: 1.014270033 | E123: 1.102886157 | F123: 1
A124: 2020-12-01 | B124: Habitaciones | C124: 405 | D124: 288 | E124: 399 | F124: 1092
A125: 2020-12-01 | B125: Habitaciones vendidas | C125: 1909 | D125: 704 | E125: 3287 | F125: 5900
A126: 2020-12-01 | B126: Ingresos | C126: 89265.85 | D126: 46684.96 | E126: 263601.07 | F126: 399552
A127: 2020-12-01 | B127: Ingresos (Miles) | C127: 89.26585 | D127: 46.68496 | E127: 263.60107 | F127: 400
A128: 2020-12-01 | B128: Llegadas | C128: 1796 | D128: 911 | E128: 3742 | F128: 6449
A129: 2020-12-01 | B129: Pernoctaciones | C129: 2129 | D129: 924 | E129: 4127 | F129: 7180
A130: 2020-12-01 | B130: TOH | C130: 0.1520509757 | D130: 0.07885304659 | E130: 0.2657450077 | F130: 0.174
A131: 2020-12-01 | B131: Tarifa promedio | C131: 46.76052907 | D131: 66.31386364 | E131: 80.19503194 | F131: 68
A132: 2021-01-01 | B132: Empleos | C132: 69 | D132: 90 | E132: 117 | F132: 276
A133: 2021-01-01 | B133: Estancia media | C133: 1.211711712 | D133: 1.112939417 | E133: 1.137343358 | F133: 1
A134: 2021-01-01 | B134: Habitaciones | C134: 309 | D134: 417 | E134: 279 | F134: 1005
A135: 2021-01-01 | B135: Habitaciones vendidas | C135: 410 | D135: 1243 | E135: 1831 | F135: 3484
A136: 2021-01-01 | B136: Ingresos | C136: 26370.2 | D136: 84341 | E136: 190758 | F136: 301469
A137: 2021-01-01 | B137: Ingresos (Miles) | C137: 26.3702 | D137: 84.341 | E137: 190.758 | F137: 301
A138: 2021-01-01 | B138: Llegadas | C138: 444 | D138: 1337 | E138: 1995 | F138: 3776
A139: 2021-01-01 | B139: Pernoctaciones | C139: 538 | D139: 1488 | E139: 2269 | F139: 4295
A140: 2021-01-01 | B140: TOH | C140: 0.04280196263 | D140: 0.0961553338 | E140: 0.2117007747 | F140: 0.112
A141: 2021-01-01 | B141: Tarifa promedio | C141: 64.31756098 | D141: 67.85277554 | E141: 104.182414 | F141: 87
A142: 2021-02-01 | B142: Empleos | C142: 59 | D142: 180 | E142: 119 | F142: 358
A143: 2021-02-01 | B143: Estancia media | C143: 1.284232365 | D143: 1.161865919 | E143: 1.006880734 | F143: 1
A144: 2021-02-01 | B144: Habitaciones | C144: 249 | D144: 630 | E144: 135 | F144: 1014
A145: 2021-02-01 | B145: Habitaciones vendidas | C145: 507 | D145: 2974 | E145: 959 | F145: 4440
A146: 2021-02-01 | B146: Ingresos | C146: 24735.43 | D146: 203960.94 | E146: 88128 | F146: 316824
A147: 2021-02-01 | B147: Ingresos (Miles) | C147: 24.73543 | D147: 203.96094 | E147: 88.128 | F147: 317
A148: 2021-02-01 | B148: Llegadas | C148: 482 | D148: 3923 | E148: 1308 | F148: 5713
A149: 2021-02-01 | B149: Pernoctaciones | C149: 619 | D149: 4558 | E149: 1317 | F149: 6494
A150: 2021-02-01 | B150: TOH | C150: 0.07271944923 | D150: 0.1685941043 | E150: 0.2537037037 | F150: 0.16
A151: 2021-02-01 | B151: Tarifa promedio | C151: 48.78783037 | D151: 68.58135171 | E151: 91.89572471 | F151: 71
A152: 2021-03-01 | B152: Empleos | C152: 48 | D152: 195 | E152: 116 | F152: 359
A153: 2021-03-01 | B153: Estancia media | C153: 1.352601156 | D153: 1.131332599 | E153: 1.002120441 | F153: 1
A154: 2021-03-01 | B154: Habitaciones | C154: 316 | D154: 719 | E154: 241 | F154: 1276
A155: 2021-03-01 | B155: Habitaciones vendidas | C155: 503 | D155: 3666 | E155: 1778 | F155: 5947
A156: 2021-03-01 | B156: Ingresos | C156: 28083.08 | D156: 267438.44 | E156: 236987.24 | F156: 532508.76
A157: 2021-03-01 | B157: Ingresos (Miles) | C157: 28.08308 | D157: 267.43844 | E157: 236.98724 | F157: 532.50876
A158: 2021-03-01 | B158: Llegadas | C158: 519 | D158: 3632 | E158: 2358 | F158: 6509
A159: 2021-03-01 | B159: Pernoctaciones | C159: 702 | D159: 4109 | E159: 2363 | F159: 7174
A160: 2021-03-01 | B160: TOH | C160: 0.05134748877 | D160: 0.1644757504 | E160: 0.2379868826 | F160: 0.15
A161: 2021-03-01 | B161: Tarifa promedio | C161: 55.83117296 | D161: 72.95102019 | E161: 133.2886614 | F161: 90
A162: 2021-04-01 | B162: Empleos | C162: 60 | D162: 147 | E162: 14 | F162: 221
A163: 2021-04-01 | B163: Estancia media | C163: 1.460207612 | D163: 1.297553018 | E163: 1.019283747 | F163: 1
A164: 2021-04-01 | B164: Habitaciones | C164: 245 | D164: 723 | E164: 40 | F164: 1008
A165: 2021-04-01 | B165: Habitaciones vendidas | C165: 565 | D165: 3167 | E165: 332 | F165: 4064
A166: 2021-04-01 | B166: Ingresos | C166: 31367.2 | D166: 258501.56 | E166: 51327.75 | F166: 341196.51
A167: 2021-04-01 | B167: Ingresos (Miles) | C167: 31.3672 | D167: 258.50156 | E167: 51.32775 | F167: 341.19651
A168: 2021-04-01 | B168: Llegadas | C168: 578 | D168: 3065 | E168: 726 | F168: 4369
A169: 2021-04-01 | B169: Pernoctaciones | C169: 844 | D169: 3977 | E169: 740 | F169: 5561
A170: 2021-04-01 | B170: TOH | C170: 0.0768707483 | D170: 0.1460119871 | E170: 0.2766666667 | F170: 0.4995494021
A171: 2021-04-01 | B171: Tarifa promedio | C171: 55.51716814 | D171: 81.62347963 | E171: 154.6016566 | F171: 83.95583415
A172: 2021-05-01 | B172: Empleos | C172: 85 | D172: 102 | E172: 19 | F172: 206
A173: 2021-05-01 | B173: Estancia media | C173: 1.13871734 | D173: 1.370533922 | E173: 1.294778586 | F173: 3.804029847
A174: 2021-05-01 | B174: Habitaciones | C174: 416 | D174: 568 | E174: 184 | F174: 1168
A175: 2021-05-01 | B175: Habitaciones vendidas | C175: 1752 | D175: 2321 | E175: 1102 | F175: 5175
A176: 2021-05-01 | B176: Ingresos | C176: 94307.11 | D176: 208080.3 | E176: 114342.95 | F176: 416730.36
A177: 2021-05-01 | B177: Ingresos (Miles) | C177: 94.30711 | D177: 208.0803 | E177: 114.34295 | F177: 416.73036
A178: 2021-05-01 | B178: Llegadas | C178: 2105 | D178: 2491 | E178: 1513 | F178: 6109
A179: 2021-05-01 | B179: Pernoctaciones | C179: 2397 | D179: 3414 | E179: 1959 | F179: 7770
A180: 2021-05-01 | B180: TOH | C180: 0.1358560794 | D180: 0.1318150841 | E180: 0.193197756 | F180: 0.4608689194
A181: 2021-05-01 | B181: Tarifa promedio | C181: 53.82825913 | D181: 89.65114175 | E181: 103.7594828 | F181: 84
A182: 2021-06-01 | B182: Empleos | C182: 86 | D182: 196 | E182: 114 | F182: 396
A183: 2021-06-01 | B183: Estancia media | C183: 1.065355522 | D183: 1.180611969 | E183: 1 | F183: 1.090815592
A184: 2021-06-01 | B184: Habitaciones | C184: 483 | D184: 521 | E184: 208 | F184: 1212
A185: 2021-06-01 | B185: Habitaciones vendidas | C185: 2983 | D185: 3407 | E185: 2048 | F185: 8438
A186: 2021-06-01 | B186: Ingresos | C186: 172219.9 | D186: 240665.17 | E186: 202174 | F186: 615059.07
A187: 2021-06-01 | B187: Ingresos (Miles) | C187: 172.2199 | D187: 240.66517 | E187: 202.174 | F187: 615.05907
A188: 2021-06-01 | B188: Llegadas | C188: 3305 | D188: 3693 | E188: 2725 | F188: 9723
A189: 2021-06-01 | B189: Pernoctaciones | C189: 3521 | D189: 4360 | E189: 2725 | F189: 10606
A190: 2021-06-01 | B190: TOH | C190: 0.2058661146 | D190: 0.217978247 | E190: 0.3282051282 | F190: 0.2320682068
A191: 2021-06-01 | B191: Tarifa promedio | C191: 57.73379149 | D191: 70.63844144 | E191: 98.71777344 | F191: 72.89157028
A192: 2021-07-01 | B192: Empleos | C192: 89 | D192: 171 | E192: 112 | F192: 372
A193: 2021-07-01 | B193: Estancia media | C193: 1.143138801 | D193: 1.049928161 | E193: 1.002403204 | F193: 1.05485695
A194: 2021-07-01 | B194: Habitaciones | C194: 495 | D194: 526 | E194: 249 | F194: 1270
A195: 2021-07-01 | B195: Habitaciones vendidas | C195: 2414 | D195: 4274 | E195: 2541 | F195: 9229
A196: 2021-07-01 | B196: Ingresos | C196: 160476.37 | D196: 419679.13 | E196: 298316.55 | F196: 878472.05
A197: 2021-07-01 | B197: Ingresos (Miles) | C197: 160.47637 | D197: 419.67913 | E197: 298.31655 | F197: 878.47205
A198: 2021-07-01 | B198: Llegadas | C198: 2536 | D198: 5568 | E198: 3745 | F198: 11849
A199: 2021-07-01 | B199: Pernoctaciones | C199: 2899 | D199: 5846 | E199: 3754 | F199: 12499
A200: 2021-07-01 | B200: TOH | C200: 0.1573150863 | D200: 0.262112106 | E200: 0.3291877186 | F200: 0.2344170688
... 31 more rows

Sheet PROMEDIOS 2 (hidden)
C1: 3 estrellas | D1: 4 estrellas | E1: 5 estrellas | F1: Total general
A2: 2019-12-01 | B2: Empelo | C2: 277 | D2: 537 | E2: 1203 | F2: 2017
A3: 2019-12-01 | B3: Estancia media | C3: 1.238633571 | D3: 1.397559667 | E3: 1.729371393 | F3: 1.480098116
A4: 2019-12-01 | B4: Habitaciones | C4: 790 | D4: 825 | E4: 580 | F4: 2195
A5: 2019-12-01 | B5: Habitaciones vendidas | C5: 5474 | D5: 9880 | E5: 8916 | F5: 24270
A6: 2019-12-01 | B6: Ingresos | C6: 226909.33 | D6: 773374.67 | E6: 864962.5 | F6: 1865246.5
A7: 2019-12-01 | B7: Ingresos (miles) | C7: 226.90933 | D7: 773.37467 | E7: 864.9625 | F7: 1865.2465
A8: 2019-12-01 | B8: Llegadas | C8: 4069 | D8: 7458 | E8: 6411 | F8: 17938
A9: 2019-12-01 | B9: PERNOCTACIONES | C9: 5040 | D9: 10423 | E9: 11087 | F9: 26550
A10: 2019-12-01 | B10: TOH | C10: 0.223519804 | D10: 0.3863147605 | E10: 0.4958843159 | F10: 0.3566757293
A11: 2019-12-01 | B11: Tarifa promedio | C11: 41.45219766 | D11: 78.27678846 | E11: 97.01239345 | F11: 76.8539967
A12: 2020-01-01 | B12: Empelo | C12: 165 | D12: 443 | E12: 1128 | F12: 1736
A13: 2020-01-01 | B13: Estancia media | C13: 2.559177533 | D13: 1.208227041 | E13: 3.202993255 | F13: 2.142659493
A14: 2020-01-01 | B14: Habitaciones | C14: 1039 | D14: 1275 | E14: 779 | F14: 3093
A15: 2020-01-01 | B15: Habitaciones vendidas | C15: 2582 | D15: 5740 | E15: 15281 | F15: 23603
A16: 2020-01-01 | B16: Ingresos | C16: 134780.24 | D16: 438663.95 | E16: 1701399.31 | F16: 2274843.5
A17: 2020-01-01 | B17: Ingresos (miles) | C17: 134.78024 | D17: 438.66395 | E17: 1701.39931 | F17: 2274.8435
A18: 2020-01-01 | B18: Llegadas | C18: 1994 | D18: 6272 | E18: 4744 | F18: 13010
A19: 2020-01-01 | B19: PERNOCTACIONES | C19: 5103 | D19: 7578 | E19: 15195 | F19: 27876
A20: 2020-01-01 | B20: TOH | C20: 0.08016392934 | D20: 0.1452245414 | E20: 0.6327798253 | F20: 0.2461645964
A21: 2020-01-01 | B21: Tarifa promedio | C21: 52.19993803 | D21: 76.42229094 | E21: 111.3408357 | F21: 96.37942211
A22: 2020-02-01 | B22: Empelo | C22: 26 | D22: 234 | E22: 13 | F22: 273
A23: 2020-02-01 | B23: Estancia media | C23: 1.682926829 | D23: 1.041556728 | E23: 1.070588235 | F23: 1.058576874
A24: 2020-02-01 | B24: Habitaciones | C24: 466 | D24: 1332 | E24: 210 | F24: 2008
A25: 2020-02-01 | B25: Habitaciones vendidas | C25: 257 | D25: 6613 | E25: 88 | F25: 6958
A26: 2020-02-01 | B26: Ingresos | C26: 36476 | D26: 544678.18 | E26: 10608.36 | F26: 591762.54
A27: 2020-02-01 | B27: Ingresos (miles) | C27: 36.476 | D27: 544.67818 | E27: 10.60836 | F27: 591.76254
A28: 2020-02-01 | B28: Llegadas | C28: 205 | D28: 7580 | E28: 85 | F28: 7870
A29: 2020-02-01 | B29: PERNOCTACIONES | C29: 345 | D29: 7895 | E29: 91 | F29: 8331
A30: 2020-02-01 | B30: TOH | C30: 0.01901731538 | D30: 0.1711970591 | E30: 0.0144499179 | F30: 0.119487567
A31: 2020-02-01 | B31: Tarifa promedio | C31: 141.9299611 | D31: 82.36476334 | E31: 120.5495455 | F31: 85.04779247
A32: 2020-03-01 | B32: Empelo | C32: 102 | D32: 166 | E32: 27 | F32: 295
A33: 2020-03-01 | B33: Estancia media | C33: 1.418571429 | D33: 1.13125 | E33: 1.139130435 | F33: 1.174650913
A34: 2020-03-01 | B34: Habitaciones | C34: 2441 | D34: 6919 | E34: 997 | F34: 10357
A35: 2020-03-01 | B35: Habitaciones vendidas | C35: 620 | D35: 3084 | E35: 108 | F35: 3812
A36: 2020-03-01 | B36: Ingresos | C36: 65583.34 | D36: 252497.63 | E36: 9231.92 | F36: 327312.89
A37: 2020-03-01 | B37: Ingresos (miles) | C37: 65.58334 | D37: 252.49763 | E37: 9.23192 | F37: 327.31289
A38: 2020-03-01 | B38: Llegadas | C38: 700 | D38: 3840 | E38: 115 | F38: 4655
A39: 2020-03-01 | B39: PERNOCTACIONES | C39: 993 | D39: 4344 | E39: 131 | F39: 5468
A40: 2020-03-01 | B40: TOH | C40: 0.008193363376 | D40: 0.01437835973 | E40: 0.00349435403 | F40: 0.01187291126
A41: 2020-03-01 | B41: Tarifa promedio | C41: 105.7795806 | D41: 81.87342088 | E41: 85.48074074 | F41: 85.86382214
A42: 2020-04-01 | B42: Empelo | C42: 68 | D42: 199 | E42: 47 | F42: 314
A43: 2020-04-01 | B43: Estancia media | C43: 1.366666667 | D43: 1.666666667 | E43: 1 | F43: 1.303482587
A44: 2020-04-01 | B44: Habitaciones | C44: 1490 | D44: 6128 | E44: 311 | F44: 7929
A45: 2020-04-01 | B45: Habitaciones vendidas | C45: 403 | D45: 214 | F45: 617
A46: 2020-04-01 | B46: Ingresos | C46: 15960 | D46: 16258 | E46: 0 | F46: 32218
A47: 2020-04-01 | B47: Ingresos (miles) | C47: 15.96 | D47: 16.258 | E47: 0 | F47: 32.218
A48: 2020-04-01 | B48: Llegadas | C48: 300 | D48: 18 | E48: 84 | F48: 402
A49: 2020-04-01 | B49: PERNOCTACIONES | C49: 410 | D49: 30 | E49: 84 | F49: 524
A50: 2020-04-01 | B50: TOH | C50: 0.009015659955 | D50: 0.001164055701 | F50: 0.002593853786
A51: 2020-04-01 | B51: Tarifa promedio | C51: 39.60297767 | D51: 75.97196262 | F51: 52.2171799
A52: 2020-05-01 | B52: Empelo | C52: 202 | D52: 403 | E52: 141 | F52: 746
A53: 2020-05-01 | B53: Estancia media | C53: 6.191489362 | D53: 1.003016591 | E53: 12.67622951 | F53: 3.178043231
A54: 2020-05-01 | B54: Habitaciones | C54: 344 | D54: 348 | E54: 507 | F54: 1199
A55: 2020-05-01 | B55: Habitaciones vendidas | C55: 1156 | D55: 1228 | E55: 1291 | F55: 3675
A56: 2020-05-01 | B56: Ingresos | C56: 54638.76 | D56: 56529 | E56: 90180 | F56: 201347.76
A57: 2020-05-01 | B57: Ingresos (miles) | C57: 54.63876 | D57: 56.529 | E57: 90.18 | F57: 201.34776
A58: 2020-05-01 | B58: Llegadas | C58: 188 | D58: 1326 | E58: 244 | F58: 1758
A59: 2020-05-01 | B59: PERNOCTACIONES | C59: 1164 | D59: 1330 | E59: 3093 | F59: 5587
A60: 2020-05-01 | B60: TOH | C60: 0.1084021005 | D60: 0.1138301817 | E60: 0.08214035757 | F60: 0.09887271651
A61: 2020-05-01 | B61: Tarifa promedio | C61: 47.26536332 | D61: 46.03338762 | E61: 69.85282727 | F61: 54.78850612
A62: 2020-06-01 | B62: Empelo | C62: 76 | D62: 220 | E62: 50 | F62: 346
A63: 2020-06-01 | B63: Estancia media | C63: 2.066666667 | D63: 1.060737527 | E63: 3.946078431 | F63: 1.96433121
A64: 2020-06-01 | B64: Habitaciones | C64: 171 | D64: 595 | E64: 266 | F64: 1032
A65: 2020-06-01 | B65: Habitaciones vendidas | C65: 282 | D65: 460 | E65: 805 | F65: 1547
A66: 2020-06-01 | B66: Ingresos | C66: 14595.35 | D66: 25900.9 | E66: 45758 | F66: 86254.25
A67: 2020-06-01 | B67: Ingresos (miles) | C67: 14.59535 | D67: 25.9009 | E67: 45.758 | F67: 86.25425
A68: 2020-06-01 | B68: Llegadas | C68: 120 | D68: 461 | E68: 204 | F68: 785
A69: 2020-06-01 | B69: PERNOCTACIONES | C69: 248 | D69: 489 | E69: 805 | F69: 1542
A70: 2020-06-01 | B70: TOH | C70: 0.05497076023 | D70: 0.02577030812 | E70: 0.100877193 | F70: 0.04996770026
A71: 2020-06-01 | B71: Tarifa promedio | C71: 51.75656028 | D71: 56.30630435 | E71: 56.84223602 | F71: 55.75581771
A72: 2020-07-01 | B72: Empelo | C72: 99 | D72: 78 | E72: 21 | F72: 198
A73: 2020-07-01 | B73: Estancia media | C73: 1.482608696 | D73: 1 | E73: 1.008196721 | F73: 1.255707763
A74: 2020-07-01 | B74: Habitaciones | C74: 376 | D74: 299 | E74: 101 | F74: 776
A75: 2020-07-01 | B75: Habitaciones vendidas | C75: 212 | D75: 70 | E75: 125 | F75: 407
A76: 2020-07-01 | B76: Ingresos | C76: 13292.02 | D76: 4291 | E76: 10194.04 | F76: 27777.06
A77: 2020-07-01 | B77: Ingresos (miles) | C77: 13.29202 | D77: 4.291 | E77: 10.19404 | F77: 27.77706
A78: 2020-07-01 | B78: Llegadas | C78: 230 | D78: 86 | E78: 122 | F78: 438
A79: 2020-07-01 | B79: PERNOCTACIONES | C79: 341 | D79: 86 | E79: 123 | F79: 550
A80: 2020-07-01 | B80: TOH | C80: 0.01818805765 | D80: 0.007552055238 | E80: 0.03992334717 | F80: 0.016918856
A81: 2020-07-01 | B81: Tarifa promedio | C81: 62.69820755 | D81: 61.3 | E81: 81.55232 | F81: 68.24830467
A82: 2020-08-01 | B82: Empelo | C82: 79 | D82: 35 | E82: 89 | F82: 203
A83: 2020-08-01 | B83: Estancia media | C83: 1.357142857 | D83: 1 | E83: 1 | F83: 1.078933043
A84: 2020-08-01 | B84: Habitaciones | C84: 305 | D84: 214 | E84: 222 | F84: 741
A85: 2020-08-01 | B85: Habitaciones vendidas | C85: 440 | D85: 26 | E85: 1214 | F85: 1680
A86: 2020-08-01 | B86: Ingresos | C86: 22318.96 | D86: 1274 | E86: 127031.89 | F86: 150624.85
A87: 2020-08-01 | B87: Ingresos (miles) | C87: 22.31896 | D87: 1.274 | E87: 127.03189 | F87: 150.62485
A88: 2020-08-01 | B88: Llegadas | C88: 406 | D88: 26 | E88: 1405 | F88: 1837
A89: 2020-08-01 | B89: PERNOCTACIONES | C89: 551 | D89: 26 | E89: 1405 | F89: 1982
A90: 2020-08-01 | B90: TOH | C90: 0.04653622422 | D90: 0.0039192041 | E90: 0.1764022087 | F90: 0.07313569283
A91: 2020-08-01 | B91: Tarifa promedio | C91: 50.72490909 | D91: 49 | E91: 104.6391186 | F91: 89.65764881
A92: 2020-09-01 | B92: Empelo | C92: 61 | D92: 104 | E92: 86 | F92: 251
A93: 2020-09-01 | B93: Estancia media | C93: 1.148401826 | D93: 1.128770302 | E93: 1.402790698 | F93: 1.256421053
A94: 2020-09-01 | B94: Habitaciones | C94: 261 | D94: 556 | E94: 259 | F94: 1076
A95: 2020-09-01 | B95: Habitaciones vendidas | C95: 370 | D95: 885 | E95: 1289 | F95: 2544
A96: 2020-09-01 | B96: Ingresos | C96: 17276.02 | D96: 38762.063 | E96: 119546.69 | F96: 175584.773
A97: 2020-09-01 | B97: Ingresos (miles) | C97: 17.27602 | D97: 38.762063 | E97: 119.54669 | F97: 175.584773
A98: 2020-09-01 | B98: Llegadas | C98: 438 | D98: 862 | E98: 1075 | F98: 2375
A99: 2020-09-01 | B99: PERNOCTACIONES | C99: 503 | D99: 973 | E99: 1508 | F99: 2984
A100: 2020-09-01 | B100: TOH | C100: 0.0472541507 | D100: 0.05305755396 | E100: 0.1658944659 | F100: 0.07881040892
A101: 2020-09-01 | B101: Tarifa promedio | C101: 46.69194595 | D101: 43.79894124 | E101: 92.74374709 | F101: 69.01917178
A102: 2020-10-01 | B102: Empelo | C102: 77 | D102: 63 | E102: 29 | F102: 169
A103: 2020-10-01 | B103: Estancia media | C103: 1.10117384 | D103: 1 | E103: 1.69865643 | F103: 1.124542962
A104: 2020-10-01 | B104: Habitaciones | C104: 476 | D104: 513 | E104: 142 | F104: 1131
A105: 2020-10-01 | B105: Habitaciones vendidas | C105: 1723 | D105: 1942 | E105: 885 | F105: 4550
A106: 2020-10-01 | B106: Ingresos | C106: 79063.79 | D106: 120632.45 | E106: 90674.01 | F106: 290370.25
A107: 2020-10-01 | B107: Ingresos (miles) | C107: 79.06379 | D107: 120.63245 | E107: 90.67401 | F107: 290.37025
A108: 2020-10-01 | B108: Llegadas | C108: 1789 | D108: 2066 | E108: 521 | F108: 4376
A109: 2020-10-01 | B109: PERNOCTACIONES | C109: 1970 | D109: 2066 | E109: 885 | F109: 4921
A110: 2020-10-01 | B110: TOH | C110: 0.1167660613 | D110: 0.1221153242 | E110: 0.2010449796 | F110: 0.1297738228
A111: 2020-10-01 | B111: Tarifa promedio | C111: 45.88728381 | D111: 62.11763646 | E111: 102.4565085 | F111: 63.81763736
A112: 2020-11-01 | B112: Empelo | C112: 52 | D112: 146 | E112: 141 | F112: 339
A113: 2020-11-01 | B113: Estancia media | C113: 1.256140351 | D113: 1.061078622 | E113: 1.134794776 | F113: 1.124382789
A114: 2020-11-01 | B114: Habitaciones | C114: 169 | D114: 630 | E114: 358 | F114: 1157
A115: 2020-11-01 | B115: Habitaciones vendidas | C115: 580 | D115: 1342 | E115: 2433 | F115: 4355
A116: 2020-11-01 | B116: Ingresos | C116: 18896.62 | D116: 99427.85 | E116: 240100.39 | F116: 358424.86
A117: 2020-11-01 | B117: Ingresos (miles) | C117: 18.89662 | D117: 99.42785 | E117: 240.10039 | F117: 358.42486
A118: 2020-11-01 | B118: Llegadas | C118: 570 | D118: 1539 | E118: 2144 | F118: 4253
A119: 2020-11-01 | B119: PERNOCTACIONES | C119: 716 | D119: 1633 | E119: 2433 | F119: 4782
A120: 2020-11-01 | B120: TOH | C120: 0.1143984221 | D120: 0.07100529101 | E120: 0.2265363128 | F120: 0.1254681648
A121: 2020-11-01 | B121: Tarifa promedio | C121: 32.58037931 | D121: 74.089307 | E121: 98.68491163 | F121: 82.30191963
A122: 2020-12-01 | B122: Empelo | C122: 75 | D122: 45 | E122: 192 | F122: 312
A123: 2020-12-01 | B123: Estancia media | C123: 1.185412027 | D123: 1.014270033 | E123: 1.102886157 | F123: 1.113350907
A124: 2020-12-01 | B124: Habitaciones | C124: 405 | D124: 288 | E124: 399 | F124: 1092
A125: 2020-12-01 | B125: Habitaciones vendidas | C125: 1909 | D125: 704 | E125: 3287 | F125: 5900
A126: 2020-12-01 | B126: Ingresos | C126: 89265.85 | D126: 46684.96 | E126: 263601.07 | F126: 399551.88
A127: 2020-12-01 | B127: Ingresos (miles) | C127: 89.26585 | D127: 46.68496 | E127: 263.60107 | F127: 399.55188
A128: 2020-12-01 | B128: Llegadas | C128: 1796 | D128: 911 | E128: 3742 | F128: 6449
A129: 2020-12-01 | B129: PERNOCTACIONES | C129: 2129 | D129: 924 | E129: 4127 | F129: 7180
A130: 2020-12-01 | B130: TOH | C130: 0.1520509757 | D130: 0.07885304659 | E130: 0.2657450077 | F130: 0.1742880775
A131: 2020-12-01 | B131: Tarifa promedio | C131: 46.76052907 | D131: 66.31386364 | E131: 80.19503194 | F131: 67.72065763
A132: 2021-01-01 | B132: Empelo | C132: 69 | D132: 90 | E132: 117 | F132: 276
A133: 2021-01-01 | B133: Estancia media | C133: 1.211711712 | D133: 1.112939417 | E133: 1.137343358 | F133: 1.137447034
A134: 2021-01-01 | B134: Habitaciones | C134: 309 | D134: 417 | E134: 279 | F134: 1005
A135: 2021-01-01 | B135: Habitaciones vendidas | C135: 410 | D135: 1243 | E135: 1831 | F135: 3484
A136: 2021-01-01 | B136: Ingresos | C136: 26370.2 | D136: 84341 | E136: 190758 | F136: 301469.2
A137: 2021-01-01 | B137: Ingresos (miles) | C137: 26.3702 | D137: 84.341 | E137: 190.758 | F137: 301.4692
A138: 2021-01-01 | B138: Llegadas | C138: 444 | D138: 1337 | E138: 1995 | F138: 3776
A139: 2021-01-01 | B139: PERNOCTACIONES | C139: 538 | D139: 1488 | E139: 2269 | F139: 4295
A140: 2021-01-01 | B140: TOH | C140: 0.04280196263 | D140: 0.0961553338 | E140: 0.2117007747 | F140: 0.111827957
A141: 2021-01-01 | B141: Tarifa promedio | C141: 64.31756098 | D141: 67.85277554 | E141: 104.182414 | F141: 86.52962113
A142: 2021-02-01 | B142: Empelo | C142: 59 | D142: 180 | E142: 119 | F142: 358
A143: 2021-02-01 | B143: Estancia media | C143: 1.284232365 | D143: 1.161865919 | E143: 1.006880734 | F143: 1.136705759
A144: 2021-02-01 | B144: Habitaciones | C144: 249 | D144: 630 | E144: 135 | F144: 1014
A145: 2021-02-01 | B145: Habitaciones vendidas | C145: 507 | D145: 2974 | E145: 959 | F145: 4440
A146: 2021-02-01 | B146: Ingresos | C146: 24735.43 | D146: 203960.94 | E146: 88128 | F146: 316824.37
A147: 2021-02-01 | B147: Ingresos (miles) | C147: 24.73543 | D147: 203.96094 | E147: 88.128 | F147: 316.82437
A148: 2021-02-01 | B148: Llegadas | C148: 482 | D148: 3923 | E148: 1308 | F148: 5713
A149: 2021-02-01 | B149: PERNOCTACIONES | C149: 619 | D149: 4558 | E149: 1317 | F149: 6494
A150: 2021-02-01 | B150: TOH | C150: 0.07271944923 | D150: 0.1685941043 | E150: 0.2537037037 | F150: 0.1563820795
A151: 2021-02-01 | B151: Tarifa promedio | C151: 48.78783037 | D151: 68.58135171 | E151: 91.89572471 | F151: 71.35684009
A152: 2021-03-01 | B152: Empelo | C152: 48 | D152: 195 | E152: 116 | F152: 359
A153: 2021-03-01 | B153: Estancia media | C153: 1.352601156 | D153: 1.131332599 | E153: 1.002120441 | F153: 1.102166231
A154: 2021-03-01 | B154: Habitaciones | C154: 316 | D154: 719 | E154: 241 | F154: 1276
A155: 2021-03-01 | B155: Habitaciones vendidas | C155: 503 | D155: 3666 | E155: 1778 | F155: 5947
A156: 2021-03-01 | B156: Ingresos | C156: 28083.08 | D156: 267438.44 | E156: 236987.24 | F156: 532508.76
A157: 2021-03-01 | B157: Ingresos (miles) | C157: 28.08308 | D157: 267.43844 | E157: 236.98724 | F157: 532.50876
A158: 2021-03-01 | B158: Llegadas | C158: 519 | D158: 3632 | E158: 2358 | F158: 6509
A159: 2021-03-01 | B159: PERNOCTACIONES | C159: 702 | D159: 4109 | E159: 2363 | F159: 7174
A160: 2021-03-01 | B160: TOH | C160: 0.05134748877 | D160: 0.1644757504 | E160: 0.2379868826 | F160: 0.1503438164
A161: 2021-03-01 | B161: Tarifa promedio | C161: 55.83117296 | D161: 72.95102019 | E161: 133.2886614 | F161: 89.54241803
A162: 2021-04-01 | B162: Empelo | C162: 60 | D162: 147 | E162: 14 | F162: 221
A163: 2021-04-01 | B163: Estancia media | C163: 1.460207612 | D163: 1.297553018 | E163: 1.019283747 | F163: 1.272831312
A164: 2021-04-01 | B164: Habitaciones | C164: 245 | D164: 723 | E164: 40 | F164: 1008
A165: 2021-04-01 | B165: Habitaciones vendidas | C165: 565 | D165: 3167 | E165: 332 | F165: 4064
A166: 2021-04-01 | B166: Ingresos | C166: 31367.2 | D166: 258501.56 | E166: 51327.75 | F166: 341196.51
A167: 2021-04-01 | B167: Ingresos (miles) | C167: 31.3672 | D167: 258.50156 | E167: 51.32775 | F167: 341.19651
A168: 2021-04-01 | B168: Llegadas | C168: 578 | D168: 3065 | E168: 726 | F168: 4369
A169: 2021-04-01 | B169: PERNOCTACIONES | C169: 844 | D169: 3977 | E169: 740 | F169: 5561
A170: 2021-04-01 | B170: TOH | C170: 0.0768707483 | D170: 0.1460119871 | E170: 0.2766666667 | F170: 0.1343915344
A171: 2021-04-01 | B171: Tarifa promedio | C171: 55.51716814 | D171: 81.62347963 | E171: 154.6016566 | F171: 83.95583415
A172: 2021-05-01 | B172: Empelo | C172: 85 | D172: 102 | E172: 19 | F172: 206
A173: 2021-05-01 | B173: Estancia media | C173: 1.13871734 | D173: 1.370533922 | E173: 1.294778586 | F173: 1.271893927
A174: 2021-05-01 | B174: Habitaciones | C174: 416 | D174: 568 | E174: 184 | F174: 1168
A175: 2021-05-01 | B175: Habitaciones vendidas | C175: 1752 | D175: 2321 | E175: 1102 | F175: 5175
A176: 2021-05-01 | B176: Ingresos | C176: 94307.11 | D176: 208080.3 | E176: 114342.95 | F176: 416730.36
A177: 2021-05-01 | B177: Ingresos (miles) | C177: 94.30711 | D177: 208.0803 | E177: 114.34295 | F177: 416.73036
A178: 2021-05-01 | B178: Llegadas | C178: 2105 | D178: 2491 | E178: 1513 | F178: 6109
A179: 2021-05-01 | B179: PERNOCTACIONES | C179: 2397 | D179: 3414 | E179: 1959 | F179: 7770
A180: 2021-05-01 | B180: TOH | C180: 0.1358560794 | D180: 0.1318150841 | E180: 0.193197756 | F180: 0.1429242156
A181: 2021-05-01 | B181: Tarifa promedio | C181: 53.82825913 | D181: 89.65114175 | E181: 103.7594828 | F181: 80.5276058
A182: 2021-06-01 | B182: Empelo | C182: 86 | D182: 196 | E182: 114 | F182: 396
A183: 2021-06-01 | B183: Estancia media | C183: 1.065355522 | D183: 1.180611969 | E183: 1 | F183: 1.090815592
A184: 2021-06-01 | B184: Habitaciones | C184: 483 | D184: 521 | E184: 208 | F184: 1212
A185: 2021-06-01 | B185: Habitaciones vendidas | C185: 2983 | D185: 3407 | E185: 2048 | F185: 8438
A186: 2021-06-01 | B186: Ingresos | C186: 172219.9 | D186: 240665.17 | E186: 202174 | F186: 615059.07
A187: 2021-06-01 | B187: Ingresos (miles) | C187: 172.2199 | D187: 240.66517 | E187: 202.174 | F187: 615.05907
A188: 2021-06-01 | B188: Llegadas | C188: 3305 | D188: 3693 | E188: 2725 | F188: 9723
A189: 2021-06-01 | B189: PERNOCTACIONES | C189: 3521 | D189: 4360 | E189: 2725 | F189: 10606
A190: 2021-06-01 | B190: TOH | C190: 0.2058661146 | D190: 0.217978247 | E190: 0.3282051282 | F190: 0.2320682068
A191: 2021-06-01 | B191: Tarifa promedio | C191: 57.73379149 | D191: 70.63844144 | E191: 98.71777344 | F191: 72.89157028
A192: 2021-07-01 | B192: Empelo | C192: 89 | D192: 171 | E192: 112 | F192: 372
A193: 2021-07-01 | B193: Estancia media | C193: 1.143138801 | D193: 1.049928161 | E193: 1.002403204 | F193: 1.05485695
A194: 2021-07-01 | B194: Habitaciones | C194: 495 | D194: 526 | E194: 249 | F194: 1270
A195: 2021-07-01 | B195: Habitaciones vendidas | C195: 2414 | D195: 4274 | E195: 2541 | F195: 9229
A196: 2021-07-01 | B196: Ingresos | C196: 160476.37 | D196: 419679.13 | E196: 298316.55 | F196: 878472.05
A197: 2021-07-01 | B197: Ingresos (miles) | C197: 160.47637 | D197: 419.67913 | E197: 298.31655 | F197: 878.47205
A198: 2021-07-01 | B198: Llegadas | C198: 2536 | D198: 5568 | E198: 3745 | F198: 11849
A199: 2021-07-01 | B199: PERNOCTACIONES | C199: 2899 | D199: 5846 | E199: 3754 | F199: 12499
A200: 2021-07-01 | B200: TOH | C200: 0.1573150863 | D200: 0.262112106 | E200: 0.3291877186 | F200: 0.2344170688
... 31 more rows

Sheet AUXILIARES (hidden)
B2: EMPLEO
B3: EMPLEO_MES | E3: EMPLEO_CAT | H3: EMPLEO_TIPO | K3: EMPLEO_SECTOR | P3: EMPLEO_PROM | Q3: =GETPIVOTDATA("[Measures].[Suma de EMPLEOS]",$P$4)/GETPIVOTDATA("[Measures].[Recuento distinto de MES]",$P$4) -> 348.1
B4: FECHA | C4: Suma de EMPLEOS | E4: CATEGORÍA | F4: Suma de EMPLEOS | H4: TIPO | I4: EMPLEOS | K4: EMPLEOS | L4: Etiquetas de columna | P4: Recuento MES | Q4: Promedio Empleo
B5: 2019 | E5: 3 estrellas | F5: 723 | H5: Lodge | I5: 98 | K5: SECTOR | L5: 3 estrellas | M5: 4 estrellas | N5: 5 estrellas | P5: 10 | Q5: 3481
B6: dic | C6: 2017 | E6: 4 estrellas | F6: 1763 | H6: Hotel | I6: 3078 | K6: Eugenio Espejo | L6: 337 | M6: 557 | N6: 893
B7: 2020 | E7: 5 estrellas | F7: 995 | H7: Hostería | I7: 196 | K7: La Delicia | L7: 117 | M7: 15 | N7: 0
B8: ene | C8: 1736 | H8: Hostal | I8: 54 | K8: La Mariscal | L8: 193 | M8: 804 | N8: 0
B9: feb | C9: 273 | H9: Hacienda Turística | I9: 55 | K9: Los Chillos | L9: 0 | M9: 72
B10: mar | C10: 295 | K10: Manuela Sáenz | L10: 56 | M10: 125
B11: abr | C11: 314 | K11: Tumbaco | L11: 20 | M11: 190 | N11: 102
B12: may | C12: 746
B13: jun | C13: 346
B14: jul | C14: 198
B15: ago | C15: 203
B16: sep | C16: 251
B17: oct | C17: 169
B18: nov | C18: 339
B19: dic | C19: 312
B20: 2021
B21: ene | C21: 276
B22: feb | C22: 358
B23: mar | C23: 359
B24: abr | C24: 221
B25: may | C25: 206
B26: jun | C26: 396
B27: jul | C27: 372
B28: ago | C28: 387
B29: sep | C29: 420
B30: oct | C30: 486
B32: HABITACIONES VENDIDAS
B35: HABITACIONES_MES | E35: HABITACIONES_CAT | H35: HABITACIONES_TIPO | K35: HABITACIONES_SECTOR | P35: HABITACIONES_PROM | Q35: =GETPIVOTDATA("[Measures].[Suma de TOTAL HABITACIONES VENDIDAS]",$P$36)/GETPIVOTDATA("[Measures].[Recuento distinto de MES]",$P$36) -> 8173.6
B36: FECHA | C36: HABITACIONES VENDIDAS | E36: CATEGORÍA | F36: HABITACIONES VENDIDAS | H36: TIPO | I36: HABITACIONES VENDIDAS | K36: HABITACIONES VENDIDAS | L36: Etiquetas de columna | P36: Recuento MES | Q36: Promedio Habitaciones Vendidas
B37: 2019 | E37: 3 estrellas | F37: 14200 | H37: Hostería | I37: 554 | K37: SECTOR | L37: 3 estrellas | M37: 4 estrellas | N37: 5 estrellas | P37: 10 | Q37: 81736
B38: dic | C38: 24270 | E38: 4 estrellas | F38: 44119 | H38: Lodge | I38: 2597 | K38: Eugenio Espejo | L38: 9812 | M38: 18619 | N38: 15822
B39: 2020 | E39: 5 estrellas | F39: 23417 | H39: Hotel | I39: 77964 | K39: La Delicia | L39: 307 | M39: 16 | N39: 2081
B40: ene | C40: 23603 | H40: Hacienda Turística | I40: 168 | K40: La Mariscal | L40: 3531 | M40: 18604 | N40: 4939
B41: feb | C41: 6958 | H41: Hostal | I41: 453 | K41: Los Chillos | M41: 257
B42: mar | C42: 3812 | K42: Manuela Sáenz | L42: 330 | M42: 3765
B43: abr | C43: 617 | K43: Tumbaco | L43: 220 | M43: 2858 | N43: 575
B44: may | C44: 3675
B45: jun | C45: 1547
B46: jul | C46: 407
B47: ago | C47: 1680
B48: sep | C48: 2544
B49: oct | C49: 4550
B50: nov | C50: 4355
B51: dic | C51: 5900
B52: 2021
B53: ene | C53: 3484
B54: feb | C54: 4440
B55: mar | C55: 5947
B56: abr | C56: 4064
B57: may | C57: 5175
B58: jun | C58: 8438
B59: jul | C59: 9229
B60: ago | C60: 13773
B61: sep | C61: 12710
B62: oct | C62: 14476
B64: TOH
B66: TOH_MES | E66: TOH_CAT | H66: TOH_TIPO | K66: TOH_SECTOR | P66: TOH_PROM
B67: FECHA | C67: TOH | E67: CATEGORÍA | F67: TOH | H67: TIPO | I67: TOH | K67: TOH | L67: Etiquetas de columna | P67: Recuento MES | Q67: Promedio TOH
B68: 2019 | E68: 3 estrellas | F68: 0.1315149735 | H68: Lodge | I68: 0.2886357321 | K68: SECTOR | L68: 3 estrellas | M68: 4 estrellas | N68: 5 estrellas | P68: 10 | Q68: 0.2020882252
B69: dic | C69: 0.3566757293 | E69: 4 estrellas | F69: 0.2200648637 | H69: Hotel | I69: 0.228546302 | K69: Eugenio Espejo | L69: 0.1851708655 | M69: 0.2689318906 | N69: 0.3456462435
B70: 2020 | E70: 5 estrellas | F70: 0.3102025947 | H70: Hostería | I70: 0.04290977601 | K70: La Delicia | L70: 0.03643684038 | M70: 0.03036053131 | N70: 0.471240942
B71: ene | C71: 0.2461645964 | H71: Hostal | I71: 0.03370651465 | K71: La Mariscal | L71: 0.1083434759 | M71: 0.1845211 | N71: 0.2253501848
B72: feb | C72: 0.119487567 | H72: Hacienda Turística | I72: 0.02203531553 | K72: Los Chillos | M72: 0.08085228085
B73: mar | C73: 0.01187291126 | K73: Manuela Sáenz | L73: 0.04889758179 | M73: 0.2195708233
B74: abr | C74: 0.002593853786 | K74: Tumbaco | L74: 0.03200387926 | M74: 0.3053418803 | N74: 0.1683255269
B75: may | C75: 0.09887271651
B76: jun | C76: 0.04996770026
B77: jul | C77: 0.016918856
B78: ago | C78: 0.07313569283
B79: sep | C79: 0.07881040892
B80: oct | C80: 0.1297738228
B81: nov | C81: 0.1254681648
B82: dic | C82: 0.1742880775
B83: 2021
B84: ene | C84: 0.111827957
B85: feb | C85: 0.1563820795
B86: mar | C86: 0.1503438164
B87: abr | C87: 0.1343915344
B88: may | C88: 0.1429242156
B89: jun | C89: 0.2320682068
B90: jul | C90: 0.2344170688
B91: ago | C91: 0.2773347831
B92: sep | C92: 0.2761842677
B93: oct | C93: 0.3050083226
B95: ESTANCIA MEDIA
B98: ESTANCIAMEDIA_MES | E98: ESTANCIAMEDIA_CAT | H98: ESTANCIAMEDIA_TIPO | K98: ESTANCIAMEDIA_SECTOR | P98: ESTANCIAMEDIA_PROM
B99: FECHA | C99: ESTANCIA MEDIA | E99: CATEGORÍA | F99: ESTANCIA MEDIA | H99: TIPO | I99: ESTANCIA MEDIA | K99: ESTANCIA MEDIA | L99: Etiquetas de columna | P99: Recuento MES | Q99: Promedio Estancia Media
B100: 2019 | E100: 3 estrellas | F100: 1.180305786 | H100: Lodge | I100: 1.046104629 | K100: SECTOR | L100: 3 estrellas | M100: 4 estrellas | N100: 5 estrellas | P100: 10 | Q100: 1.135733702
B101: dic | C101: 1.480098116 | E101: 4 estrellas | F101: 1.151370825 | H101: Hotel | I101: 1.118373292 | K101: Eugenio Espejo | L101: 1.099011819 | M101: 1.105649303 | N101: 1
B102: 2020 | E102: 5 estrellas | F102: 1.025921584 | H102: Hostería | I102: 1.194097616 | K102: La Delicia | L102: 1.355223881 | M102: 1 | N102: 1
B103: ene | C103: 2.142659493 | H103: Hostal | I103: 1.187066975 | K103: La Mariscal | L103: 1.385874011 | M103: 1.222034217 | N103: 1.109541985
B104: feb | C104: 1.058576874 | H104: Hacienda Turística | I104: 1.057142857 | K104: Los Chillos | M104: 1.058704453
B105: mar | C105: 1.174650913 | K105: Manuela Sáenz | L105: 1.283828383 | M105: 1.121976866
B106: abr | C106: 1.303482587 | K106: Tumbaco | L106: 1.159090909 | M106: 1 | N106: 1.231491137
B107: may | C107: 3.178043231
B108: jun | C108: 1.96433121
B109: jul | C109: 1.255707763
B110: ago | C110: 1.078933043
B111: sep | C111: 1.256421053
B112: oct | C112: 1.124542962
B113: nov | C113: 1.124382789
B114: dic | C114: 1.113350907
B115: 2021
B116: ene | C116: 1.137447034
B117: feb | C117: 1.136705759
B118: mar | C118: 1.102166231
B119: abr | C119: 1.272831312
B120: may | C120: 1.271893927
B121: jun | C121: 1.090815592
B122: jul | C122: 1.05485695
B123: ago | C123: 1.058639897
B124: sep | C124: 1.078252178
B125: oct | C125: 1.153728137
B127: LLEGADAS
B130: LLEGADAS_MES | E130: LLEGADAS_CAT | H130: LLEGADAS_TIPO | K130: LLEGADAS_SECTOR | P130: LLEGADAS_PROM | Q130: =GETPIVOTDATA("[Measures].[Suma de TOTAL LLEGADAS]",$P$131)/GETPIVOTDATA("[Measures].[Recuento distinto de MES]",$P$131) -> 9468.6
B131: FECHA | C131: LLEGADAS | E131: CATEGORÍA | F131: LLEGADAS | H131: TIPO | I131: LLEGADAS | K131: LLEGADAS | L131: Etiquetas de columna | P131: Recuento MES | Q131: Promedio LLEGADAS
B132: 2019 | E132: 3 estrellas | F132: 14847 | H132: Hotel | I132: 87883 | K132: SECTOR | L132: 3 estrellas | M132: 4 estrellas | N132: 5 estrellas | P132: 10 | Q132: 94686
B133: dic | C133: 17938 | E133: 4 estrellas | F133: 49131 | H133: Hostería | I133: 881 | K133: Eugenio Espejo | L133: 10322 | M133: 17719 | N133: 20092
B134: 2020 | E134: 5 estrellas | F134: 30708 | H134: Lodge | I134: 5314 | K134: La Delicia | L134: 335 | M134: 55 | N134: 4417
B135: ene | C135: 13010 | H135: Hostal | I135: 433 | K135: La Mariscal | L135: 3667 | M135: 21276 | N135: 5240
B136: feb | C136: 7870 | H136: Hacienda Turística | I136: 175 | K136: Los Chillos | L136: 0 | M136: 494
B137: mar | C137: 4655 | K137: Manuela Sáenz | L137: 303 | M137: 6657
B138: abr | C138: 402 | K138: Tumbaco | L138: 220 | M138: 2930 | N138: 959
B139: may | C139: 1758
B140: jun | C140: 785
B141: jul | C141: 438
B142: ago | C142: 1837
B143: sep | C143: 2375
B144: oct | C144: 4376
B145: nov | C145: 4253
B146: dic | C146: 6449
B147: 2021
B148: ene | C148: 3776
B149: feb | C149: 5713
B150: mar | C150: 6509
B151: abr | C151: 4369
B152: may | C152: 6109
B153: jun | C153: 9723
B154: jul | C154: 11849
B155: ago | C155: 16337
B156: sep | C156: 14006
B157: oct | C157: 16295
B159: INGRESOS
B162: INGRESOS_MES | E162: INGRESOS_CAT | H162: INGRESOS_TIPO | K162: INGRESOS_SECTOR | P162: INGRESOS_PROM | Q162: =GETPIVOTDATA("[Measures].[Suma de VENTAS POR ALOJAMIENTO DURANTE EL MES (MILES)]",$P$163)/GETPIVOTDATA("[Measures].[Recuento distinto de MES]",$P$163) -> 732.909224
B163: FECHA | C163: INGRESOS (MILES) | E163: CATEGORÍA | F163: INGRESOS (MILES) | H163: TIPO | I163: INGRESOS (MILES) | K163: INGRESOS (MILES) | L163: Etiquetas de columna | P163: Recuento MES | Q163: Ingresos (miles)
B164: 2019 | E164: 3 estrellas | F164: 854.49666 | H164: Hotel | I164: 6513.45794 | K164: SECTOR | L164: 3 estrellas | M164: 4 estrellas | N164: 5 estrellas | P164: 10 | Q164: 7329.09224
B165: dic | C165: 1865.2465 | E165: 4 estrellas | F165: 3705.11088 | H165: Hostería | I165: 51.02541 | K165: Eugenio Espejo | L165: 610.97399 | M165: 1278.14185 | N165: 1669.66618
B166: 2020 | E166: 5 estrellas | F166: 2769.4847 | H166: Lodge | I166: 701.85071 | K166: La Delicia | L166: 49.59467 | M166: 2 | N166: 621.28565
B167: ene | C167: 2274.8435 | H167: Hacienda Turística | I167: 22.60891 | K167: La Mariscal | L167: 137.673 | M167: 1286.40164 | N167: 405.33681
B168: feb | C168: 591.76254 | H168: Hostal | I168: 40.14927 | K168: Los Chillos | L168: 0 | M168: 17.14062
B169: mar | C169: 327.31289 | K169: Manuela Sáenz | L169: 34.439 | M169: 894.64014
B170: abr | C170: 32.218 | K170: Tumbaco | L170: 21.816 | M170: 226.78663 | N170: 73.19606
B171: may | C171: 201.34776
B172: jun | C172: 86.25425
B173: jul | C173: 27.77706
B174: ago | C174: 150.62485
B175: sep | C175: 175.584773
B176: oct | C176: 290.37025
B177: nov | C177: 358.42486
B178: dic | C178: 399.55188
B179: 2021
B180: ene | C180: 301.4692
B181: feb | C181: 316.82437
B182: mar | C182: 532.50876
B183: abr | C183: 341.19651
B184: may | C184: 416.73036
B185: jun | C185: 615.05907
B186: jul | C186: 878.47205
B187: ago | C187: 1477.91156
B188: sep | C188: 1139.63978
B189: oct | C189: 1309.28058
B191: PERNOCTACIONES
B194: PERNOCTACIONES_MES | E194: PERNOCTACIONES_CAT | H194: PERNOCTACIONES_TIPO | K194: PERNOCTACIONES_SECTOR | P194: PERNOCTACIONES_PROM
B195: FECHA | C195: Suma de TOTAL PERNOCTACIONES | E195: CATEGORÍA | F195: Suma de TOTAL PERNOCTACIONES | H195: TIPO | K195: Suma de TOTAL PERNOCTACIONES | L195: Etiquetas de columna | P195: Recuento MES | Q195: Promedio Pernoctaciones
B196: 2019 | E196: 3 estrellas | F196: 17524 | H196: Hostería | K196: SECTOR | L196: 3 estrellas | M196: 4 estrellas | N196: 5 estrellas | P196: 10 | Q196: 10559.6
B197: dic | C197: 26550 | E197: 4 estrellas | F197: 56568 | H197: Lodge | K197: Eugenio Espejo | L197: 11344 | M197: 19591 | N197: 20092
B198: 2020 | E198: 5 estrellas | F198: 31504 | H198: Hacienda Turística | K198: La Delicia | L198: 454 | M198: 55 | N198: 4417
B199: ene | C199: 27876 | H199: Hotel | K199: La Mariscal | L199: 5082 | M199: 26000 | N199: 5814
B200: feb | C200: 8331 | H200: Hostal | K200: Los Chillos | L200: 0 | M200: 523
B201: mar | C201: 5468 | K201: Manuela Sáenz | L201: 389 | M201: 7469
B202: abr | C202: 524 | K202: Tumbaco | L202: 255 | M202: 2930 | N202: 1181
B203: may | C203: 5587
B204: jun | C204: 1542
B205: jul | C205: 550
B206: ago | C206: 1982
B207: sep | C207: 2984
B208: oct | C208: 4921
B209: nov | C209: 4782
B210: dic | C210: 7180
B211: 2021
B212: ene | C212: 4295
B213: feb | C213: 6494
B214: mar | C214: 7174
B215: abr | C215: 5561
B216: may | C216: 7770
B217: jun | C217: 10606
B218: jul | C218: 12499
... 62 more rows

Sheet INDICE

Sheet 4X4 MATRIZ TOTALES
C18: Catergorías | D18: Pernoctaciones | E18: TOH | F18: Estancia Media | G18: Tarifa por Habitación Ocupada
C19: 3 estrellas | D19: 17524 | E19: 0.1315149735 | F19: 1.180305786 | G19: 60.17582113
C20: 4 estrellas | D20: 56568 | E20: 0.2200648637 | F20: 1.151370825 | G20: 83.9799379
C21: 5 estrellas | D21: 31504 | E21: 0.3102025947 | F21: 1.025921584 | G21: 118.2681257
C22: Total general | D22: 105596 | E22: 0.2129114336 | F22: 1.115222947 | G22: 89.66786043

Sheet 4X4 MATRIZ PROMEDIOS
C17: Categorías | D17: Pernoctaciones | E17: TOH | F17: Estancia Media | G17: Tarifa por Habitación Ocupada
C18: 3 estrellas | D18: 1752.4 | E18: 0.1210418633 | F18: 1.24047625 | G18: 57.72443608
C19: 4 estrellas | D19: 5656.8 | E19: 0.210127175 | F19: 1.167987572 | G19: 81.43315315
C20: 5 estrellas | D20: 3150.4 | E20: 0.3040594947 | F20: 1.046969178 | G20: 116.5890211
C21: Total general | D21: 10559.6 | E21: 0.2020882252 | F21: 1.135733702 | G21: 86.74046519

Sheet EMPLEO
AL5: =AUXILIARES!Q3 -> 348.1
BH12: =AUXILIARES!Q3 -> 348.1

Sheet ESTANCIA MEDIA
AW6: =GETPIVOTDATA("[Measures].[Promedio Estancia Media]",AUXILIARES!$P$99) -> 1.135733702
K51: <style type="text/css">
L52: .st0{fill:#161D34;}
K53: </style>
K54: <defs>
K55: </defs>
K56: <g>
L57: <g>
M58: <g>
N59: <path class="st0" d="M18.74,22.05c-2.92-0.01-6.19-1.13-8.89-3.74C5.61,14.2,5.63,7.66,9.99,3.68
O60: c5.69-5.19,14.25-4.72,19.35,0.37c4.04,4.02,3.66,10.44,0.02,14.01C26.63,20.73,23.39,22.03,18.74,22.05z"/>
N61: <path class="st0" d="M19.88,40.84c-3.96,0-7.16,0-10.33-0.49c-1.84-0.29-3.66-0.59-5.41-1.26C3,38.66,2.03,38.02,1.22,37.14
O62: c-1.7-1.87-1.62-4.29,0.21-6.06c0.59-0.57,1.25-1.04,2.02-1.34c1.31-0.52,2.62-1.01,4.02-1.27c2.86-0.53,5.73-0.86,8.64-0.86
O63: c3.05,0.01,6.11-0.05,9.15,0.1c3.12,0.15,6.22,0.5,9.17,1.63c0.91,0.35,1.79,0.72,2.57,1.3c2.15,1.58,2.52,4.29,0.86,6.35
O64: c-0.56,0.69-1.26,1.23-2.07,1.63c-1.34,0.67-2.78,1.02-4.24,1.3C27.44,40.71,23.29,40.9,19.88,40.84z"/>
M65: </g>
L66: </g>
K67: </g>
K68: </svg>

Sheet HABITACIONES VENDIDAS
BB11: =AUXILIARES!Q35 -> 8173.6

Sheet INGRESOS
AY8: =AUXILIARES!Q162 -> 732.909224

Sheet LLEGADAS
BB9: =AUXILIARES!Q130 -> 9468.6

Sheet PERNOCTACIONES
AV10: =GETPIVOTDATA("[Measures].[Promedio Pernoctaciones]",AUXILIARES!$P$195) -> 10559.6

Sheet TARIFA
AX10: =GETPIVOTDATA("[Measures].[Promedio Tarifa por Habitación Ocupada]",AUXILIARES!$P$227) -> 86.74046519

Sheet TOH
AY10: =GETPIVOTDATA("[Measures].[Promedio TOH]",AUXILIARES!$P$67) -> 0.2020882252

Sheet PROMEDIO
AV2: =AUXILIARES!$G$261 -> Empleos
AX3: =+IF(NOT(AV2="TOH"),IF(AV2=("tarifa promedio"),TEXT(AUXILIARES!$H$261,"$##.##0,00"), TEXT(AUXILIARES!$H$261,"##.##0,00")),TEXT((AUXILIARES!$H$261),"0,00%")) -> 464,35
